Workbook

Sheet ＴＯＰ
B5: 基本情報 | D5: データの取込 | F5: 帳票の出力
K16: 提供：小林敬幸税理士事務所
K17: Ver. 1.0

Sheet 基本情報
A8: １、会社名を入力します
B9: 株式会社弥生トレーディング
A11: ２、現金同等物の範囲となる（現預金残高に含まれる）勘定科目を入力します（弥生会計の登録通りに入力します）
B12: 勘定科目
B13: 現金
B14: 小口現金
B15: 普通預金
B16: 当座預金
B21: 資金諸口
A23: ３、現金同等物の期首残高を入力します
B24: 457250582
A26: ４、期首年月日を入力します
B27: 2020-04-01 | C27: ←期首年月日 | K27: =YEAR(B27) -> 2020
B28: =EOMONTH(B27,11) -> 2021-03-31 | C28: ←期末年月日
A30: ５、会計事務所名を入力します
B31: 小林敬幸税理士事務所
A33: ６、借入金、長期未払金の期首残高を入力します
B34: 4000000 | C34: ←短期借入金
B35: 7393502 | C35: ←長期借入金
B36: 0 | C36: ←役員・関係会社等借入金
B37: 0 | C37: ←長期未払金

Sheet 月別資金繰り表
B1: =基本情報!B9 -> 株式会社弥生トレーディング
B3: 月次資金繰り表
C5: =MONTH(C6)&"月" -> 4月 | D5: =MONTH(D6)&"月" -> 5月 | E5: 6月 | F5: 7月 | G5: 8月 | H5: 9月 | I5: 10月 | J5: 11月 | K5: 12月 | L5: 1月 | M5: 2月 | N5: 3月
C6: =基本情報!B27 -> 2020-04-01 | D6: =EOMONTH(C6,1) -> 2020-05-31 | E6: =EOMONTH(D6,1) -> 2020-06-30 | F6: 2020-07-31 | G6: 2020-08-31 | H6: 2020-09-30 | I6: 2020-10-31 | J6: 2020-11-30 | K6: 2020-12-31 | L6: 2021-01-31 | M6: 2021-02-28 | N6: 2021-03-31
B8: 経常収入
B9: 現金売上 | C9: =IF(ISERROR(VLOOKUP($B9,月次ピボット!$A:$N,MATCH(C$5,月次ピボット!$B$3:$M$3,0)+1,FALSE)),0,VLOOKUP($B9,月次ピボット!$A:$N,MATCH(C$5,月次ピボット!$B$3:$M$3,0)+1,FALSE)) -> 2952629 | D9: =IF(ISERROR(VLOOKUP($B9,月次ピボット!$A:$N,MATCH(D$5,月次ピボット!$B$3:$M$3,0)+1,FALSE)),0,VLOOKUP($B9,月次ピボット!$A:$N,MATCH(D$5,月次ピボット!$B$3:$M$3,0)+1,FALSE)) -> 3111196 | E9: =IF(ISERROR(VLOOKUP($B9,月次ピボット!$A:$N,MATCH(E$5,月次ピボット!$B$3:$M$3,0)+1,FALSE)),0,VLOOKUP($B9,月次ピボット!$A:$N,MATCH(E$5,月次ピボット!$B$3:$M$3,0)+1,FALSE)) -> 3621918 | F9: =IF(ISERROR(VLOOKUP($B9,月次ピボット!$A:$N,MATCH(F$5,月次ピボット!$B$3:$M$3,0)+1,FALSE)),0,VLOOKUP($B9,月次ピボット!$A:$N,MATCH(F$5,月次ピボット!$B$3:$M$3,0)+1,FALSE)) -> 3350444 | G9: =IF(ISERROR(VLOOKUP($B9,月次ピボット!$A:$N,MATCH(G$5,月次ピボット!$B$3:$M$3,0)+1,FALSE)),0,VLOOKUP($B9,月次ピボット!$A:$N,MATCH(G$5,月次ピボット!$B$3:$M$3,0)+1,FALSE)) -> 3623791 | H9: =IF(ISERROR(VLOOKUP($B9,月次ピボット!$A:$N,MATCH(H$5,月次ピボット!$B$3:$M$3,0)+1,FALSE)),0,VLOOKUP($B9,月次ピボット!$A:$N,MATCH(H$5,月次ピボット!$B$3:$M$3,0)+1,FALSE)) -> 3640449 | I9: =IF(ISERROR(VLOOKUP($B9,月次ピボット!$A:$N,MATCH(I$5,月次ピボット!$B$3:$M$3,0)+1,FALSE)),0,VLOOKUP($B9,月次ピボット!$A:$N,MATCH(I$5,月次ピボット!$B$3:$M$3,0)+1,FALSE)) -> 3321745 | J9: =IF(ISERROR(VLOOKUP($B9,月次ピボット!$A:$N,MATCH(J$5,月次ピボット!$B$3:$M$3,0)+1,FALSE)),0,VLOOKUP($B9,月次ピボット!$A:$N,MATCH(J$5,月次ピボット!$B$3:$M$3,0)+1,FALSE)) -> 3407612 | K9: =IF(ISERROR(VLOOKUP($B9,月次ピボット!$A:$N,MATCH(K$5,月次ピボット!$B$3:$M$3,0)+1,FALSE)),0,VLOOKUP($B9,月次ピボット!$A:$N,MATCH(K$5,月次ピボット!$B$3:$M$3,0)+1,FALSE)) -> 0 | L9: =IF(ISERROR(VLOOKUP($B9,月次ピボット!$A:$N,MATCH(L$5,月次ピボット!$B$3:$M$3,0)+1,FALSE)),0,VLOOKUP($B9,月次ピボット!$A:$N,MATCH(L$5,月次ピボット!$B$3:$M$3,0)+1,FALSE)) -> 0 | M9: =IF(ISERROR(VLOOKUP($B9,月次ピボット!$A:$N,MATCH(M$5,月次ピボット!$B$3:$M$3,0)+1,FALSE)),0,VLOOKUP($B9,月次ピボット!$A:$N,MATCH(M$5,月次ピボット!$B$3:$M$3,0)+1,FALSE)) -> 0 | N9: =IF(ISERROR(VLOOKUP($B9,月次ピボット!$A:$N,MATCH(N$5,月次ピボット!$B$3:$M$3,0)+1,FALSE)),0,VLOOKUP($B9,月次ピボット!$A:$N,MATCH(N$5,月次ピボット!$B$3:$M$3,0)+1,FALSE)) -> 0
B10: 売掛金回収 | C10: =IF(ISERROR(VLOOKUP($B10,月次ピボット!$A:$N,MATCH(C$5,月次ピボット!$B$3:$M$3,0)+1,FALSE)),0,VLOOKUP($B10,月次ピボット!$A:$N,MATCH(C$5,月次ピボット!$B$3:$M$3,0)+1,FALSE)) -> 11208357 | D10: =IF(ISERROR(VLOOKUP($B10,月次ピボット!$A:$N,MATCH(D$5,月次ピボット!$B$3:$M$3,0)+1,FALSE)),0,VLOOKUP($B10,月次ピボット!$A:$N,MATCH(D$5,月次ピボット!$B$3:$M$3,0)+1,FALSE)) -> 18802038 | E10: =IF(ISERROR(VLOOKUP($B10,月次ピボット!$A:$N,MATCH(E$5,月次ピボット!$B$3:$M$3,0)+1,FALSE)),0,VLOOKUP($B10,月次ピボット!$A:$N,MATCH(E$5,月次ピボット!$B$3:$M$3,0)+1,FALSE)) -> 21647624 | F10: =IF(ISERROR(VLOOKUP($B10,月次ピボット!$A:$N,MATCH(F$5,月次ピボット!$B$3:$M$3,0)+1,FALSE)),0,VLOOKUP($B10,月次ピボット!$A:$N,MATCH(F$5,月次ピボット!$B$3:$M$3,0)+1,FALSE)) -> 17355144 | G10: =IF(ISERROR(VLOOKUP($B10,月次ピボット!$A:$N,MATCH(G$5,月次ピボット!$B$3:$M$3,0)+1,FALSE)),0,VLOOKUP($B10,月次ピボット!$A:$N,MATCH(G$5,月次ピボット!$B$3:$M$3,0)+1,FALSE)) -> 19032267 | H10: =IF(ISERROR(VLOOKUP($B10,月次ピボット!$A:$N,MATCH(H$5,月次ピボット!$B$3:$M$3,0)+1,FALSE)),0,VLOOKUP($B10,月次ピボット!$A:$N,MATCH(H$5,月次ピボット!$B$3:$M$3,0)+1,FALSE)) -> 23142392 | I10: =IF(ISERROR(VLOOKUP($B10,月次ピボット!$A:$N,MATCH(I$5,月次ピボット!$B$3:$M$3,0)+1,FALSE)),0,VLOOKUP($B10,月次ピボット!$A:$N,MATCH(I$5,月次ピボット!$B$3:$M$3,0)+1,FALSE)) -> 24154601 | J10: =IF(ISERROR(VLOOKUP($B10,月次ピボット!$A:$N,MATCH(J$5,月次ピボット!$B$3:$M$3,0)+1,FALSE)),0,VLOOKUP($B10,月次ピボット!$A:$N,MATCH(J$5,月次ピボット!$B$3:$M$3,0)+1,FALSE)) -> 17093963 | K10: =IF(ISERROR(VLOOKUP($B10,月次ピボット!$A:$N,MATCH(K$5,月次ピボット!$B$3:$M$3,0)+1,FALSE)),0,VLOOKUP($B10,月次ピボット!$A:$N,MATCH(K$5,月次ピボット!$B$3:$M$3,0)+1,FALSE)) -> 0 | L10: =IF(ISERROR(VLOOKUP($B10,月次ピボット!$A:$N,MATCH(L$5,月次ピボット!$B$3:$M$3,0)+1,FALSE)),0,VLOOKUP($B10,月次ピボット!$A:$N,MATCH(L$5,月次ピボット!$B$3:$M$3,0)+1,FALSE)) -> 0 | M10: =IF(ISERROR(VLOOKUP($B10,月次ピボット!$A:$N,MATCH(M$5,月次ピボット!$B$3:$M$3,0)+1,FALSE)),0,VLOOKUP($B10,月次ピボット!$A:$N,MATCH(M$5,月次ピボット!$B$3:$M$3,0)+1,FALSE)) -> 0 | N10: =IF(ISERROR(VLOOKUP($B10,月次ピボット!$A:$N,MATCH(N$5,月次ピボット!$B$3:$M$3,0)+1,FALSE)),0,VLOOKUP($B10,月次ピボット!$A:$N,MATCH(N$5,月次ピボット!$B$3:$M$3,0)+1,FALSE)) -> 0
B11: 受取手形期日取立 | C11: =IF(ISERROR(VLOOKUP($B11,月次ピボット!$A:$N,MATCH(C$5,月次ピボット!$B$3:$M$3,0)+1,FALSE)),0,VLOOKUP($B11,月次ピボット!$A:$N,MATCH(C$5,月次ピボット!$B$3:$M$3,0)+1,FALSE)) -> 273420 | D11: =IF(ISERROR(VLOOKUP($B11,月次ピボット!$A:$N,MATCH(D$5,月次ピボット!$B$3:$M$3,0)+1,FALSE)),0,VLOOKUP($B11,月次ピボット!$A:$N,MATCH(D$5,月次ピボット!$B$3:$M$3,0)+1,FALSE)) -> 2385598 | E11: =IF(ISERROR(VLOOKUP($B11,月次ピボット!$A:$N,MATCH(E$5,月次ピボット!$B$3:$M$3,0)+1,FALSE)),0,VLOOKUP($B11,月次ピボット!$A:$N,MATCH(E$5,月次ピボット!$B$3:$M$3,0)+1,FALSE)) -> 3047771 | F11: =IF(ISERROR(VLOOKUP($B11,月次ピボット!$A:$N,MATCH(F$5,月次ピボット!$B$3:$M$3,0)+1,FALSE)),0,VLOOKUP($B11,月次ピボット!$A:$N,MATCH(F$5,月次ピボット!$B$3:$M$3,0)+1,FALSE)) -> 1273654 | G11: =IF(ISERROR(VLOOKUP($B11,月次ピボット!$A:$N,MATCH(G$5,月次ピボット!$B$3:$M$3,0)+1,FALSE)),0,VLOOKUP($B11,月次ピボット!$A:$N,MATCH(G$5,月次ピボット!$B$3:$M$3,0)+1,FALSE)) -> 3734949 | H11: =IF(ISERROR(VLOOKUP($B11,月次ピボット!$A:$N,MATCH(H$5,月次ピボット!$B$3:$M$3,0)+1,FALSE)),0,VLOOKUP($B11,月次ピボット!$A:$N,MATCH(H$5,月次ピボット!$B$3:$M$3,0)+1,FALSE)) -> 3762685 | I11: =IF(ISERROR(VLOOKUP($B11,月次ピボット!$A:$N,MATCH(I$5,月次ピボット!$B$3:$M$3,0)+1,FALSE)),0,VLOOKUP($B11,月次ピボット!$A:$N,MATCH(I$5,月次ピボット!$B$3:$M$3,0)+1,FALSE)) -> 4739300 | J11: =IF(ISERROR(VLOOKUP($B11,月次ピボット!$A:$N,MATCH(J$5,月次ピボット!$B$3:$M$3,0)+1,FALSE)),0,VLOOKUP($B11,月次ピボット!$A:$N,MATCH(J$5,月次ピボット!$B$3:$M$3,0)+1,FALSE)) -> 4646519 | K11: =IF(ISERROR(VLOOKUP($B11,月次ピボット!$A:$N,MATCH(K$5,月次ピボット!$B$3:$M$3,0)+1,FALSE)),0,VLOOKUP($B11,月次ピボット!$A:$N,MATCH(K$5,月次ピボット!$B$3:$M$3,0)+1,FALSE)) -> 0 | L11: =IF(ISERROR(VLOOKUP($B11,月次ピボット!$A:$N,MATCH(L$5,月次ピボット!$B$3:$M$3,0)+1,FALSE)),0,VLOOKUP($B11,月次ピボット!$A:$N,MATCH(L$5,月次ピボット!$B$3:$M$3,0)+1,FALSE)) -> 0 | M11: =IF(ISERROR(VLOOKUP($B11,月次ピボット!$A:$N,MATCH(M$5,月次ピボット!$B$3:$M$3,0)+1,FALSE)),0,VLOOKUP($B11,月次ピボット!$A:$N,MATCH(M$5,月次ピボット!$B$3:$M$3,0)+1,FALSE)) -> 0 | N11: =IF(ISERROR(VLOOKUP($B11,月次ピボット!$A:$N,MATCH(N$5,月次ピボット!$B$3:$M$3,0)+1,FALSE)),0,VLOOKUP($B11,月次ピボット!$A:$N,MATCH(N$5,月次ピボット!$B$3:$M$3,0)+1,FALSE)) -> 0
B12: 受取手形割引 | C12: =IF(ISERROR(VLOOKUP($B12,月次ピボット!$A:$N,MATCH(C$5,月次ピボット!$B$3:$M$3,0)+1,FALSE)),0,VLOOKUP($B12,月次ピボット!$A:$N,MATCH(C$5,月次ピボット!$B$3:$M$3,0)+1,FALSE)) -> 0 | D12: =IF(ISERROR(VLOOKUP($B12,月次ピボット!$A:$N,MATCH(D$5,月次ピボット!$B$3:$M$3,0)+1,FALSE)),0,VLOOKUP($B12,月次ピボット!$A:$N,MATCH(D$5,月次ピボット!$B$3:$M$3,0)+1,FALSE)) -> 0 | E12: =IF(ISERROR(VLOOKUP($B12,月次ピボット!$A:$N,MATCH(E$5,月次ピボット!$B$3:$M$3,0)+1,FALSE)),0,VLOOKUP($B12,月次ピボット!$A:$N,MATCH(E$5,月次ピボット!$B$3:$M$3,0)+1,FALSE)) -> 0 | F12: =IF(ISERROR(VLOOKUP($B12,月次ピボット!$A:$N,MATCH(F$5,月次ピボット!$B$3:$M$3,0)+1,FALSE)),0,VLOOKUP($B12,月次ピボット!$A:$N,MATCH(F$5,月次ピボット!$B$3:$M$3,0)+1,FALSE)) -> 0 | G12: =IF(ISERROR(VLOOKUP($B12,月次ピボット!$A:$N,MATCH(G$5,月次ピボット!$B$3:$M$3,0)+1,FALSE)),0,VLOOKUP($B12,月次ピボット!$A:$N,MATCH(G$5,月次ピボット!$B$3:$M$3,0)+1,FALSE)) -> 0 | H12: =IF(ISERROR(VLOOKUP($B12,月次ピボット!$A:$N,MATCH(H$5,月次ピボット!$B$3:$M$3,0)+1,FALSE)),0,VLOOKUP($B12,月次ピボット!$A:$N,MATCH(H$5,月次ピボット!$B$3:$M$3,0)+1,FALSE)) -> 0 | I12: =IF(ISERROR(VLOOKUP($B12,月次ピボット!$A:$N,MATCH(I$5,月次ピボット!$B$3:$M$3,0)+1,FALSE)),0,VLOOKUP($B12,月次ピボット!$A:$N,MATCH(I$5,月次ピボット!$B$3:$M$3,0)+1,FALSE)) -> 0 | J12: =IF(ISERROR(VLOOKUP($B12,月次ピボット!$A:$N,MATCH(J$5,月次ピボット!$B$3:$M$3,0)+1,FALSE)),0,VLOOKUP($B12,月次ピボット!$A:$N,MATCH(J$5,月次ピボット!$B$3:$M$3,0)+1,FALSE)) -> 0 | K12: =IF(ISERROR(VLOOKUP($B12,月次ピボット!$A:$N,MATCH(K$5,月次ピボット!$B$3:$M$3,0)+1,FALSE)),0,VLOOKUP($B12,月次ピボット!$A:$N,MATCH(K$5,月次ピボット!$B$3:$M$3,0)+1,FALSE)) -> 0 | L12: =IF(ISERROR(VLOOKUP($B12,月次ピボット!$A:$N,MATCH(L$5,月次ピボット!$B$3:$M$3,0)+1,FALSE)),0,VLOOKUP($B12,月次ピボット!$A:$N,MATCH(L$5,月次ピボット!$B$3:$M$3,0)+1,FALSE)) -> 0 | M12: =IF(ISERROR(VLOOKUP($B12,月次ピボット!$A:$N,MATCH(M$5,月次ピボット!$B$3:$M$3,0)+1,FALSE)),0,VLOOKUP($B12,月次ピボット!$A:$N,MATCH(M$5,月次ピボット!$B$3:$M$3,0)+1,FALSE)) -> 0 | N12: =IF(ISERROR(VLOOKUP($B12,月次ピボット!$A:$N,MATCH(N$5,月次ピボット!$B$3:$M$3,0)+1,FALSE)),0,VLOOKUP($B12,月次ピボット!$A:$N,MATCH(N$5,月次ピボット!$B$3:$M$3,0)+1,FALSE)) -> 0
B13: 利息等収入 | C13: =IF(ISERROR(VLOOKUP($B13,月次ピボット!$A:$N,MATCH(C$5,月次ピボット!$B$3:$M$3,0)+1,FALSE)),0,VLOOKUP($B13,月次ピボット!$A:$N,MATCH(C$5,月次ピボット!$B$3:$M$3,0)+1,FALSE)) -> 0 | D13: =IF(ISERROR(VLOOKUP($B13,月次ピボット!$A:$N,MATCH(D$5,月次ピボット!$B$3:$M$3,0)+1,FALSE)),0,VLOOKUP($B13,月次ピボット!$A:$N,MATCH(D$5,月次ピボット!$B$3:$M$3,0)+1,FALSE)) -> 640 | E13: =IF(ISERROR(VLOOKUP($B13,月次ピボット!$A:$N,MATCH(E$5,月次ピボット!$B$3:$M$3,0)+1,FALSE)),0,VLOOKUP($B13,月次ピボット!$A:$N,MATCH(E$5,月次ピボット!$B$3:$M$3,0)+1,FALSE)) -> 0 | F13: =IF(ISERROR(VLOOKUP($B13,月次ピボット!$A:$N,MATCH(F$5,月次ピボット!$B$3:$M$3,0)+1,FALSE)),0,VLOOKUP($B13,月次ピボット!$A:$N,MATCH(F$5,月次ピボット!$B$3:$M$3,0)+1,FALSE)) -> 0 | G13: =IF(ISERROR(VLOOKUP($B13,月次ピボット!$A:$N,MATCH(G$5,月次ピボット!$B$3:$M$3,0)+1,FALSE)),0,VLOOKUP($B13,月次ピボット!$A:$N,MATCH(G$5,月次ピボット!$B$3:$M$3,0)+1,FALSE)) -> 1865 | H13: =IF(ISERROR(VLOOKUP($B13,月次ピボット!$A:$N,MATCH(H$5,月次ピボット!$B$3:$M$3,0)+1,FALSE)),0,VLOOKUP($B13,月次ピボット!$A:$N,MATCH(H$5,月次ピボット!$B$3:$M$3,0)+1,FALSE)) -> 0 | I13: =IF(ISERROR(VLOOKUP($B13,月次ピボット!$A:$N,MATCH(I$5,月次ピボット!$B$3:$M$3,0)+1,FALSE)),0,VLOOKUP($B13,月次ピボット!$A:$N,MATCH(I$5,月次ピボット!$B$3:$M$3,0)+1,FALSE)) -> 0 | J13: =IF(ISERROR(VLOOKUP($B13,月次ピボット!$A:$N,MATCH(J$5,月次ピボット!$B$3:$M$3,0)+1,FALSE)),0,VLOOKUP($B13,月次ピボット!$A:$N,MATCH(J$5,月次ピボット!$B$3:$M$3,0)+1,FALSE)) -> 0 | K13: =IF(ISERROR(VLOOKUP($B13,月次ピボット!$A:$N,MATCH(K$5,月次ピボット!$B$3:$M$3,0)+1,FALSE)),0,VLOOKUP($B13,月次ピボット!$A:$N,MATCH(K$5,月次ピボット!$B$3:$M$3,0)+1,FALSE)) -> 0 | L13: =IF(ISERROR(VLOOKUP($B13,月次ピボット!$A:$N,MATCH(L$5,月次ピボット!$B$3:$M$3,0)+1,FALSE)),0,VLOOKUP($B13,月次ピボット!$A:$N,MATCH(L$5,月次ピボット!$B$3:$M$3,0)+1,FALSE)) -> 0 | M13: =IF(ISERROR(VLOOKUP($B13,月次ピボット!$A:$N,MATCH(M$5,月次ピボット!$B$3:$M$3,0)+1,FALSE)),0,VLOOKUP($B13,月次ピボット!$A:$N,MATCH(M$5,月次ピボット!$B$3:$M$3,0)+1,FALSE)) -> 0 | N13: =IF(ISERROR(VLOOKUP($B13,月次ピボット!$A:$N,MATCH(N$5,月次ピボット!$B$3:$M$3,0)+1,FALSE)),0,VLOOKUP($B13,月次ピボット!$A:$N,MATCH(N$5,月次ピボット!$B$3:$M$3,0)+1,FALSE)) -> 0
B14: 雑収入 | C14: =IF(ISERROR(VLOOKUP($B14,月次ピボット!$A:$N,MATCH(C$5,月次ピボット!$B$3:$M$3,0)+1,FALSE)),0,VLOOKUP($B14,月次ピボット!$A:$N,MATCH(C$5,月次ピボット!$B$3:$M$3,0)+1,FALSE)) -> 0 | D14: =IF(ISERROR(VLOOKUP($B14,月次ピボット!$A:$N,MATCH(D$5,月次ピボット!$B$3:$M$3,0)+1,FALSE)),0,VLOOKUP($B14,月次ピボット!$A:$N,MATCH(D$5,月次ピボット!$B$3:$M$3,0)+1,FALSE)) -> 0 | E14: =IF(ISERROR(VLOOKUP($B14,月次ピボット!$A:$N,MATCH(E$5,月次ピボット!$B$3:$M$3,0)+1,FALSE)),0,VLOOKUP($B14,月次ピボット!$A:$N,MATCH(E$5,月次ピボット!$B$3:$M$3,0)+1,FALSE)) -> 0 | F14: =IF(ISERROR(VLOOKUP($B14,月次ピボット!$A:$N,MATCH(F$5,月次ピボット!$B$3:$M$3,0)+1,FALSE)),0,VLOOKUP($B14,月次ピボット!$A:$N,MATCH(F$5,月次ピボット!$B$3:$M$3,0)+1,FALSE)) -> 0 | G14: =IF(ISERROR(VLOOKUP($B14,月次ピボット!$A:$N,MATCH(G$5,月次ピボット!$B$3:$M$3,0)+1,FALSE)),0,VLOOKUP($B14,月次ピボット!$A:$N,MATCH(G$5,月次ピボット!$B$3:$M$3,0)+1,FALSE)) -> 0 | H14: =IF(ISERROR(VLOOKUP($B14,月次ピボット!$A:$N,MATCH(H$5,月次ピボット!$B$3:$M$3,0)+1,FALSE)),0,VLOOKUP($B14,月次ピボット!$A:$N,MATCH(H$5,月次ピボット!$B$3:$M$3,0)+1,FALSE)) -> 0 | I14: =IF(ISERROR(VLOOKUP($B14,月次ピボット!$A:$N,MATCH(I$5,月次ピボット!$B$3:$M$3,0)+1,FALSE)),0,VLOOKUP($B14,月次ピボット!$A:$N,MATCH(I$5,月次ピボット!$B$3:$M$3,0)+1,FALSE)) -> 0 | J14: =IF(ISERROR(VLOOKUP($B14,月次ピボット!$A:$N,MATCH(J$5,月次ピボット!$B$3:$M$3,0)+1,FALSE)),0,VLOOKUP($B14,月次ピボット!$A:$N,MATCH(J$5,月次ピボット!$B$3:$M$3,0)+1,FALSE)) -> 0 | K14: =IF(ISERROR(VLOOKUP($B14,月次ピボット!$A:$N,MATCH(K$5,月次ピボット!$B$3:$M$3,0)+1,FALSE)),0,VLOOKUP($B14,月次ピボット!$A:$N,MATCH(K$5,月次ピボット!$B$3:$M$3,0)+1,FALSE)) -> 0 | L14: =IF(ISERROR(VLOOKUP($B14,月次ピボット!$A:$N,MATCH(L$5,月次ピボット!$B$3:$M$3,0)+1,FALSE)),0,VLOOKUP($B14,月次ピボット!$A:$N,MATCH(L$5,月次ピボット!$B$3:$M$3,0)+1,FALSE)) -> 0 | M14: =IF(ISERROR(VLOOKUP($B14,月次ピボット!$A:$N,MATCH(M$5,月次ピボット!$B$3:$M$3,0)+1,FALSE)),0,VLOOKUP($B14,月次ピボット!$A:$N,MATCH(M$5,月次ピボット!$B$3:$M$3,0)+1,FALSE)) -> 0 | N14: =IF(ISERROR(VLOOKUP($B14,月次ピボット!$A:$N,MATCH(N$5,月次ピボット!$B$3:$M$3,0)+1,FALSE)),0,VLOOKUP($B14,月次ピボット!$A:$N,MATCH(N$5,月次ピボット!$B$3:$M$3,0)+1,FALSE)) -> 0
B15: その他経常収入 | C15: =IF(ISERROR(VLOOKUP($B15,月次ピボット!$A:$N,MATCH(C$5,月次ピボット!$B$3:$M$3,0)+1,FALSE)),0,VLOOKUP($B15,月次ピボット!$A:$N,MATCH(C$5,月次ピボット!$B$3:$M$3,0)+1,FALSE)) -> 0 | D15: =IF(ISERROR(VLOOKUP($B15,月次ピボット!$A:$N,MATCH(D$5,月次ピボット!$B$3:$M$3,0)+1,FALSE)),0,VLOOKUP($B15,月次ピボット!$A:$N,MATCH(D$5,月次ピボット!$B$3:$M$3,0)+1,FALSE)) -> -450000 | E15: =IF(ISERROR(VLOOKUP($B15,月次ピボット!$A:$N,MATCH(E$5,月次ピボット!$B$3:$M$3,0)+1,FALSE)),0,VLOOKUP($B15,月次ピボット!$A:$N,MATCH(E$5,月次ピボット!$B$3:$M$3,0)+1,FALSE)) -> 0 | F15: =IF(ISERROR(VLOOKUP($B15,月次ピボット!$A:$N,MATCH(F$5,月次ピボット!$B$3:$M$3,0)+1,FALSE)),0,VLOOKUP($B15,月次ピボット!$A:$N,MATCH(F$5,月次ピボット!$B$3:$M$3,0)+1,FALSE)) -> 0 | G15: =IF(ISERROR(VLOOKUP($B15,月次ピボット!$A:$N,MATCH(G$5,月次ピボット!$B$3:$M$3,0)+1,FALSE)),0,VLOOKUP($B15,月次ピボット!$A:$N,MATCH(G$5,月次ピボット!$B$3:$M$3,0)+1,FALSE)) -> -568519 | H15: =IF(ISERROR(VLOOKUP($B15,月次ピボット!$A:$N,MATCH(H$5,月次ピボット!$B$3:$M$3,0)+1,FALSE)),0,VLOOKUP($B15,月次ピボット!$A:$N,MATCH(H$5,月次ピボット!$B$3:$M$3,0)+1,FALSE)) -> -162450 | I15: =IF(ISERROR(VLOOKUP($B15,月次ピボット!$A:$N,MATCH(I$5,月次ピボット!$B$3:$M$3,0)+1,FALSE)),0,VLOOKUP($B15,月次ピボット!$A:$N,MATCH(I$5,月次ピボット!$B$3:$M$3,0)+1,FALSE)) -> -442000 | J15: =IF(ISERROR(VLOOKUP($B15,月次ピボット!$A:$N,MATCH(J$5,月次ピボット!$B$3:$M$3,0)+1,FALSE)),0,VLOOKUP($B15,月次ピボット!$A:$N,MATCH(J$5,月次ピボット!$B$3:$M$3,0)+1,FALSE)) -> 2500000 | K15: =IF(ISERROR(VLOOKUP($B15,月次ピボット!$A:$N,MATCH(K$5,月次ピボット!$B$3:$M$3,0)+1,FALSE)),0,VLOOKUP($B15,月次ピボット!$A:$N,MATCH(K$5,月次ピボット!$B$3:$M$3,0)+1,FALSE)) -> 0 | L15: =IF(ISERROR(VLOOKUP($B15,月次ピボット!$A:$N,MATCH(L$5,月次ピボット!$B$3:$M$3,0)+1,FALSE)),0,VLOOKUP($B15,月次ピボット!$A:$N,MATCH(L$5,月次ピボット!$B$3:$M$3,0)+1,FALSE)) -> 0 | M15: =IF(ISERROR(VLOOKUP($B15,月次ピボット!$A:$N,MATCH(M$5,月次ピボット!$B$3:$M$3,0)+1,FALSE)),0,VLOOKUP($B15,月次ピボット!$A:$N,MATCH(M$5,月次ピボット!$B$3:$M$3,0)+1,FALSE)) -> 0 | N15: =IF(ISERROR(VLOOKUP($B15,月次ピボット!$A:$N,MATCH(N$5,月次ピボット!$B$3:$M$3,0)+1,FALSE)),0,VLOOKUP($B15,月次ピボット!$A:$N,MATCH(N$5,月次ピボット!$B$3:$M$3,0)+1,FALSE)) -> 0
B16: 経常収入合計 | C16: =SUM(C9:C15) -> 14434406 | D16: =SUM(D9:D15) -> 23849472 | E16: 28317313 | F16: 21979242 | G16: 25824353 | H16: 30383076 | I16: =SUM(I9:I15) -> 31773646 | J16: 27648094 | K16: 0 | L16: 0 | M16: 0 | N16: 0
B18: 経常支出
B19: 現金仕入 | C19: =IF(ISERROR(VLOOKUP($B19,月次ピボット!$A:$N,MATCH(C$5,月次ピボット!$B$3:$M$3,0)+1,FALSE)),0,VLOOKUP($B19,月次ピボット!$A:$N,MATCH(C$5,月次ピボット!$B$3:$M$3,0)+1,FALSE)) -> 0 | D19: =IF(ISERROR(VLOOKUP($B19,月次ピボット!$A:$N,MATCH(D$5,月次ピボット!$B$3:$M$3,0)+1,FALSE)),0,VLOOKUP($B19,月次ピボット!$A:$N,MATCH(D$5,月次ピボット!$B$3:$M$3,0)+1,FALSE)) -> 0 | E19: =IF(ISERROR(VLOOKUP($B19,月次ピボット!$A:$N,MATCH(E$5,月次ピボット!$B$3:$M$3,0)+1,FALSE)),0,VLOOKUP($B19,月次ピボット!$A:$N,MATCH(E$5,月次ピボット!$B$3:$M$3,0)+1,FALSE)) -> 0 | F19: =IF(ISERROR(VLOOKUP($B19,月次ピボット!$A:$N,MATCH(F$5,月次ピボット!$B$3:$M$3,0)+1,FALSE)),0,VLOOKUP($B19,月次ピボット!$A:$N,MATCH(F$5,月次ピボット!$B$3:$M$3,0)+1,FALSE)) -> 0 | G19: =IF(ISERROR(VLOOKUP($B19,月次ピボット!$A:$N,MATCH(G$5,月次ピボット!$B$3:$M$3,0)+1,FALSE)),0,VLOOKUP($B19,月次ピボット!$A:$N,MATCH(G$5,月次ピボット!$B$3:$M$3,0)+1,FALSE)) -> 0 | H19: =IF(ISERROR(VLOOKUP($B19,月次ピボット!$A:$N,MATCH(H$5,月次ピボット!$B$3:$M$3,0)+1,FALSE)),0,VLOOKUP($B19,月次ピボット!$A:$N,MATCH(H$5,月次ピボット!$B$3:$M$3,0)+1,FALSE)) -> 0 | I19: =IF(ISERROR(VLOOKUP($B19,月次ピボット!$A:$N,MATCH(I$5,月次ピボット!$B$3:$M$3,0)+1,FALSE)),0,VLOOKUP($B19,月次ピボット!$A:$N,MATCH(I$5,月次ピボット!$B$3:$M$3,0)+1,FALSE)) -> 0 | J19: =IF(ISERROR(VLOOKUP($B19,月次ピボット!$A:$N,MATCH(J$5,月次ピボット!$B$3:$M$3,0)+1,FALSE)),0,VLOOKUP($B19,月次ピボット!$A:$N,MATCH(J$5,月次ピボット!$B$3:$M$3,0)+1,FALSE)) -> 0 | K19: =IF(ISERROR(VLOOKUP($B19,月次ピボット!$A:$N,MATCH(K$5,月次ピボット!$B$3:$M$3,0)+1,FALSE)),0,VLOOKUP($B19,月次ピボット!$A:$N,MATCH(K$5,月次ピボット!$B$3:$M$3,0)+1,FALSE)) -> 0 | L19: =IF(ISERROR(VLOOKUP($B19,月次ピボット!$A:$N,MATCH(L$5,月次ピボット!$B$3:$M$3,0)+1,FALSE)),0,VLOOKUP($B19,月次ピボット!$A:$N,MATCH(L$5,月次ピボット!$B$3:$M$3,0)+1,FALSE)) -> 0 | M19: =IF(ISERROR(VLOOKUP($B19,月次ピボット!$A:$N,MATCH(M$5,月次ピボット!$B$3:$M$3,0)+1,FALSE)),0,VLOOKUP($B19,月次ピボット!$A:$N,MATCH(M$5,月次ピボット!$B$3:$M$3,0)+1,FALSE)) -> 0 | N19: =IF(ISERROR(VLOOKUP($B19,月次ピボット!$A:$N,MATCH(N$5,月次ピボット!$B$3:$M$3,0)+1,FALSE)),0,VLOOKUP($B19,月次ピボット!$A:$N,MATCH(N$5,月次ピボット!$B$3:$M$3,0)+1,FALSE)) -> 0
B20: 買掛金支払 | C20: =IF(ISERROR(VLOOKUP($B20,月次ピボット!$A:$N,MATCH(C$5,月次ピボット!$B$3:$M$3,0)+1,FALSE)),0,VLOOKUP($B20,月次ピボット!$A:$N,MATCH(C$5,月次ピボット!$B$3:$M$3,0)+1,FALSE)) -> 8178262 | D20: =IF(ISERROR(VLOOKUP($B20,月次ピボット!$A:$N,MATCH(D$5,月次ピボット!$B$3:$M$3,0)+1,FALSE)),0,VLOOKUP($B20,月次ピボット!$A:$N,MATCH(D$5,月次ピボット!$B$3:$M$3,0)+1,FALSE)) -> 9753120 | E20: =IF(ISERROR(VLOOKUP($B20,月次ピボット!$A:$N,MATCH(E$5,月次ピボット!$B$3:$M$3,0)+1,FALSE)),0,VLOOKUP($B20,月次ピボット!$A:$N,MATCH(E$5,月次ピボット!$B$3:$M$3,0)+1,FALSE)) -> 21288579 | F20: =IF(ISERROR(VLOOKUP($B20,月次ピボット!$A:$N,MATCH(F$5,月次ピボット!$B$3:$M$3,0)+1,FALSE)),0,VLOOKUP($B20,月次ピボット!$A:$N,MATCH(F$5,月次ピボット!$B$3:$M$3,0)+1,FALSE)) -> 14939352 | G20: =IF(ISERROR(VLOOKUP($B20,月次ピボット!$A:$N,MATCH(G$5,月次ピボット!$B$3:$M$3,0)+1,FALSE)),0,VLOOKUP($B20,月次ピボット!$A:$N,MATCH(G$5,月次ピボット!$B$3:$M$3,0)+1,FALSE)) -> 21381980 | H20: =IF(ISERROR(VLOOKUP($B20,月次ピボット!$A:$N,MATCH(H$5,月次ピボット!$B$3:$M$3,0)+1,FALSE)),0,VLOOKUP($B20,月次ピボット!$A:$N,MATCH(H$5,月次ピボット!$B$3:$M$3,0)+1,FALSE)) -> 18618842 | I20: =IF(ISERROR(VLOOKUP($B20,月次ピボット!$A:$N,MATCH(I$5,月次ピボット!$B$3:$M$3,0)+1,FALSE)),0,VLOOKUP($B20,月次ピボット!$A:$N,MATCH(I$5,月次ピボット!$B$3:$M$3,0)+1,FALSE)) -> 18815277 | J20: =IF(ISERROR(VLOOKUP($B20,月次ピボット!$A:$N,MATCH(J$5,月次ピボット!$B$3:$M$3,0)+1,FALSE)),0,VLOOKUP($B20,月次ピボット!$A:$N,MATCH(J$5,月次ピボット!$B$3:$M$3,0)+1,FALSE)) -> 15705685 | K20: =IF(ISERROR(VLOOKUP($B20,月次ピボット!$A:$N,MATCH(K$5,月次ピボット!$B$3:$M$3,0)+1,FALSE)),0,VLOOKUP($B20,月次ピボット!$A:$N,MATCH(K$5,月次ピボット!$B$3:$M$3,0)+1,FALSE)) -> 0 | L20: =IF(ISERROR(VLOOKUP($B20,月次ピボット!$A:$N,MATCH(L$5,月次ピボット!$B$3:$M$3,0)+1,FALSE)),0,VLOOKUP($B20,月次ピボット!$A:$N,MATCH(L$5,月次ピボット!$B$3:$M$3,0)+1,FALSE)) -> 0 | M20: =IF(ISERROR(VLOOKUP($B20,月次ピボット!$A:$N,MATCH(M$5,月次ピボット!$B$3:$M$3,0)+1,FALSE)),0,VLOOKUP($B20,月次ピボット!$A:$N,MATCH(M$5,月次ピボット!$B$3:$M$3,0)+1,FALSE)) -> 0 | N20: =IF(ISERROR(VLOOKUP($B20,月次ピボット!$A:$N,MATCH(N$5,月次ピボット!$B$3:$M$3,0)+1,FALSE)),0,VLOOKUP($B20,月次ピボット!$A:$N,MATCH(N$5,月次ピボット!$B$3:$M$3,0)+1,FALSE)) -> 0
B21: 支払手形決済 | C21: =IF(ISERROR(VLOOKUP($B21,月次ピボット!$A:$N,MATCH(C$5,月次ピボット!$B$3:$M$3,0)+1,FALSE)),0,VLOOKUP($B21,月次ピボット!$A:$N,MATCH(C$5,月次ピボット!$B$3:$M$3,0)+1,FALSE)) -> 1060642 | D21: =IF(ISERROR(VLOOKUP($B21,月次ピボット!$A:$N,MATCH(D$5,月次ピボット!$B$3:$M$3,0)+1,FALSE)),0,VLOOKUP($B21,月次ピボット!$A:$N,MATCH(D$5,月次ピボット!$B$3:$M$3,0)+1,FALSE)) -> 3558215 | E21: =IF(ISERROR(VLOOKUP($B21,月次ピボット!$A:$N,MATCH(E$5,月次ピボット!$B$3:$M$3,0)+1,FALSE)),0,VLOOKUP($B21,月次ピボット!$A:$N,MATCH(E$5,月次ピボット!$B$3:$M$3,0)+1,FALSE)) -> 0 | F21: =IF(ISERROR(VLOOKUP($B21,月次ピボット!$A:$N,MATCH(F$5,月次ピボット!$B$3:$M$3,0)+1,FALSE)),0,VLOOKUP($B21,月次ピボット!$A:$N,MATCH(F$5,月次ピボット!$B$3:$M$3,0)+1,FALSE)) -> 0 | G21: =IF(ISERROR(VLOOKUP($B21,月次ピボット!$A:$N,MATCH(G$5,月次ピボット!$B$3:$M$3,0)+1,FALSE)),0,VLOOKUP($B21,月次ピボット!$A:$N,MATCH(G$5,月次ピボット!$B$3:$M$3,0)+1,FALSE)) -> 0 | H21: =IF(ISERROR(VLOOKUP($B21,月次ピボット!$A:$N,MATCH(H$5,月次ピボット!$B$3:$M$3,0)+1,FALSE)),0,VLOOKUP($B21,月次ピボット!$A:$N,MATCH(H$5,月次ピボット!$B$3:$M$3,0)+1,FALSE)) -> 0 | I21: =IF(ISERROR(VLOOKUP($B21,月次ピボット!$A:$N,MATCH(I$5,月次ピボット!$B$3:$M$3,0)+1,FALSE)),0,VLOOKUP($B21,月次ピボット!$A:$N,MATCH(I$5,月次ピボット!$B$3:$M$3,0)+1,FALSE)) -> 0 | J21: =IF(ISERROR(VLOOKUP($B21,月次ピボット!$A:$N,MATCH(J$5,月次ピボット!$B$3:$M$3,0)+1,FALSE)),0,VLOOKUP($B21,月次ピボット!$A:$N,MATCH(J$5,月次ピボット!$B$3:$M$3,0)+1,FALSE)) -> 0 | K21: =IF(ISERROR(VLOOKUP($B21,月次ピボット!$A:$N,MATCH(K$5,月次ピボット!$B$3:$M$3,0)+1,FALSE)),0,VLOOKUP($B21,月次ピボット!$A:$N,MATCH(K$5,月次ピボット!$B$3:$M$3,0)+1,FALSE)) -> 0 | L21: =IF(ISERROR(VLOOKUP($B21,月次ピボット!$A:$N,MATCH(L$5,月次ピボット!$B$3:$M$3,0)+1,FALSE)),0,VLOOKUP($B21,月次ピボット!$A:$N,MATCH(L$5,月次ピボット!$B$3:$M$3,0)+1,FALSE)) -> 0 | M21: =IF(ISERROR(VLOOKUP($B21,月次ピボット!$A:$N,MATCH(M$5,月次ピボット!$B$3:$M$3,0)+1,FALSE)),0,VLOOKUP($B21,月次ピボット!$A:$N,MATCH(M$5,月次ピボット!$B$3:$M$3,0)+1,FALSE)) -> 0 | N21: =IF(ISERROR(VLOOKUP($B21,月次ピボット!$A:$N,MATCH(N$5,月次ピボット!$B$3:$M$3,0)+1,FALSE)),0,VLOOKUP($B21,月次ピボット!$A:$N,MATCH(N$5,月次ピボット!$B$3:$M$3,0)+1,FALSE)) -> 0
B22: 人件費支出 | C22: =IF(ISERROR(VLOOKUP($B22,月次ピボット!$A:$N,MATCH(C$5,月次ピボット!$B$3:$M$3,0)+1,FALSE)),0,VLOOKUP($B22,月次ピボット!$A:$N,MATCH(C$5,月次ピボット!$B$3:$M$3,0)+1,FALSE)) -> 6200 | D22: =IF(ISERROR(VLOOKUP($B22,月次ピボット!$A:$N,MATCH(D$5,月次ピボット!$B$3:$M$3,0)+1,FALSE)),0,VLOOKUP($B22,月次ピボット!$A:$N,MATCH(D$5,月次ピボット!$B$3:$M$3,0)+1,FALSE)) -> 506015 | E22: =IF(ISERROR(VLOOKUP($B22,月次ピボット!$A:$N,MATCH(E$5,月次ピボット!$B$3:$M$3,0)+1,FALSE)),0,VLOOKUP($B22,月次ピボット!$A:$N,MATCH(E$5,月次ピボット!$B$3:$M$3,0)+1,FALSE)) -> 296186 | F22: =IF(ISERROR(VLOOKUP($B22,月次ピボット!$A:$N,MATCH(F$5,月次ピボット!$B$3:$M$3,0)+1,FALSE)),0,VLOOKUP($B22,月次ピボット!$A:$N,MATCH(F$5,月次ピボット!$B$3:$M$3,0)+1,FALSE)) -> 3788038 | G22: =IF(ISERROR(VLOOKUP($B22,月次ピボット!$A:$N,MATCH(G$5,月次ピボット!$B$3:$M$3,0)+1,FALSE)),0,VLOOKUP($B22,月次ピボット!$A:$N,MATCH(G$5,月次ピボット!$B$3:$M$3,0)+1,FALSE)) -> 421737 | H22: =IF(ISERROR(VLOOKUP($B22,月次ピボット!$A:$N,MATCH(H$5,月次ピボット!$B$3:$M$3,0)+1,FALSE)),0,VLOOKUP($B22,月次ピボット!$A:$N,MATCH(H$5,月次ピボット!$B$3:$M$3,0)+1,FALSE)) -> 297667 | I22: =IF(ISERROR(VLOOKUP($B22,月次ピボット!$A:$N,MATCH(I$5,月次ピボット!$B$3:$M$3,0)+1,FALSE)),0,VLOOKUP($B22,月次ピボット!$A:$N,MATCH(I$5,月次ピボット!$B$3:$M$3,0)+1,FALSE)) -> 324975 | J22: =IF(ISERROR(VLOOKUP($B22,月次ピボット!$A:$N,MATCH(J$5,月次ピボット!$B$3:$M$3,0)+1,FALSE)),0,VLOOKUP($B22,月次ピボット!$A:$N,MATCH(J$5,月次ピボット!$B$3:$M$3,0)+1,FALSE)) -> 323033 | K22: =IF(ISERROR(VLOOKUP($B22,月次ピボット!$A:$N,MATCH(K$5,月次ピボット!$B$3:$M$3,0)+1,FALSE)),0,VLOOKUP($B22,月次ピボット!$A:$N,MATCH(K$5,月次ピボット!$B$3:$M$3,0)+1,FALSE)) -> 0 | L22: =IF(ISERROR(VLOOKUP($B22,月次ピボット!$A:$N,MATCH(L$5,月次ピボット!$B$3:$M$3,0)+1,FALSE)),0,VLOOKUP($B22,月次ピボット!$A:$N,MATCH(L$5,月次ピボット!$B$3:$M$3,0)+1,FALSE)) -> 0 | M22: =IF(ISERROR(VLOOKUP($B22,月次ピボット!$A:$N,MATCH(M$5,月次ピボット!$B$3:$M$3,0)+1,FALSE)),0,VLOOKUP($B22,月次ピボット!$A:$N,MATCH(M$5,月次ピボット!$B$3:$M$3,0)+1,FALSE)) -> 0 | N22: =IF(ISERROR(VLOOKUP($B22,月次ピボット!$A:$N,MATCH(N$5,月次ピボット!$B$3:$M$3,0)+1,FALSE)),0,VLOOKUP($B22,月次ピボット!$A:$N,MATCH(N$5,月次ピボット!$B$3:$M$3,0)+1,FALSE)) -> 0
B23: 諸経費支出 | C23: =IF(ISERROR(VLOOKUP($B23,月次ピボット!$A:$N,MATCH(C$5,月次ピボット!$B$3:$M$3,0)+1,FALSE)),0,VLOOKUP($B23,月次ピボット!$A:$N,MATCH(C$5,月次ピボット!$B$3:$M$3,0)+1,FALSE)) -> 3857304 | D23: =IF(ISERROR(VLOOKUP($B23,月次ピボット!$A:$N,MATCH(D$5,月次ピボット!$B$3:$M$3,0)+1,FALSE)),0,VLOOKUP($B23,月次ピボット!$A:$N,MATCH(D$5,月次ピボット!$B$3:$M$3,0)+1,FALSE)) -> 3723020 | E23: =IF(ISERROR(VLOOKUP($B23,月次ピボット!$A:$N,MATCH(E$5,月次ピボット!$B$3:$M$3,0)+1,FALSE)),0,VLOOKUP($B23,月次ピボット!$A:$N,MATCH(E$5,月次ピボット!$B$3:$M$3,0)+1,FALSE)) -> 5327896 | F23: =IF(ISERROR(VLOOKUP($B23,月次ピボット!$A:$N,MATCH(F$5,月次ピボット!$B$3:$M$3,0)+1,FALSE)),0,VLOOKUP($B23,月次ピボット!$A:$N,MATCH(F$5,月次ピボット!$B$3:$M$3,0)+1,FALSE)) -> 3541118 | G23: =IF(ISERROR(VLOOKUP($B23,月次ピボット!$A:$N,MATCH(G$5,月次ピボット!$B$3:$M$3,0)+1,FALSE)),0,VLOOKUP($B23,月次ピボット!$A:$N,MATCH(G$5,月次ピボット!$B$3:$M$3,0)+1,FALSE)) -> 4190055 | H23: =IF(ISERROR(VLOOKUP($B23,月次ピボット!$A:$N,MATCH(H$5,月次ピボット!$B$3:$M$3,0)+1,FALSE)),0,VLOOKUP($B23,月次ピボット!$A:$N,MATCH(H$5,月次ピボット!$B$3:$M$3,0)+1,FALSE)) -> 3799921 | I23: =IF(ISERROR(VLOOKUP($B23,月次ピボット!$A:$N,MATCH(I$5,月次ピボット!$B$3:$M$3,0)+1,FALSE)),0,VLOOKUP($B23,月次ピボット!$A:$N,MATCH(I$5,月次ピボット!$B$3:$M$3,0)+1,FALSE)) -> 7103427 | J23: =IF(ISERROR(VLOOKUP($B23,月次ピボット!$A:$N,MATCH(J$5,月次ピボット!$B$3:$M$3,0)+1,FALSE)),0,VLOOKUP($B23,月次ピボット!$A:$N,MATCH(J$5,月次ピボット!$B$3:$M$3,0)+1,FALSE)) -> 3781354 | K23: =IF(ISERROR(VLOOKUP($B23,月次ピボット!$A:$N,MATCH(K$5,月次ピボット!$B$3:$M$3,0)+1,FALSE)),0,VLOOKUP($B23,月次ピボット!$A:$N,MATCH(K$5,月次ピボット!$B$3:$M$3,0)+1,FALSE)) -> 0 | L23: =IF(ISERROR(VLOOKUP($B23,月次ピボット!$A:$N,MATCH(L$5,月次ピボット!$B$3:$M$3,0)+1,FALSE)),0,VLOOKUP($B23,月次ピボット!$A:$N,MATCH(L$5,月次ピボット!$B$3:$M$3,0)+1,FALSE)) -> 0 | M23: =IF(ISERROR(VLOOKUP($B23,月次ピボット!$A:$N,MATCH(M$5,月次ピボット!$B$3:$M$3,0)+1,FALSE)),0,VLOOKUP($B23,月次ピボット!$A:$N,MATCH(M$5,月次ピボット!$B$3:$M$3,0)+1,FALSE)) -> 0 | N23: =IF(ISERROR(VLOOKUP($B23,月次ピボット!$A:$N,MATCH(N$5,月次ピボット!$B$3:$M$3,0)+1,FALSE)),0,VLOOKUP($B23,月次ピボット!$A:$N,MATCH(N$5,月次ピボット!$B$3:$M$3,0)+1,FALSE)) -> 0
B24: 利息等支出 | C24: =IF(ISERROR(VLOOKUP($B24,月次ピボット!$A:$N,MATCH(C$5,月次ピボット!$B$3:$M$3,0)+1,FALSE)),0,VLOOKUP($B24,月次ピボット!$A:$N,MATCH(C$5,月次ピボット!$B$3:$M$3,0)+1,FALSE)) -> 25891 | D24: =IF(ISERROR(VLOOKUP($B24,月次ピボット!$A:$N,MATCH(D$5,月次ピボット!$B$3:$M$3,0)+1,FALSE)),0,VLOOKUP($B24,月次ピボット!$A:$N,MATCH(D$5,月次ピボット!$B$3:$M$3,0)+1,FALSE)) -> 24468 | E24: =IF(ISERROR(VLOOKUP($B24,月次ピボット!$A:$N,MATCH(E$5,月次ピボット!$B$3:$M$3,0)+1,FALSE)),0,VLOOKUP($B24,月次ピボット!$A:$N,MATCH(E$5,月次ピボット!$B$3:$M$3,0)+1,FALSE)) -> 23045 | F24: =IF(ISERROR(VLOOKUP($B24,月次ピボット!$A:$N,MATCH(F$5,月次ピボット!$B$3:$M$3,0)+1,FALSE)),0,VLOOKUP($B24,月次ピボット!$A:$N,MATCH(F$5,月次ピボット!$B$3:$M$3,0)+1,FALSE)) -> 21621 | G24: =IF(ISERROR(VLOOKUP($B24,月次ピボット!$A:$N,MATCH(G$5,月次ピボット!$B$3:$M$3,0)+1,FALSE)),0,VLOOKUP($B24,月次ピボット!$A:$N,MATCH(G$5,月次ピボット!$B$3:$M$3,0)+1,FALSE)) -> 20195 | H24: =IF(ISERROR(VLOOKUP($B24,月次ピボット!$A:$N,MATCH(H$5,月次ピボット!$B$3:$M$3,0)+1,FALSE)),0,VLOOKUP($B24,月次ピボット!$A:$N,MATCH(H$5,月次ピボット!$B$3:$M$3,0)+1,FALSE)) -> 18769 | I24: =IF(ISERROR(VLOOKUP($B24,月次ピボット!$A:$N,MATCH(I$5,月次ピボット!$B$3:$M$3,0)+1,FALSE)),0,VLOOKUP($B24,月次ピボット!$A:$N,MATCH(I$5,月次ピボット!$B$3:$M$3,0)+1,FALSE)) -> 17342 | J24: =IF(ISERROR(VLOOKUP($B24,月次ピボット!$A:$N,MATCH(J$5,月次ピボット!$B$3:$M$3,0)+1,FALSE)),0,VLOOKUP($B24,月次ピボット!$A:$N,MATCH(J$5,月次ピボット!$B$3:$M$3,0)+1,FALSE)) -> 15914 | K24: =IF(ISERROR(VLOOKUP($B24,月次ピボット!$A:$N,MATCH(K$5,月次ピボット!$B$3:$M$3,0)+1,FALSE)),0,VLOOKUP($B24,月次ピボット!$A:$N,MATCH(K$5,月次ピボット!$B$3:$M$3,0)+1,FALSE)) -> 0 | L24: =IF(ISERROR(VLOOKUP($B24,月次ピボット!$A:$N,MATCH(L$5,月次ピボット!$B$3:$M$3,0)+1,FALSE)),0,VLOOKUP($B24,月次ピボット!$A:$N,MATCH(L$5,月次ピボット!$B$3:$M$3,0)+1,FALSE)) -> 0 | M24: =IF(ISERROR(VLOOKUP($B24,月次ピボット!$A:$N,MATCH(M$5,月次ピボット!$B$3:$M$3,0)+1,FALSE)),0,VLOOKUP($B24,月次ピボット!$A:$N,MATCH(M$5,月次ピボット!$B$3:$M$3,0)+1,FALSE)) -> 0 | N24: =IF(ISERROR(VLOOKUP($B24,月次ピボット!$A:$N,MATCH(N$5,月次ピボット!$B$3:$M$3,0)+1,FALSE)),0,VLOOKUP($B24,月次ピボット!$A:$N,MATCH(N$5,月次ピボット!$B$3:$M$3,0)+1,FALSE)) -> 0
B25: その他経常支出 | C25: =IF(ISERROR(VLOOKUP($B25,月次ピボット!$A:$N,MATCH(C$5,月次ピボット!$B$3:$M$3,0)+1,FALSE)),0,VLOOKUP($B25,月次ピボット!$A:$N,MATCH(C$5,月次ピボット!$B$3:$M$3,0)+1,FALSE)) -> 237997 | D25: =IF(ISERROR(VLOOKUP($B25,月次ピボット!$A:$N,MATCH(D$5,月次ピボット!$B$3:$M$3,0)+1,FALSE)),0,VLOOKUP($B25,月次ピボット!$A:$N,MATCH(D$5,月次ピボット!$B$3:$M$3,0)+1,FALSE)) -> 461234 | E25: =IF(ISERROR(VLOOKUP($B25,月次ピボット!$A:$N,MATCH(E$5,月次ピボット!$B$3:$M$3,0)+1,FALSE)),0,VLOOKUP($B25,月次ピボット!$A:$N,MATCH(E$5,月次ピボット!$B$3:$M$3,0)+1,FALSE)) -> 261667 | F25: =IF(ISERROR(VLOOKUP($B25,月次ピボット!$A:$N,MATCH(F$5,月次ピボット!$B$3:$M$3,0)+1,FALSE)),0,VLOOKUP($B25,月次ピボット!$A:$N,MATCH(F$5,月次ピボット!$B$3:$M$3,0)+1,FALSE)) -> 1520827 | G25: =IF(ISERROR(VLOOKUP($B25,月次ピボット!$A:$N,MATCH(G$5,月次ピボット!$B$3:$M$3,0)+1,FALSE)),0,VLOOKUP($B25,月次ピボット!$A:$N,MATCH(G$5,月次ピボット!$B$3:$M$3,0)+1,FALSE)) -> 261667 | H25: =IF(ISERROR(VLOOKUP($B25,月次ピボット!$A:$N,MATCH(H$5,月次ピボット!$B$3:$M$3,0)+1,FALSE)),0,VLOOKUP($B25,月次ピボット!$A:$N,MATCH(H$5,月次ピボット!$B$3:$M$3,0)+1,FALSE)) -> 261667 | I25: =IF(ISERROR(VLOOKUP($B25,月次ピボット!$A:$N,MATCH(I$5,月次ピボット!$B$3:$M$3,0)+1,FALSE)),0,VLOOKUP($B25,月次ピボット!$A:$N,MATCH(I$5,月次ピボット!$B$3:$M$3,0)+1,FALSE)) -> 261667 | J25: =IF(ISERROR(VLOOKUP($B25,月次ピボット!$A:$N,MATCH(J$5,月次ピボット!$B$3:$M$3,0)+1,FALSE)),0,VLOOKUP($B25,月次ピボット!$A:$N,MATCH(J$5,月次ピボット!$B$3:$M$3,0)+1,FALSE)) -> 261667 | K25: =IF(ISERROR(VLOOKUP($B25,月次ピボット!$A:$N,MATCH(K$5,月次ピボット!$B$3:$M$3,0)+1,FALSE)),0,VLOOKUP($B25,月次ピボット!$A:$N,MATCH(K$5,月次ピボット!$B$3:$M$3,0)+1,FALSE)) -> 0 | L25: =IF(ISERROR(VLOOKUP($B25,月次ピボット!$A:$N,MATCH(L$5,月次ピボット!$B$3:$M$3,0)+1,FALSE)),0,VLOOKUP($B25,月次ピボット!$A:$N,MATCH(L$5,月次ピボット!$B$3:$M$3,0)+1,FALSE)) -> 0 | M25: =IF(ISERROR(VLOOKUP($B25,月次ピボット!$A:$N,MATCH(M$5,月次ピボット!$B$3:$M$3,0)+1,FALSE)),0,VLOOKUP($B25,月次ピボット!$A:$N,MATCH(M$5,月次ピボット!$B$3:$M$3,0)+1,FALSE)) -> 0 | N25: =IF(ISERROR(VLOOKUP($B25,月次ピボット!$A:$N,MATCH(N$5,月次ピボット!$B$3:$M$3,0)+1,FALSE)),0,VLOOKUP($B25,月次ピボット!$A:$N,MATCH(N$5,月次ピボット!$B$3:$M$3,0)+1,FALSE)) -> 0
B26: 経常支出合計 | C26: =SUM(C19:C25) -> 13366296 | D26: =SUM(D19:D25) -> 18026072 | E26: 27197373 | F26: 23810956 | G26: 26275634 | H26: 22996866 | I26: =SUM(I19:I25) -> 26522688 | J26: 20087653 | K26: 0 | L26: 0 | M26: 0 | N26: 0
B28: 経常収支過不足 | C28: =C16-C26 -> 1068110 | D28: =D16-D26 -> 5823400 | E28: 1119940 | F28: -1831714 | G28: -451281 | H28: 7386210 | I28: =I16-I26 -> 5250958 | J28: 7560441 | K28: 0 | L28: 0 | M28: 0 | N28: 0
B31: 財務等収入
B32: 短期借入金借入 | C32: =IF(ISERROR(VLOOKUP($B32,月次ピボット!$A:$N,MATCH(C$5,月次ピボット!$B$3:$M$3,0)+1,FALSE)),0,VLOOKUP($B32,月次ピボット!$A:$N,MATCH(C$5,月次ピボット!$B$3:$M$3,0)+1,FALSE)) -> 0 | D32: =IF(ISERROR(VLOOKUP($B32,月次ピボット!$A:$N,MATCH(D$5,月次ピボット!$B$3:$M$3,0)+1,FALSE)),0,VLOOKUP($B32,月次ピボット!$A:$N,MATCH(D$5,月次ピボット!$B$3:$M$3,0)+1,FALSE)) -> 0 | E32: =IF(ISERROR(VLOOKUP($B32,月次ピボット!$A:$N,MATCH(E$5,月次ピボット!$B$3:$M$3,0)+1,FALSE)),0,VLOOKUP($B32,月次ピボット!$A:$N,MATCH(E$5,月次ピボット!$B$3:$M$3,0)+1,FALSE)) -> 0 | F32: =IF(ISERROR(VLOOKUP($B32,月次ピボット!$A:$N,MATCH(F$5,月次ピボット!$B$3:$M$3,0)+1,FALSE)),0,VLOOKUP($B32,月次ピボット!$A:$N,MATCH(F$5,月次ピボット!$B$3:$M$3,0)+1,FALSE)) -> 0 | G32: =IF(ISERROR(VLOOKUP($B32,月次ピボット!$A:$N,MATCH(G$5,月次ピボット!$B$3:$M$3,0)+1,FALSE)),0,VLOOKUP($B32,月次ピボット!$A:$N,MATCH(G$5,月次ピボット!$B$3:$M$3,0)+1,FALSE)) -> 0 | H32: =IF(ISERROR(VLOOKUP($B32,月次ピボット!$A:$N,MATCH(H$5,月次ピボット!$B$3:$M$3,0)+1,FALSE)),0,VLOOKUP($B32,月次ピボット!$A:$N,MATCH(H$5,月次ピボット!$B$3:$M$3,0)+1,FALSE)) -> 0 | I32: =IF(ISERROR(VLOOKUP($B32,月次ピボット!$A:$N,MATCH(I$5,月次ピボット!$B$3:$M$3,0)+1,FALSE)),0,VLOOKUP($B32,月次ピボット!$A:$N,MATCH(I$5,月次ピボット!$B$3:$M$3,0)+1,FALSE)) -> 0 | J32: =IF(ISERROR(VLOOKUP($B32,月次ピボット!$A:$N,MATCH(J$5,月次ピボット!$B$3:$M$3,0)+1,FALSE)),0,VLOOKUP($B32,月次ピボット!$A:$N,MATCH(J$5,月次ピボット!$B$3:$M$3,0)+1,FALSE)) -> 0 | K32: =IF(ISERROR(VLOOKUP($B32,月次ピボット!$A:$N,MATCH(K$5,月次ピボット!$B$3:$M$3,0)+1,FALSE)),0,VLOOKUP($B32,月次ピボット!$A:$N,MATCH(K$5,月次ピボット!$B$3:$M$3,0)+1,FALSE)) -> 0 | L32: =IF(ISERROR(VLOOKUP($B32,月次ピボット!$A:$N,MATCH(L$5,月次ピボット!$B$3:$M$3,0)+1,FALSE)),0,VLOOKUP($B32,月次ピボット!$A:$N,MATCH(L$5,月次ピボット!$B$3:$M$3,0)+1,FALSE)) -> 0 | M32: =IF(ISERROR(VLOOKUP($B32,月次ピボット!$A:$N,MATCH(M$5,月次ピボット!$B$3:$M$3,0)+1,FALSE)),0,VLOOKUP($B32,月次ピボット!$A:$N,MATCH(M$5,月次ピボット!$B$3:$M$3,0)+1,FALSE)) -> 0 | N32: =IF(ISERROR(VLOOKUP($B32,月次ピボット!$A:$N,MATCH(N$5,月次ピボット!$B$3:$M$3,0)+1,FALSE)),0,VLOOKUP($B32,月次ピボット!$A:$N,MATCH(N$5,月次ピボット!$B$3:$M$3,0)+1,FALSE)) -> 0
B33: 長期借入金借入 | C33: =IF(ISERROR(VLOOKUP($B33,月次ピボット!$A:$N,MATCH(C$5,月次ピボット!$B$3:$M$3,0)+1,FALSE)),0,VLOOKUP($B33,月次ピボット!$A:$N,MATCH(C$5,月次ピボット!$B$3:$M$3,0)+1,FALSE)) -> 0 | D33: =IF(ISERROR(VLOOKUP($B33,月次ピボット!$A:$N,MATCH(D$5,月次ピボット!$B$3:$M$3,0)+1,FALSE)),0,VLOOKUP($B33,月次ピボット!$A:$N,MATCH(D$5,月次ピボット!$B$3:$M$3,0)+1,FALSE)) -> 0 | E33: =IF(ISERROR(VLOOKUP($B33,月次ピボット!$A:$N,MATCH(E$5,月次ピボット!$B$3:$M$3,0)+1,FALSE)),0,VLOOKUP($B33,月次ピボット!$A:$N,MATCH(E$5,月次ピボット!$B$3:$M$3,0)+1,FALSE)) -> 0 | F33: =IF(ISERROR(VLOOKUP($B33,月次ピボット!$A:$N,MATCH(F$5,月次ピボット!$B$3:$M$3,0)+1,FALSE)),0,VLOOKUP($B33,月次ピボット!$A:$N,MATCH(F$5,月次ピボット!$B$3:$M$3,0)+1,FALSE)) -> 0 | G33: =IF(ISERROR(VLOOKUP($B33,月次ピボット!$A:$N,MATCH(G$5,月次ピボット!$B$3:$M$3,0)+1,FALSE)),0,VLOOKUP($B33,月次ピボット!$A:$N,MATCH(G$5,月次ピボット!$B$3:$M$3,0)+1,FALSE)) -> 0 | H33: =IF(ISERROR(VLOOKUP($B33,月次ピボット!$A:$N,MATCH(H$5,月次ピボット!$B$3:$M$3,0)+1,FALSE)),0,VLOOKUP($B33,月次ピボット!$A:$N,MATCH(H$5,月次ピボット!$B$3:$M$3,0)+1,FALSE)) -> 0 | I33: =IF(ISERROR(VLOOKUP($B33,月次ピボット!$A:$N,MATCH(I$5,月次ピボット!$B$3:$M$3,0)+1,FALSE)),0,VLOOKUP($B33,月次ピボット!$A:$N,MATCH(I$5,月次ピボット!$B$3:$M$3,0)+1,FALSE)) -> 0 | J33: =IF(ISERROR(VLOOKUP($B33,月次ピボット!$A:$N,MATCH(J$5,月次ピボット!$B$3:$M$3,0)+1,FALSE)),0,VLOOKUP($B33,月次ピボット!$A:$N,MATCH(J$5,月次ピボット!$B$3:$M$3,0)+1,FALSE)) -> 0 | K33: =IF(ISERROR(VLOOKUP($B33,月次ピボット!$A:$N,MATCH(K$5,月次ピボット!$B$3:$M$3,0)+1,FALSE)),0,VLOOKUP($B33,月次ピボット!$A:$N,MATCH(K$5,月次ピボット!$B$3:$M$3,0)+1,FALSE)) -> 0 | L33: =IF(ISERROR(VLOOKUP($B33,月次ピボット!$A:$N,MATCH(L$5,月次ピボット!$B$3:$M$3,0)+1,FALSE)),0,VLOOKUP($B33,月次ピボット!$A:$N,MATCH(L$5,月次ピボット!$B$3:$M$3,0)+1,FALSE)) -> 0 | M33: =IF(ISERROR(VLOOKUP($B33,月次ピボット!$A:$N,MATCH(M$5,月次ピボット!$B$3:$M$3,0)+1,FALSE)),0,VLOOKUP($B33,月次ピボット!$A:$N,MATCH(M$5,月次ピボット!$B$3:$M$3,0)+1,FALSE)) -> 0 | N33: =IF(ISERROR(VLOOKUP($B33,月次ピボット!$A:$N,MATCH(N$5,月次ピボット!$B$3:$M$3,0)+1,FALSE)),0,VLOOKUP($B33,月次ピボット!$A:$N,MATCH(N$5,月次ピボット!$B$3:$M$3,0)+1,FALSE)) -> 0
B34: 役員・関係会社等借入 | C34: =IF(ISERROR(VLOOKUP($B34,月次ピボット!$A:$N,MATCH(C$5,月次ピボット!$B$3:$M$3,0)+1,FALSE)),0,VLOOKUP($B34,月次ピボット!$A:$N,MATCH(C$5,月次ピボット!$B$3:$M$3,0)+1,FALSE)) -> 0 | D34: =IF(ISERROR(VLOOKUP($B34,月次ピボット!$A:$N,MATCH(D$5,月次ピボット!$B$3:$M$3,0)+1,FALSE)),0,VLOOKUP($B34,月次ピボット!$A:$N,MATCH(D$5,月次ピボット!$B$3:$M$3,0)+1,FALSE)) -> 0 | E34: =IF(ISERROR(VLOOKUP($B34,月次ピボット!$A:$N,MATCH(E$5,月次ピボット!$B$3:$M$3,0)+1,FALSE)),0,VLOOKUP($B34,月次ピボット!$A:$N,MATCH(E$5,月次ピボット!$B$3:$M$3,0)+1,FALSE)) -> 0 | F34: =IF(ISERROR(VLOOKUP($B34,月次ピボット!$A:$N,MATCH(F$5,月次ピボット!$B$3:$M$3,0)+1,FALSE)),0,VLOOKUP($B34,月次ピボット!$A:$N,MATCH(F$5,月次ピボット!$B$3:$M$3,0)+1,FALSE)) -> 0 | G34: =IF(ISERROR(VLOOKUP($B34,月次ピボット!$A:$N,MATCH(G$5,月次ピボット!$B$3:$M$3,0)+1,FALSE)),0,VLOOKUP($B34,月次ピボット!$A:$N,MATCH(G$5,月次ピボット!$B$3:$M$3,0)+1,FALSE)) -> 0 | H34: =IF(ISERROR(VLOOKUP($B34,月次ピボット!$A:$N,MATCH(H$5,月次ピボット!$B$3:$M$3,0)+1,FALSE)),0,VLOOKUP($B34,月次ピボット!$A:$N,MATCH(H$5,月次ピボット!$B$3:$M$3,0)+1,FALSE)) -> 0 | I34: =IF(ISERROR(VLOOKUP($B34,月次ピボット!$A:$N,MATCH(I$5,月次ピボット!$B$3:$M$3,0)+1,FALSE)),0,VLOOKUP($B34,月次ピボット!$A:$N,MATCH(I$5,月次ピボット!$B$3:$M$3,0)+1,FALSE)) -> 0 | J34: =IF(ISERROR(VLOOKUP($B34,月次ピボット!$A:$N,MATCH(J$5,月次ピボット!$B$3:$M$3,0)+1,FALSE)),0,VLOOKUP($B34,月次ピボット!$A:$N,MATCH(J$5,月次ピボット!$B$3:$M$3,0)+1,FALSE)) -> 0 | K34: =IF(ISERROR(VLOOKUP($B34,月次ピボット!$A:$N,MATCH(K$5,月次ピボット!$B$3:$M$3,0)+1,FALSE)),0,VLOOKUP($B34,月次ピボット!$A:$N,MATCH(K$5,月次ピボット!$B$3:$M$3,0)+1,FALSE)) -> 0 | L34: =IF(ISERROR(VLOOKUP($B34,月次ピボット!$A:$N,MATCH(L$5,月次ピボット!$B$3:$M$3,0)+1,FALSE)),0,VLOOKUP($B34,月次ピボット!$A:$N,MATCH(L$5,月次ピボット!$B$3:$M$3,0)+1,FALSE)) -> 0 | M34: =IF(ISERROR(VLOOKUP($B34,月次ピボット!$A:$N,MATCH(M$5,月次ピボット!$B$3:$M$3,0)+1,FALSE)),0,VLOOKUP($B34,月次ピボット!$A:$N,MATCH(M$5,月次ピボット!$B$3:$M$3,0)+1,FALSE)) -> 0 | N34: =IF(ISERROR(VLOOKUP($B34,月次ピボット!$A:$N,MATCH(N$5,月次ピボット!$B$3:$M$3,0)+1,FALSE)),0,VLOOKUP($B34,月次ピボット!$A:$N,MATCH(N$5,月次ピボット!$B$3:$M$3,0)+1,FALSE)) -> 0
B35: 長期未払金収入 | C35: =IF(ISERROR(VLOOKUP($B35,月次ピボット!$A:$N,MATCH(C$5,月次ピボット!$B$3:$M$3,0)+1,FALSE)),0,VLOOKUP($B35,月次ピボット!$A:$N,MATCH(C$5,月次ピボット!$B$3:$M$3,0)+1,FALSE)) -> 0 | D35: =IF(ISERROR(VLOOKUP($B35,月次ピボット!$A:$N,MATCH(D$5,月次ピボット!$B$3:$M$3,0)+1,FALSE)),0,VLOOKUP($B35,月次ピボット!$A:$N,MATCH(D$5,月次ピボット!$B$3:$M$3,0)+1,FALSE)) -> 0 | E35: =IF(ISERROR(VLOOKUP($B35,月次ピボット!$A:$N,MATCH(E$5,月次ピボット!$B$3:$M$3,0)+1,FALSE)),0,VLOOKUP($B35,月次ピボット!$A:$N,MATCH(E$5,月次ピボット!$B$3:$M$3,0)+1,FALSE)) -> 0 | F35: =IF(ISERROR(VLOOKUP($B35,月次ピボット!$A:$N,MATCH(F$5,月次ピボット!$B$3:$M$3,0)+1,FALSE)),0,VLOOKUP($B35,月次ピボット!$A:$N,MATCH(F$5,月次ピボット!$B$3:$M$3,0)+1,FALSE)) -> 0 | G35: =IF(ISERROR(VLOOKUP($B35,月次ピボット!$A:$N,MATCH(G$5,月次ピボット!$B$3:$M$3,0)+1,FALSE)),0,VLOOKUP($B35,月次ピボット!$A:$N,MATCH(G$5,月次ピボット!$B$3:$M$3,0)+1,FALSE)) -> 0 | H35: =IF(ISERROR(VLOOKUP($B35,月次ピボット!$A:$N,MATCH(H$5,月次ピボット!$B$3:$M$3,0)+1,FALSE)),0,VLOOKUP($B35,月次ピボット!$A:$N,MATCH(H$5,月次ピボット!$B$3:$M$3,0)+1,FALSE)) -> 0 | I35: =IF(ISERROR(VLOOKUP($B35,月次ピボット!$A:$N,MATCH(I$5,月次ピボット!$B$3:$M$3,0)+1,FALSE)),0,VLOOKUP($B35,月次ピボット!$A:$N,MATCH(I$5,月次ピボット!$B$3:$M$3,0)+1,FALSE)) -> 0 | J35: =IF(ISERROR(VLOOKUP($B35,月次ピボット!$A:$N,MATCH(J$5,月次ピボット!$B$3:$M$3,0)+1,FALSE)),0,VLOOKUP($B35,月次ピボット!$A:$N,MATCH(J$5,月次ピボット!$B$3:$M$3,0)+1,FALSE)) -> 0 | K35: =IF(ISERROR(VLOOKUP($B35,月次ピボット!$A:$N,MATCH(K$5,月次ピボット!$B$3:$M$3,0)+1,FALSE)),0,VLOOKUP($B35,月次ピボット!$A:$N,MATCH(K$5,月次ピボット!$B$3:$M$3,0)+1,FALSE)) -> 0 | L35: =IF(ISERROR(VLOOKUP($B35,月次ピボット!$A:$N,MATCH(L$5,月次ピボット!$B$3:$M$3,0)+1,FALSE)),0,VLOOKUP($B35,月次ピボット!$A:$N,MATCH(L$5,月次ピボット!$B$3:$M$3,0)+1,FALSE)) -> 0 | M35: =IF(ISERROR(VLOOKUP($B35,月次ピボット!$A:$N,MATCH(M$5,月次ピボット!$B$3:$M$3,0)+1,FALSE)),0,VLOOKUP($B35,月次ピボット!$A:$N,MATCH(M$5,月次ピボット!$B$3:$M$3,0)+1,FALSE)) -> 0 | N35: =IF(ISERROR(VLOOKUP($B35,月次ピボット!$A:$N,MATCH(N$5,月次ピボット!$B$3:$M$3,0)+1,FALSE)),0,VLOOKUP($B35,月次ピボット!$A:$N,MATCH(N$5,月次ピボット!$B$3:$M$3,0)+1,FALSE)) -> 0
B36: 固定資産売却収入 | C36: =IF(ISERROR(VLOOKUP($B36,月次ピボット!$A:$N,MATCH(C$5,月次ピボット!$B$3:$M$3,0)+1,FALSE)),0,VLOOKUP($B36,月次ピボット!$A:$N,MATCH(C$5,月次ピボット!$B$3:$M$3,0)+1,FALSE)) -> 0 | D36: =IF(ISERROR(VLOOKUP($B36,月次ピボット!$A:$N,MATCH(D$5,月次ピボット!$B$3:$M$3,0)+1,FALSE)),0,VLOOKUP($B36,月次ピボット!$A:$N,MATCH(D$5,月次ピボット!$B$3:$M$3,0)+1,FALSE)) -> 0 | E36: =IF(ISERROR(VLOOKUP($B36,月次ピボット!$A:$N,MATCH(E$5,月次ピボット!$B$3:$M$3,0)+1,FALSE)),0,VLOOKUP($B36,月次ピボット!$A:$N,MATCH(E$5,月次ピボット!$B$3:$M$3,0)+1,FALSE)) -> 0 | F36: =IF(ISERROR(VLOOKUP($B36,月次ピボット!$A:$N,MATCH(F$5,月次ピボット!$B$3:$M$3,0)+1,FALSE)),0,VLOOKUP($B36,月次ピボット!$A:$N,MATCH(F$5,月次ピボット!$B$3:$M$3,0)+1,FALSE)) -> 0 | G36: =IF(ISERROR(VLOOKUP($B36,月次ピボット!$A:$N,MATCH(G$5,月次ピボット!$B$3:$M$3,0)+1,FALSE)),0,VLOOKUP($B36,月次ピボット!$A:$N,MATCH(G$5,月次ピボット!$B$3:$M$3,0)+1,FALSE)) -> 0 | H36: =IF(ISERROR(VLOOKUP($B36,月次ピボット!$A:$N,MATCH(H$5,月次ピボット!$B$3:$M$3,0)+1,FALSE)),0,VLOOKUP($B36,月次ピボット!$A:$N,MATCH(H$5,月次ピボット!$B$3:$M$3,0)+1,FALSE)) -> 0 | I36: =IF(ISERROR(VLOOKUP($B36,月次ピボット!$A:$N,MATCH(I$5,月次ピボット!$B$3:$M$3,0)+1,FALSE)),0,VLOOKUP($B36,月次ピボット!$A:$N,MATCH(I$5,月次ピボット!$B$3:$M$3,0)+1,FALSE)) -> 0 | J36: =IF(ISERROR(VLOOKUP($B36,月次ピボット!$A:$N,MATCH(J$5,月次ピボット!$B$3:$M$3,0)+1,FALSE)),0,VLOOKUP($B36,月次ピボット!$A:$N,MATCH(J$5,月次ピボット!$B$3:$M$3,0)+1,FALSE)) -> 0 | K36: =IF(ISERROR(VLOOKUP($B36,月次ピボット!$A:$N,MATCH(K$5,月次ピボット!$B$3:$M$3,0)+1,FALSE)),0,VLOOKUP($B36,月次ピボット!$A:$N,MATCH(K$5,月次ピボット!$B$3:$M$3,0)+1,FALSE)) -> 0 | L36: =IF(ISERROR(VLOOKUP($B36,月次ピボット!$A:$N,MATCH(L$5,月次ピボット!$B$3:$M$3,0)+1,FALSE)),0,VLOOKUP($B36,月次ピボット!$A:$N,MATCH(L$5,月次ピボット!$B$3:$M$3,0)+1,FALSE)) -> 0 | M36: =IF(ISERROR(VLOOKUP($B36,月次ピボット!$A:$N,MATCH(M$5,月次ピボット!$B$3:$M$3,0)+1,FALSE)),0,VLOOKUP($B36,月次ピボット!$A:$N,MATCH(M$5,月次ピボット!$B$3:$M$3,0)+1,FALSE)) -> 0 | N36: =IF(ISERROR(VLOOKUP($B36,月次ピボット!$A:$N,MATCH(N$5,月次ピボット!$B$3:$M$3,0)+1,FALSE)),0,VLOOKUP($B36,月次ピボット!$A:$N,MATCH(N$5,月次ピボット!$B$3:$M$3,0)+1,FALSE)) -> 0
B37: 定期性預金払戻 | C37: =IF(ISERROR(VLOOKUP($B37,月次ピボット!$A:$N,MATCH(C$5,月次ピボット!$B$3:$M$3,0)+1,FALSE)),0,VLOOKUP($B37,月次ピボット!$A:$N,MATCH(C$5,月次ピボット!$B$3:$M$3,0)+1,FALSE)) -> 0 | D37: =IF(ISERROR(VLOOKUP($B37,月次ピボット!$A:$N,MATCH(D$5,月次ピボット!$B$3:$M$3,0)+1,FALSE)),0,VLOOKUP($B37,月次ピボット!$A:$N,MATCH(D$5,月次ピボット!$B$3:$M$3,0)+1,FALSE)) -> 0 | E37: =IF(ISERROR(VLOOKUP($B37,月次ピボット!$A:$N,MATCH(E$5,月次ピボット!$B$3:$M$3,0)+1,FALSE)),0,VLOOKUP($B37,月次ピボット!$A:$N,MATCH(E$5,月次ピボット!$B$3:$M$3,0)+1,FALSE)) -> 0 | F37: =IF(ISERROR(VLOOKUP($B37,月次ピボット!$A:$N,MATCH(F$5,月次ピボット!$B$3:$M$3,0)+1,FALSE)),0,VLOOKUP($B37,月次ピボット!$A:$N,MATCH(F$5,月次ピボット!$B$3:$M$3,0)+1,FALSE)) -> 0 | G37: =IF(ISERROR(VLOOKUP($B37,月次ピボット!$A:$N,MATCH(G$5,月次ピボット!$B$3:$M$3,0)+1,FALSE)),0,VLOOKUP($B37,月次ピボット!$A:$N,MATCH(G$5,月次ピボット!$B$3:$M$3,0)+1,FALSE)) -> 0 | H37: =IF(ISERROR(VLOOKUP($B37,月次ピボット!$A:$N,MATCH(H$5,月次ピボット!$B$3:$M$3,0)+1,FALSE)),0,VLOOKUP($B37,月次ピボット!$A:$N,MATCH(H$5,月次ピボット!$B$3:$M$3,0)+1,FALSE)) -> 0 | I37: =IF(ISERROR(VLOOKUP($B37,月次ピボット!$A:$N,MATCH(I$5,月次ピボット!$B$3:$M$3,0)+1,FALSE)),0,VLOOKUP($B37,月次ピボット!$A:$N,MATCH(I$5,月次ピボット!$B$3:$M$3,0)+1,FALSE)) -> 0 | J37: =IF(ISERROR(VLOOKUP($B37,月次ピボット!$A:$N,MATCH(J$5,月次ピボット!$B$3:$M$3,0)+1,FALSE)),0,VLOOKUP($B37,月次ピボット!$A:$N,MATCH(J$5,月次ピボット!$B$3:$M$3,0)+1,FALSE)) -> 0 | K37: =IF(ISERROR(VLOOKUP($B37,月次ピボット!$A:$N,MATCH(K$5,月次ピボット!$B$3:$M$3,0)+1,FALSE)),0,VLOOKUP($B37,月次ピボット!$A:$N,MATCH(K$5,月次ピボット!$B$3:$M$3,0)+1,FALSE)) -> 0 | L37: =IF(ISERROR(VLOOKUP($B37,月次ピボット!$A:$N,MATCH(L$5,月次ピボット!$B$3:$M$3,0)+1,FALSE)),0,VLOOKUP($B37,月次ピボット!$A:$N,MATCH(L$5,月次ピボット!$B$3:$M$3,0)+1,FALSE)) -> 0 | M37: =IF(ISERROR(VLOOKUP($B37,月次ピボット!$A:$N,MATCH(M$5,月次ピボット!$B$3:$M$3,0)+1,FALSE)),0,VLOOKUP($B37,月次ピボット!$A:$N,MATCH(M$5,月次ピボット!$B$3:$M$3,0)+1,FALSE)) -> 0 | N37: =IF(ISERROR(VLOOKUP($B37,月次ピボット!$A:$N,MATCH(N$5,月次ピボット!$B$3:$M$3,0)+1,FALSE)),0,VLOOKUP($B37,月次ピボット!$A:$N,MATCH(N$5,月次ピボット!$B$3:$M$3,0)+1,FALSE)) -> 0
B38: 投資・貸付金等回収 | C38: =IF(ISERROR(VLOOKUP($B38,月次ピボット!$A:$N,MATCH(C$5,月次ピボット!$B$3:$M$3,0)+1,FALSE)),0,VLOOKUP($B38,月次ピボット!$A:$N,MATCH(C$5,月次ピボット!$B$3:$M$3,0)+1,FALSE)) -> 0 | D38: =IF(ISERROR(VLOOKUP($B38,月次ピボット!$A:$N,MATCH(D$5,月次ピボット!$B$3:$M$3,0)+1,FALSE)),0,VLOOKUP($B38,月次ピボット!$A:$N,MATCH(D$5,月次ピボット!$B$3:$M$3,0)+1,FALSE)) -> 0 | E38: =IF(ISERROR(VLOOKUP($B38,月次ピボット!$A:$N,MATCH(E$5,月次ピボット!$B$3:$M$3,0)+1,FALSE)),0,VLOOKUP($B38,月次ピボット!$A:$N,MATCH(E$5,月次ピボット!$B$3:$M$3,0)+1,FALSE)) -> 0 | F38: =IF(ISERROR(VLOOKUP($B38,月次ピボット!$A:$N,MATCH(F$5,月次ピボット!$B$3:$M$3,0)+1,FALSE)),0,VLOOKUP($B38,月次ピボット!$A:$N,MATCH(F$5,月次ピボット!$B$3:$M$3,0)+1,FALSE)) -> 0 | G38: =IF(ISERROR(VLOOKUP($B38,月次ピボット!$A:$N,MATCH(G$5,月次ピボット!$B$3:$M$3,0)+1,FALSE)),0,VLOOKUP($B38,月次ピボット!$A:$N,MATCH(G$5,月次ピボット!$B$3:$M$3,0)+1,FALSE)) -> 0 | H38: =IF(ISERROR(VLOOKUP($B38,月次ピボット!$A:$N,MATCH(H$5,月次ピボット!$B$3:$M$3,0)+1,FALSE)),0,VLOOKUP($B38,月次ピボット!$A:$N,MATCH(H$5,月次ピボット!$B$3:$M$3,0)+1,FALSE)) -> 0 | I38: =IF(ISERROR(VLOOKUP($B38,月次ピボット!$A:$N,MATCH(I$5,月次ピボット!$B$3:$M$3,0)+1,FALSE)),0,VLOOKUP($B38,月次ピボット!$A:$N,MATCH(I$5,月次ピボット!$B$3:$M$3,0)+1,FALSE)) -> 0 | J38: =IF(ISERROR(VLOOKUP($B38,月次ピボット!$A:$N,MATCH(J$5,月次ピボット!$B$3:$M$3,0)+1,FALSE)),0,VLOOKUP($B38,月次ピボット!$A:$N,MATCH(J$5,月次ピボット!$B$3:$M$3,0)+1,FALSE)) -> 0 | K38: =IF(ISERROR(VLOOKUP($B38,月次ピボット!$A:$N,MATCH(K$5,月次ピボット!$B$3:$M$3,0)+1,FALSE)),0,VLOOKUP($B38,月次ピボット!$A:$N,MATCH(K$5,月次ピボット!$B$3:$M$3,0)+1,FALSE)) -> 0 | L38: =IF(ISERROR(VLOOKUP($B38,月次ピボット!$A:$N,MATCH(L$5,月次ピボット!$B$3:$M$3,0)+1,FALSE)),0,VLOOKUP($B38,月次ピボット!$A:$N,MATCH(L$5,月次ピボット!$B$3:$M$3,0)+1,FALSE)) -> 0 | M38: =IF(ISERROR(VLOOKUP($B38,月次ピボット!$A:$N,MATCH(M$5,月次ピボット!$B$3:$M$3,0)+1,FALSE)),0,VLOOKUP($B38,月次ピボット!$A:$N,MATCH(M$5,月次ピボット!$B$3:$M$3,0)+1,FALSE)) -> 0 | N38: =IF(ISERROR(VLOOKUP($B38,月次ピボット!$A:$N,MATCH(N$5,月次ピボット!$B$3:$M$3,0)+1,FALSE)),0,VLOOKUP($B38,月次ピボット!$A:$N,MATCH(N$5,月次ピボット!$B$3:$M$3,0)+1,FALSE)) -> 0
B39: その他財務等収入 | C39: =IF(ISERROR(VLOOKUP($B39,月次ピボット!$A:$N,MATCH(C$5,月次ピボット!$B$3:$M$3,0)+1,FALSE)),0,VLOOKUP($B39,月次ピボット!$A:$N,MATCH(C$5,月次ピボット!$B$3:$M$3,0)+1,FALSE)) -> 0 | D39: =IF(ISERROR(VLOOKUP($B39,月次ピボット!$A:$N,MATCH(D$5,月次ピボット!$B$3:$M$3,0)+1,FALSE)),0,VLOOKUP($B39,月次ピボット!$A:$N,MATCH(D$5,月次ピボット!$B$3:$M$3,0)+1,FALSE)) -> 0 | E39: =IF(ISERROR(VLOOKUP($B39,月次ピボット!$A:$N,MATCH(E$5,月次ピボット!$B$3:$M$3,0)+1,FALSE)),0,VLOOKUP($B39,月次ピボット!$A:$N,MATCH(E$5,月次ピボット!$B$3:$M$3,0)+1,FALSE)) -> 0 | F39: =IF(ISERROR(VLOOKUP($B39,月次ピボット!$A:$N,MATCH(F$5,月次ピボット!$B$3:$M$3,0)+1,FALSE)),0,VLOOKUP($B39,月次ピボット!$A:$N,MATCH(F$5,月次ピボット!$B$3:$M$3,0)+1,FALSE)) -> 0 | G39: =IF(ISERROR(VLOOKUP($B39,月次ピボット!$A:$N,MATCH(G$5,月次ピボット!$B$3:$M$3,0)+1,FALSE)),0,VLOOKUP($B39,月次ピボット!$A:$N,MATCH(G$5,月次ピボット!$B$3:$M$3,0)+1,FALSE)) -> 0 | H39: =IF(ISERROR(VLOOKUP($B39,月次ピボット!$A:$N,MATCH(H$5,月次ピボット!$B$3:$M$3,0)+1,FALSE)),0,VLOOKUP($B39,月次ピボット!$A:$N,MATCH(H$5,月次ピボット!$B$3:$M$3,0)+1,FALSE)) -> 0 | I39: =IF(ISERROR(VLOOKUP($B39,月次ピボット!$A:$N,MATCH(I$5,月次ピボット!$B$3:$M$3,0)+1,FALSE)),0,VLOOKUP($B39,月次ピボット!$A:$N,MATCH(I$5,月次ピボット!$B$3:$M$3,0)+1,FALSE)) -> 0 | J39: =IF(ISERROR(VLOOKUP($B39,月次ピボット!$A:$N,MATCH(J$5,月次ピボット!$B$3:$M$3,0)+1,FALSE)),0,VLOOKUP($B39,月次ピボット!$A:$N,MATCH(J$5,月次ピボット!$B$3:$M$3,0)+1,FALSE)) -> 0 | K39: =IF(ISERROR(VLOOKUP($B39,月次ピボット!$A:$N,MATCH(K$5,月次ピボット!$B$3:$M$3,0)+1,FALSE)),0,VLOOKUP($B39,月次ピボット!$A:$N,MATCH(K$5,月次ピボット!$B$3:$M$3,0)+1,FALSE)) -> 0 | L39: =IF(ISERROR(VLOOKUP($B39,月次ピボット!$A:$N,MATCH(L$5,月次ピボット!$B$3:$M$3,0)+1,FALSE)),0,VLOOKUP($B39,月次ピボット!$A:$N,MATCH(L$5,月次ピボット!$B$3:$M$3,0)+1,FALSE)) -> 0 | M39: =IF(ISERROR(VLOOKUP($B39,月次ピボット!$A:$N,MATCH(M$5,月次ピボット!$B$3:$M$3,0)+1,FALSE)),0,VLOOKUP($B39,月次ピボット!$A:$N,MATCH(M$5,月次ピボット!$B$3:$M$3,0)+1,FALSE)) -> 0 | N39: =IF(ISERROR(VLOOKUP($B39,月次ピボット!$A:$N,MATCH(N$5,月次ピボット!$B$3:$M$3,0)+1,FALSE)),0,VLOOKUP($B39,月次ピボット!$A:$N,MATCH(N$5,月次ピボット!$B$3:$M$3,0)+1,FALSE)) -> 0
B40: 財務等収入合計 | C40: =SUM(C32:C39) -> 0 | D40: =SUM(D32:D39) -> 0 | E40: 0 | F40: 0 | G40: 0 | H40: 0 | I40: =SUM(I32:I39) -> 0 | J40: 0 | K40: 0 | L40: 0 | M40: 0 | N40: 0
B42: 財務等支出
B43: 短期借入金返済 | C43: =IF(ISERROR(VLOOKUP($B43,月次ピボット!$A:$N,MATCH(C$5,月次ピボット!$B$3:$M$3,0)+1,FALSE)),0,VLOOKUP($B43,月次ピボット!$A:$N,MATCH(C$5,月次ピボット!$B$3:$M$3,0)+1,FALSE)) -> 500000 | D43: =IF(ISERROR(VLOOKUP($B43,月次ピボット!$A:$N,MATCH(D$5,月次ピボット!$B$3:$M$3,0)+1,FALSE)),0,VLOOKUP($B43,月次ピボット!$A:$N,MATCH(D$5,月次ピボット!$B$3:$M$3,0)+1,FALSE)) -> 500000 | E43: =IF(ISERROR(VLOOKUP($B43,月次ピボット!$A:$N,MATCH(E$5,月次ピボット!$B$3:$M$3,0)+1,FALSE)),0,VLOOKUP($B43,月次ピボット!$A:$N,MATCH(E$5,月次ピボット!$B$3:$M$3,0)+1,FALSE)) -> 500000 | F43: =IF(ISERROR(VLOOKUP($B43,月次ピボット!$A:$N,MATCH(F$5,月次ピボット!$B$3:$M$3,0)+1,FALSE)),0,VLOOKUP($B43,月次ピボット!$A:$N,MATCH(F$5,月次ピボット!$B$3:$M$3,0)+1,FALSE)) -> 500000 | G43: =IF(ISERROR(VLOOKUP($B43,月次ピボット!$A:$N,MATCH(G$5,月次ピボット!$B$3:$M$3,0)+1,FALSE)),0,VLOOKUP($B43,月次ピボット!$A:$N,MATCH(G$5,月次ピボット!$B$3:$M$3,0)+1,FALSE)) -> 500000 | H43: =IF(ISERROR(VLOOKUP($B43,月次ピボット!$A:$N,MATCH(H$5,月次ピボット!$B$3:$M$3,0)+1,FALSE)),0,VLOOKUP($B43,月次ピボット!$A:$N,MATCH(H$5,月次ピボット!$B$3:$M$3,0)+1,FALSE)) -> 500000 | I43: =IF(ISERROR(VLOOKUP($B43,月次ピボット!$A:$N,MATCH(I$5,月次ピボット!$B$3:$M$3,0)+1,FALSE)),0,VLOOKUP($B43,月次ピボット!$A:$N,MATCH(I$5,月次ピボット!$B$3:$M$3,0)+1,FALSE)) -> 500000 | J43: =IF(ISERROR(VLOOKUP($B43,月次ピボット!$A:$N,MATCH(J$5,月次ピボット!$B$3:$M$3,0)+1,FALSE)),0,VLOOKUP($B43,月次ピボット!$A:$N,MATCH(J$5,月次ピボット!$B$3:$M$3,0)+1,FALSE)) -> 500000 | K43: =IF(ISERROR(VLOOKUP($B43,月次ピボット!$A:$N,MATCH(K$5,月次ピボット!$B$3:$M$3,0)+1,FALSE)),0,VLOOKUP($B43,月次ピボット!$A:$N,MATCH(K$5,月次ピボット!$B$3:$M$3,0)+1,FALSE)) -> 0 | L43: =IF(ISERROR(VLOOKUP($B43,月次ピボット!$A:$N,MATCH(L$5,月次ピボット!$B$3:$M$3,0)+1,FALSE)),0,VLOOKUP($B43,月次ピボット!$A:$N,MATCH(L$5,月次ピボット!$B$3:$M$3,0)+1,FALSE)) -> 0 | M43: =IF(ISERROR(VLOOKUP($B43,月次ピボット!$A:$N,MATCH(M$5,月次ピボット!$B$3:$M$3,0)+1,FALSE)),0,VLOOKUP($B43,月次ピボット!$A:$N,MATCH(M$5,月次ピボット!$B$3:$M$3,0)+1,FALSE)) -> 0 | N43: =IF(ISERROR(VLOOKUP($B43,月次ピボット!$A:$N,MATCH(N$5,月次ピボット!$B$3:$M$3,0)+1,FALSE)),0,VLOOKUP($B43,月次ピボット!$A:$N,MATCH(N$5,月次ピボット!$B$3:$M$3,0)+1,FALSE)) -> 0
B44: 長期借入金返済 | C44: =IF(ISERROR(VLOOKUP($B44,月次ピボット!$A:$N,MATCH(C$5,月次ピボット!$B$3:$M$3,0)+1,FALSE)),0,VLOOKUP($B44,月次ピボット!$A:$N,MATCH(C$5,月次ピボット!$B$3:$M$3,0)+1,FALSE)) -> 196949 | D44: =IF(ISERROR(VLOOKUP($B44,月次ピボット!$A:$N,MATCH(D$5,月次ピボット!$B$3:$M$3,0)+1,FALSE)),0,VLOOKUP($B44,月次ピボット!$A:$N,MATCH(D$5,月次ピボット!$B$3:$M$3,0)+1,FALSE)) -> 197393 | E44: =IF(ISERROR(VLOOKUP($B44,月次ピボット!$A:$N,MATCH(E$5,月次ピボット!$B$3:$M$3,0)+1,FALSE)),0,VLOOKUP($B44,月次ピボット!$A:$N,MATCH(E$5,月次ピボット!$B$3:$M$3,0)+1,FALSE)) -> 197837 | F44: =IF(ISERROR(VLOOKUP($B44,月次ピボット!$A:$N,MATCH(F$5,月次ピボット!$B$3:$M$3,0)+1,FALSE)),0,VLOOKUP($B44,月次ピボット!$A:$N,MATCH(F$5,月次ピボット!$B$3:$M$3,0)+1,FALSE)) -> 198282 | G44: =IF(ISERROR(VLOOKUP($B44,月次ピボット!$A:$N,MATCH(G$5,月次ピボット!$B$3:$M$3,0)+1,FALSE)),0,VLOOKUP($B44,月次ピボット!$A:$N,MATCH(G$5,月次ピボット!$B$3:$M$3,0)+1,FALSE)) -> 198728 | H44: =IF(ISERROR(VLOOKUP($B44,月次ピボット!$A:$N,MATCH(H$5,月次ピボット!$B$3:$M$3,0)+1,FALSE)),0,VLOOKUP($B44,月次ピボット!$A:$N,MATCH(H$5,月次ピボット!$B$3:$M$3,0)+1,FALSE)) -> 199175 | I44: =IF(ISERROR(VLOOKUP($B44,月次ピボット!$A:$N,MATCH(I$5,月次ピボット!$B$3:$M$3,0)+1,FALSE)),0,VLOOKUP($B44,月次ピボット!$A:$N,MATCH(I$5,月次ピボット!$B$3:$M$3,0)+1,FALSE)) -> 199623 | J44: =IF(ISERROR(VLOOKUP($B44,月次ピボット!$A:$N,MATCH(J$5,月次ピボット!$B$3:$M$3,0)+1,FALSE)),0,VLOOKUP($B44,月次ピボット!$A:$N,MATCH(J$5,月次ピボット!$B$3:$M$3,0)+1,FALSE)) -> 200072 | K44: =IF(ISERROR(VLOOKUP($B44,月次ピボット!$A:$N,MATCH(K$5,月次ピボット!$B$3:$M$3,0)+1,FALSE)),0,VLOOKUP($B44,月次ピボット!$A:$N,MATCH(K$5,月次ピボット!$B$3:$M$3,0)+1,FALSE)) -> 0 | L44: =IF(ISERROR(VLOOKUP($B44,月次ピボット!$A:$N,MATCH(L$5,月次ピボット!$B$3:$M$3,0)+1,FALSE)),0,VLOOKUP($B44,月次ピボット!$A:$N,MATCH(L$5,月次ピボット!$B$3:$M$3,0)+1,FALSE)) -> 0 | M44: =IF(ISERROR(VLOOKUP($B44,月次ピボット!$A:$N,MATCH(M$5,月次ピボット!$B$3:$M$3,0)+1,FALSE)),0,VLOOKUP($B44,月次ピボット!$A:$N,MATCH(M$5,月次ピボット!$B$3:$M$3,0)+1,FALSE)) -> 0 | N44: =IF(ISERROR(VLOOKUP($B44,月次ピボット!$A:$N,MATCH(N$5,月次ピボット!$B$3:$M$3,0)+1,FALSE)),0,VLOOKUP($B44,月次ピボット!$A:$N,MATCH(N$5,月次ピボット!$B$3:$M$3,0)+1,FALSE)) -> 0
B45: 役員・関係会社等返済 | C45: =IF(ISERROR(VLOOKUP($B45,月次ピボット!$A:$N,MATCH(C$5,月次ピボット!$B$3:$M$3,0)+1,FALSE)),0,VLOOKUP($B45,月次ピボット!$A:$N,MATCH(C$5,月次ピボット!$B$3:$M$3,0)+1,FALSE)) -> 0 | D45: =IF(ISERROR(VLOOKUP($B45,月次ピボット!$A:$N,MATCH(D$5,月次ピボット!$B$3:$M$3,0)+1,FALSE)),0,VLOOKUP($B45,月次ピボット!$A:$N,MATCH(D$5,月次ピボット!$B$3:$M$3,0)+1,FALSE)) -> 0 | E45: =IF(ISERROR(VLOOKUP($B45,月次ピボット!$A:$N,MATCH(E$5,月次ピボット!$B$3:$M$3,0)+1,FALSE)),0,VLOOKUP($B45,月次ピボット!$A:$N,MATCH(E$5,月次ピボット!$B$3:$M$3,0)+1,FALSE)) -> 0 | F45: =IF(ISERROR(VLOOKUP($B45,月次ピボット!$A:$N,MATCH(F$5,月次ピボット!$B$3:$M$3,0)+1,FALSE)),0,VLOOKUP($B45,月次ピボット!$A:$N,MATCH(F$5,月次ピボット!$B$3:$M$3,0)+1,FALSE)) -> 0 | G45: =IF(ISERROR(VLOOKUP($B45,月次ピボット!$A:$N,MATCH(G$5,月次ピボット!$B$3:$M$3,0)+1,FALSE)),0,VLOOKUP($B45,月次ピボット!$A:$N,MATCH(G$5,月次ピボット!$B$3:$M$3,0)+1,FALSE)) -> 0 | H45: =IF(ISERROR(VLOOKUP($B45,月次ピボット!$A:$N,MATCH(H$5,月次ピボット!$B$3:$M$3,0)+1,FALSE)),0,VLOOKUP($B45,月次ピボット!$A:$N,MATCH(H$5,月次ピボット!$B$3:$M$3,0)+1,FALSE)) -> 0 | I45: =IF(ISERROR(VLOOKUP($B45,月次ピボット!$A:$N,MATCH(I$5,月次ピボット!$B$3:$M$3,0)+1,FALSE)),0,VLOOKUP($B45,月次ピボット!$A:$N,MATCH(I$5,月次ピボット!$B$3:$M$3,0)+1,FALSE)) -> 0 | J45: =IF(ISERROR(VLOOKUP($B45,月次ピボット!$A:$N,MATCH(J$5,月次ピボット!$B$3:$M$3,0)+1,FALSE)),0,VLOOKUP($B45,月次ピボット!$A:$N,MATCH(J$5,月次ピボット!$B$3:$M$3,0)+1,FALSE)) -> 0 | K45: =IF(ISERROR(VLOOKUP($B45,月次ピボット!$A:$N,MATCH(K$5,月次ピボット!$B$3:$M$3,0)+1,FALSE)),0,VLOOKUP($B45,月次ピボット!$A:$N,MATCH(K$5,月次ピボット!$B$3:$M$3,0)+1,FALSE)) -> 0 | L45: =IF(ISERROR(VLOOKUP($B45,月次ピボット!$A:$N,MATCH(L$5,月次ピボット!$B$3:$M$3,0)+1,FALSE)),0,VLOOKUP($B45,月次ピボット!$A:$N,MATCH(L$5,月次ピボット!$B$3:$M$3,0)+1,FALSE)) -> 0 | M45: =IF(ISERROR(VLOOKUP($B45,月次ピボット!$A:$N,MATCH(M$5,月次ピボット!$B$3:$M$3,0)+1,FALSE)),0,VLOOKUP($B45,月次ピボット!$A:$N,MATCH(M$5,月次ピボット!$B$3:$M$3,0)+1,FALSE)) -> 0 | N45: =IF(ISERROR(VLOOKUP($B45,月次ピボット!$A:$N,MATCH(N$5,月次ピボット!$B$3:$M$3,0)+1,FALSE)),0,VLOOKUP($B45,月次ピボット!$A:$N,MATCH(N$5,月次ピボット!$B$3:$M$3,0)+1,FALSE)) -> 0
B46: 長期未払金支払 | C46: =IF(ISERROR(VLOOKUP($B46,月次ピボット!$A:$N,MATCH(C$5,月次ピボット!$B$3:$M$3,0)+1,FALSE)),0,VLOOKUP($B46,月次ピボット!$A:$N,MATCH(C$5,月次ピボット!$B$3:$M$3,0)+1,FALSE)) -> 0 | D46: =IF(ISERROR(VLOOKUP($B46,月次ピボット!$A:$N,MATCH(D$5,月次ピボット!$B$3:$M$3,0)+1,FALSE)),0,VLOOKUP($B46,月次ピボット!$A:$N,MATCH(D$5,月次ピボット!$B$3:$M$3,0)+1,FALSE)) -> 0 | E46: =IF(ISERROR(VLOOKUP($B46,月次ピボット!$A:$N,MATCH(E$5,月次ピボット!$B$3:$M$3,0)+1,FALSE)),0,VLOOKUP($B46,月次ピボット!$A:$N,MATCH(E$5,月次ピボット!$B$3:$M$3,0)+1,FALSE)) -> 0 | F46: =IF(ISERROR(VLOOKUP($B46,月次ピボット!$A:$N,MATCH(F$5,月次ピボット!$B$3:$M$3,0)+1,FALSE)),0,VLOOKUP($B46,月次ピボット!$A:$N,MATCH(F$5,月次ピボット!$B$3:$M$3,0)+1,FALSE)) -> 0 | G46: =IF(ISERROR(VLOOKUP($B46,月次ピボット!$A:$N,MATCH(G$5,月次ピボット!$B$3:$M$3,0)+1,FALSE)),0,VLOOKUP($B46,月次ピボット!$A:$N,MATCH(G$5,月次ピボット!$B$3:$M$3,0)+1,FALSE)) -> 0 | H46: =IF(ISERROR(VLOOKUP($B46,月次ピボット!$A:$N,MATCH(H$5,月次ピボット!$B$3:$M$3,0)+1,FALSE)),0,VLOOKUP($B46,月次ピボット!$A:$N,MATCH(H$5,月次ピボット!$B$3:$M$3,0)+1,FALSE)) -> 0 | I46: =IF(ISERROR(VLOOKUP($B46,月次ピボット!$A:$N,MATCH(I$5,月次ピボット!$B$3:$M$3,0)+1,FALSE)),0,VLOOKUP($B46,月次ピボット!$A:$N,MATCH(I$5,月次ピボット!$B$3:$M$3,0)+1,FALSE)) -> 0 | J46: =IF(ISERROR(VLOOKUP($B46,月次ピボット!$A:$N,MATCH(J$5,月次ピボット!$B$3:$M$3,0)+1,FALSE)),0,VLOOKUP($B46,月次ピボット!$A:$N,MATCH(J$5,月次ピボット!$B$3:$M$3,0)+1,FALSE)) -> 0 | K46: =IF(ISERROR(VLOOKUP($B46,月次ピボット!$A:$N,MATCH(K$5,月次ピボット!$B$3:$M$3,0)+1,FALSE)),0,VLOOKUP($B46,月次ピボット!$A:$N,MATCH(K$5,月次ピボット!$B$3:$M$3,0)+1,FALSE)) -> 0 | L46: =IF(ISERROR(VLOOKUP($B46,月次ピボット!$A:$N,MATCH(L$5,月次ピボット!$B$3:$M$3,0)+1,FALSE)),0,VLOOKUP($B46,月次ピボット!$A:$N,MATCH(L$5,月次ピボット!$B$3:$M$3,0)+1,FALSE)) -> 0 | M46: =IF(ISERROR(VLOOKUP($B46,月次ピボット!$A:$N,MATCH(M$5,月次ピボット!$B$3:$M$3,0)+1,FALSE)),0,VLOOKUP($B46,月次ピボット!$A:$N,MATCH(M$5,月次ピボット!$B$3:$M$3,0)+1,FALSE)) -> 0 | N46: =IF(ISERROR(VLOOKUP($B46,月次ピボット!$A:$N,MATCH(N$5,月次ピボット!$B$3:$M$3,0)+1,FALSE)),0,VLOOKUP($B46,月次ピボット!$A:$N,MATCH(N$5,月次ピボット!$B$3:$M$3,0)+1,FALSE)) -> 0
B47: 固定資産取得 | C47: =IF(ISERROR(VLOOKUP($B47,月次ピボット!$A:$N,MATCH(C$5,月次ピボット!$B$3:$M$3,0)+1,FALSE)),0,VLOOKUP($B47,月次ピボット!$A:$N,MATCH(C$5,月次ピボット!$B$3:$M$3,0)+1,FALSE)) -> 0 | D47: =IF(ISERROR(VLOOKUP($B47,月次ピボット!$A:$N,MATCH(D$5,月次ピボット!$B$3:$M$3,0)+1,FALSE)),0,VLOOKUP($B47,月次ピボット!$A:$N,MATCH(D$5,月次ピボット!$B$3:$M$3,0)+1,FALSE)) -> 0 | E47: =IF(ISERROR(VLOOKUP($B47,月次ピボット!$A:$N,MATCH(E$5,月次ピボット!$B$3:$M$3,0)+1,FALSE)),0,VLOOKUP($B47,月次ピボット!$A:$N,MATCH(E$5,月次ピボット!$B$3:$M$3,0)+1,FALSE)) -> 0 | F47: =IF(ISERROR(VLOOKUP($B47,月次ピボット!$A:$N,MATCH(F$5,月次ピボット!$B$3:$M$3,0)+1,FALSE)),0,VLOOKUP($B47,月次ピボット!$A:$N,MATCH(F$5,月次ピボット!$B$3:$M$3,0)+1,FALSE)) -> 0 | G47: =IF(ISERROR(VLOOKUP($B47,月次ピボット!$A:$N,MATCH(G$5,月次ピボット!$B$3:$M$3,0)+1,FALSE)),0,VLOOKUP($B47,月次ピボット!$A:$N,MATCH(G$5,月次ピボット!$B$3:$M$3,0)+1,FALSE)) -> 0 | H47: =IF(ISERROR(VLOOKUP($B47,月次ピボット!$A:$N,MATCH(H$5,月次ピボット!$B$3:$M$3,0)+1,FALSE)),0,VLOOKUP($B47,月次ピボット!$A:$N,MATCH(H$5,月次ピボット!$B$3:$M$3,0)+1,FALSE)) -> 0 | I47: =IF(ISERROR(VLOOKUP($B47,月次ピボット!$A:$N,MATCH(I$5,月次ピボット!$B$3:$M$3,0)+1,FALSE)),0,VLOOKUP($B47,月次ピボット!$A:$N,MATCH(I$5,月次ピボット!$B$3:$M$3,0)+1,FALSE)) -> 0 | J47: =IF(ISERROR(VLOOKUP($B47,月次ピボット!$A:$N,MATCH(J$5,月次ピボット!$B$3:$M$3,0)+1,FALSE)),0,VLOOKUP($B47,月次ピボット!$A:$N,MATCH(J$5,月次ピボット!$B$3:$M$3,0)+1,FALSE)) -> 0 | K47: =IF(ISERROR(VLOOKUP($B47,月次ピボット!$A:$N,MATCH(K$5,月次ピボット!$B$3:$M$3,0)+1,FALSE)),0,VLOOKUP($B47,月次ピボット!$A:$N,MATCH(K$5,月次ピボット!$B$3:$M$3,0)+1,FALSE)) -> 0 | L47: =IF(ISERROR(VLOOKUP($B47,月次ピボット!$A:$N,MATCH(L$5,月次ピボット!$B$3:$M$3,0)+1,FALSE)),0,VLOOKUP($B47,月次ピボット!$A:$N,MATCH(L$5,月次ピボット!$B$3:$M$3,0)+1,FALSE)) -> 0 | M47: =IF(ISERROR(VLOOKUP($B47,月次ピボット!$A:$N,MATCH(M$5,月次ピボット!$B$3:$M$3,0)+1,FALSE)),0,VLOOKUP($B47,月次ピボット!$A:$N,MATCH(M$5,月次ピボット!$B$3:$M$3,0)+1,FALSE)) -> 0 | N47: =IF(ISERROR(VLOOKUP($B47,月次ピボット!$A:$N,MATCH(N$5,月次ピボット!$B$3:$M$3,0)+1,FALSE)),0,VLOOKUP($B47,月次ピボット!$A:$N,MATCH(N$5,月次ピボット!$B$3:$M$3,0)+1,FALSE)) -> 0
B48: 定期性預金預入 | C48: =IF(ISERROR(VLOOKUP($B48,月次ピボット!$A:$N,MATCH(C$5,月次ピボット!$B$3:$M$3,0)+1,FALSE)),0,VLOOKUP($B48,月次ピボット!$A:$N,MATCH(C$5,月次ピボット!$B$3:$M$3,0)+1,FALSE)) -> 0 | D48: =IF(ISERROR(VLOOKUP($B48,月次ピボット!$A:$N,MATCH(D$5,月次ピボット!$B$3:$M$3,0)+1,FALSE)),0,VLOOKUP($B48,月次ピボット!$A:$N,MATCH(D$5,月次ピボット!$B$3:$M$3,0)+1,FALSE)) -> 0 | E48: =IF(ISERROR(VLOOKUP($B48,月次ピボット!$A:$N,MATCH(E$5,月次ピボット!$B$3:$M$3,0)+1,FALSE)),0,VLOOKUP($B48,月次ピボット!$A:$N,MATCH(E$5,月次ピボット!$B$3:$M$3,0)+1,FALSE)) -> 0 | F48: =IF(ISERROR(VLOOKUP($B48,月次ピボット!$A:$N,MATCH(F$5,月次ピボット!$B$3:$M$3,0)+1,FALSE)),0,VLOOKUP($B48,月次ピボット!$A:$N,MATCH(F$5,月次ピボット!$B$3:$M$3,0)+1,FALSE)) -> 0 | G48: =IF(ISERROR(VLOOKUP($B48,月次ピボット!$A:$N,MATCH(G$5,月次ピボット!$B$3:$M$3,0)+1,FALSE)),0,VLOOKUP($B48,月次ピボット!$A:$N,MATCH(G$5,月次ピボット!$B$3:$M$3,0)+1,FALSE)) -> 0 | H48: =IF(ISERROR(VLOOKUP($B48,月次ピボット!$A:$N,MATCH(H$5,月次ピボット!$B$3:$M$3,0)+1,FALSE)),0,VLOOKUP($B48,月次ピボット!$A:$N,MATCH(H$5,月次ピボット!$B$3:$M$3,0)+1,FALSE)) -> 0 | I48: =IF(ISERROR(VLOOKUP($B48,月次ピボット!$A:$N,MATCH(I$5,月次ピボット!$B$3:$M$3,0)+1,FALSE)),0,VLOOKUP($B48,月次ピボット!$A:$N,MATCH(I$5,月次ピボット!$B$3:$M$3,0)+1,FALSE)) -> 0 | J48: =IF(ISERROR(VLOOKUP($B48,月次ピボット!$A:$N,MATCH(J$5,月次ピボット!$B$3:$M$3,0)+1,FALSE)),0,VLOOKUP($B48,月次ピボット!$A:$N,MATCH(J$5,月次ピボット!$B$3:$M$3,0)+1,FALSE)) -> 0 | K48: =IF(ISERROR(VLOOKUP($B48,月次ピボット!$A:$N,MATCH(K$5,月次ピボット!$B$3:$M$3,0)+1,FALSE)),0,VLOOKUP($B48,月次ピボット!$A:$N,MATCH(K$5,月次ピボット!$B$3:$M$3,0)+1,FALSE)) -> 0 | L48: =IF(ISERROR(VLOOKUP($B48,月次ピボット!$A:$N,MATCH(L$5,月次ピボット!$B$3:$M$3,0)+1,FALSE)),0,VLOOKUP($B48,月次ピボット!$A:$N,MATCH(L$5,月次ピボット!$B$3:$M$3,0)+1,FALSE)) -> 0 | M48: =IF(ISERROR(VLOOKUP($B48,月次ピボット!$A:$N,MATCH(M$5,月次ピボット!$B$3:$M$3,0)+1,FALSE)),0,VLOOKUP($B48,月次ピボット!$A:$N,MATCH(M$5,月次ピボット!$B$3:$M$3,0)+1,FALSE)) -> 0 | N48: =IF(ISERROR(VLOOKUP($B48,月次ピボット!$A:$N,MATCH(N$5,月次ピボット!$B$3:$M$3,0)+1,FALSE)),0,VLOOKUP($B48,月次ピボット!$A:$N,MATCH(N$5,月次ピボット!$B$3:$M$3,0)+1,FALSE)) -> 0
B49: 投資・貸付金等支出 | C49: =IF(ISERROR(VLOOKUP($B49,月次ピボット!$A:$N,MATCH(C$5,月次ピボット!$B$3:$M$3,0)+1,FALSE)),0,VLOOKUP($B49,月次ピボット!$A:$N,MATCH(C$5,月次ピボット!$B$3:$M$3,0)+1,FALSE)) -> 0 | D49: =IF(ISERROR(VLOOKUP($B49,月次ピボット!$A:$N,MATCH(D$5,月次ピボット!$B$3:$M$3,0)+1,FALSE)),0,VLOOKUP($B49,月次ピボット!$A:$N,MATCH(D$5,月次ピボット!$B$3:$M$3,0)+1,FALSE)) -> 0 | E49: =IF(ISERROR(VLOOKUP($B49,月次ピボット!$A:$N,MATCH(E$5,月次ピボット!$B$3:$M$3,0)+1,FALSE)),0,VLOOKUP($B49,月次ピボット!$A:$N,MATCH(E$5,月次ピボット!$B$3:$M$3,0)+1,FALSE)) -> 0 | F49: =IF(ISERROR(VLOOKUP($B49,月次ピボット!$A:$N,MATCH(F$5,月次ピボット!$B$3:$M$3,0)+1,FALSE)),0,VLOOKUP($B49,月次ピボット!$A:$N,MATCH(F$5,月次ピボット!$B$3:$M$3,0)+1,FALSE)) -> 0 | G49: =IF(ISERROR(VLOOKUP($B49,月次ピボット!$A:$N,MATCH(G$5,月次ピボット!$B$3:$M$3,0)+1,FALSE)),0,VLOOKUP($B49,月次ピボット!$A:$N,MATCH(G$5,月次ピボット!$B$3:$M$3,0)+1,FALSE)) -> 0 | H49: =IF(ISERROR(VLOOKUP($B49,月次ピボット!$A:$N,MATCH(H$5,月次ピボット!$B$3:$M$3,0)+1,FALSE)),0,VLOOKUP($B49,月次ピボット!$A:$N,MATCH(H$5,月次ピボット!$B$3:$M$3,0)+1,FALSE)) -> 0 | I49: =IF(ISERROR(VLOOKUP($B49,月次ピボット!$A:$N,MATCH(I$5,月次ピボット!$B$3:$M$3,0)+1,FALSE)),0,VLOOKUP($B49,月次ピボット!$A:$N,MATCH(I$5,月次ピボット!$B$3:$M$3,0)+1,FALSE)) -> 0 | J49: =IF(ISERROR(VLOOKUP($B49,月次ピボット!$A:$N,MATCH(J$5,月次ピボット!$B$3:$M$3,0)+1,FALSE)),0,VLOOKUP($B49,月次ピボット!$A:$N,MATCH(J$5,月次ピボット!$B$3:$M$3,0)+1,FALSE)) -> 0 | K49: =IF(ISERROR(VLOOKUP($B49,月次ピボット!$A:$N,MATCH(K$5,月次ピボット!$B$3:$M$3,0)+1,FALSE)),0,VLOOKUP($B49,月次ピボット!$A:$N,MATCH(K$5,月次ピボット!$B$3:$M$3,0)+1,FALSE)) -> 0 | L49: =IF(ISERROR(VLOOKUP($B49,月次ピボット!$A:$N,MATCH(L$5,月次ピボット!$B$3:$M$3,0)+1,FALSE)),0,VLOOKUP($B49,月次ピボット!$A:$N,MATCH(L$5,月次ピボット!$B$3:$M$3,0)+1,FALSE)) -> 0 | M49: =IF(ISERROR(VLOOKUP($B49,月次ピボット!$A:$N,MATCH(M$5,月次ピボット!$B$3:$M$3,0)+1,FALSE)),0,VLOOKUP($B49,月次ピボット!$A:$N,MATCH(M$5,月次ピボット!$B$3:$M$3,0)+1,FALSE)) -> 0 | N49: =IF(ISERROR(VLOOKUP($B49,月次ピボット!$A:$N,MATCH(N$5,月次ピボット!$B$3:$M$3,0)+1,FALSE)),0,VLOOKUP($B49,月次ピボット!$A:$N,MATCH(N$5,月次ピボット!$B$3:$M$3,0)+1,FALSE)) -> 0
B50: 法人税等支払 | C50: =IF(ISERROR(VLOOKUP($B50,月次ピボット!$A:$N,MATCH(C$5,月次ピボット!$B$3:$M$3,0)+1,FALSE)),0,VLOOKUP($B50,月次ピボット!$A:$N,MATCH(C$5,月次ピボット!$B$3:$M$3,0)+1,FALSE)) -> 0 | D50: =IF(ISERROR(VLOOKUP($B50,月次ピボット!$A:$N,MATCH(D$5,月次ピボット!$B$3:$M$3,0)+1,FALSE)),0,VLOOKUP($B50,月次ピボット!$A:$N,MATCH(D$5,月次ピボット!$B$3:$M$3,0)+1,FALSE)) -> 1614500 | E50: =IF(ISERROR(VLOOKUP($B50,月次ピボット!$A:$N,MATCH(E$5,月次ピボット!$B$3:$M$3,0)+1,FALSE)),0,VLOOKUP($B50,月次ピボット!$A:$N,MATCH(E$5,月次ピボット!$B$3:$M$3,0)+1,FALSE)) -> 0 | F50: =IF(ISERROR(VLOOKUP($B50,月次ピボット!$A:$N,MATCH(F$5,月次ピボット!$B$3:$M$3,0)+1,FALSE)),0,VLOOKUP($B50,月次ピボット!$A:$N,MATCH(F$5,月次ピボット!$B$3:$M$3,0)+1,FALSE)) -> 0 | G50: =IF(ISERROR(VLOOKUP($B50,月次ピボット!$A:$N,MATCH(G$5,月次ピボット!$B$3:$M$3,0)+1,FALSE)),0,VLOOKUP($B50,月次ピボット!$A:$N,MATCH(G$5,月次ピボット!$B$3:$M$3,0)+1,FALSE)) -> 0 | H50: =IF(ISERROR(VLOOKUP($B50,月次ピボット!$A:$N,MATCH(H$5,月次ピボット!$B$3:$M$3,0)+1,FALSE)),0,VLOOKUP($B50,月次ピボット!$A:$N,MATCH(H$5,月次ピボット!$B$3:$M$3,0)+1,FALSE)) -> 0 | I50: =IF(ISERROR(VLOOKUP($B50,月次ピボット!$A:$N,MATCH(I$5,月次ピボット!$B$3:$M$3,0)+1,FALSE)),0,VLOOKUP($B50,月次ピボット!$A:$N,MATCH(I$5,月次ピボット!$B$3:$M$3,0)+1,FALSE)) -> 0 | J50: =IF(ISERROR(VLOOKUP($B50,月次ピボット!$A:$N,MATCH(J$5,月次ピボット!$B$3:$M$3,0)+1,FALSE)),0,VLOOKUP($B50,月次ピボット!$A:$N,MATCH(J$5,月次ピボット!$B$3:$M$3,0)+1,FALSE)) -> 2650000 | K50: =IF(ISERROR(VLOOKUP($B50,月次ピボット!$A:$N,MATCH(K$5,月次ピボット!$B$3:$M$3,0)+1,FALSE)),0,VLOOKUP($B50,月次ピボット!$A:$N,MATCH(K$5,月次ピボット!$B$3:$M$3,0)+1,FALSE)) -> 0 | L50: =IF(ISERROR(VLOOKUP($B50,月次ピボット!$A:$N,MATCH(L$5,月次ピボット!$B$3:$M$3,0)+1,FALSE)),0,VLOOKUP($B50,月次ピボット!$A:$N,MATCH(L$5,月次ピボット!$B$3:$M$3,0)+1,FALSE)) -> 0 | M50: =IF(ISERROR(VLOOKUP($B50,月次ピボット!$A:$N,MATCH(M$5,月次ピボット!$B$3:$M$3,0)+1,FALSE)),0,VLOOKUP($B50,月次ピボット!$A:$N,MATCH(M$5,月次ピボット!$B$3:$M$3,0)+1,FALSE)) -> 0 | N50: =IF(ISERROR(VLOOKUP($B50,月次ピボット!$A:$N,MATCH(N$5,月次ピボット!$B$3:$M$3,0)+1,FALSE)),0,VLOOKUP($B50,月次ピボット!$A:$N,MATCH(N$5,月次ピボット!$B$3:$M$3,0)+1,FALSE)) -> 0
B51: 消費税等支払 | C51: =IF(ISERROR(VLOOKUP($B51,月次ピボット!$A:$N,MATCH(C$5,月次ピボット!$B$3:$M$3,0)+1,FALSE)),0,VLOOKUP($B51,月次ピボット!$A:$N,MATCH(C$5,月次ピボット!$B$3:$M$3,0)+1,FALSE)) -> 0 | D51: =IF(ISERROR(VLOOKUP($B51,月次ピボット!$A:$N,MATCH(D$5,月次ピボット!$B$3:$M$3,0)+1,FALSE)),0,VLOOKUP($B51,月次ピボット!$A:$N,MATCH(D$5,月次ピボット!$B$3:$M$3,0)+1,FALSE)) -> 2697700 | E51: =IF(ISERROR(VLOOKUP($B51,月次ピボット!$A:$N,MATCH(E$5,月次ピボット!$B$3:$M$3,0)+1,FALSE)),0,VLOOKUP($B51,月次ピボット!$A:$N,MATCH(E$5,月次ピボット!$B$3:$M$3,0)+1,FALSE)) -> 0 | F51: =IF(ISERROR(VLOOKUP($B51,月次ピボット!$A:$N,MATCH(F$5,月次ピボット!$B$3:$M$3,0)+1,FALSE)),0,VLOOKUP($B51,月次ピボット!$A:$N,MATCH(F$5,月次ピボット!$B$3:$M$3,0)+1,FALSE)) -> 0 | G51: =IF(ISERROR(VLOOKUP($B51,月次ピボット!$A:$N,MATCH(G$5,月次ピボット!$B$3:$M$3,0)+1,FALSE)),0,VLOOKUP($B51,月次ピボット!$A:$N,MATCH(G$5,月次ピボット!$B$3:$M$3,0)+1,FALSE)) -> 0 | H51: =IF(ISERROR(VLOOKUP($B51,月次ピボット!$A:$N,MATCH(H$5,月次ピボット!$B$3:$M$3,0)+1,FALSE)),0,VLOOKUP($B51,月次ピボット!$A:$N,MATCH(H$5,月次ピボット!$B$3:$M$3,0)+1,FALSE)) -> 0 | I51: =IF(ISERROR(VLOOKUP($B51,月次ピボット!$A:$N,MATCH(I$5,月次ピボット!$B$3:$M$3,0)+1,FALSE)),0,VLOOKUP($B51,月次ピボット!$A:$N,MATCH(I$5,月次ピボット!$B$3:$M$3,0)+1,FALSE)) -> 0 | J51: =IF(ISERROR(VLOOKUP($B51,月次ピボット!$A:$N,MATCH(J$5,月次ピボット!$B$3:$M$3,0)+1,FALSE)),0,VLOOKUP($B51,月次ピボット!$A:$N,MATCH(J$5,月次ピボット!$B$3:$M$3,0)+1,FALSE)) -> 2506800 | K51: =IF(ISERROR(VLOOKUP($B51,月次ピボット!$A:$N,MATCH(K$5,月次ピボット!$B$3:$M$3,0)+1,FALSE)),0,VLOOKUP($B51,月次ピボット!$A:$N,MATCH(K$5,月次ピボット!$B$3:$M$3,0)+1,FALSE)) -> 0 | L51: =IF(ISERROR(VLOOKUP($B51,月次ピボット!$A:$N,MATCH(L$5,月次ピボット!$B$3:$M$3,0)+1,FALSE)),0,VLOOKUP($B51,月次ピボット!$A:$N,MATCH(L$5,月次ピボット!$B$3:$M$3,0)+1,FALSE)) -> 0 | M51: =IF(ISERROR(VLOOKUP($B51,月次ピボット!$A:$N,MATCH(M$5,月次ピボット!$B$3:$M$3,0)+1,FALSE)),0,VLOOKUP($B51,月次ピボット!$A:$N,MATCH(M$5,月次ピボット!$B$3:$M$3,0)+1,FALSE)) -> 0 | N51: =IF(ISERROR(VLOOKUP($B51,月次ピボット!$A:$N,MATCH(N$5,月次ピボット!$B$3:$M$3,0)+1,FALSE)),0,VLOOKUP($B51,月次ピボット!$A:$N,MATCH(N$5,月次ピボット!$B$3:$M$3,0)+1,FALSE)) -> 0
B52: その他財務等支出 | C52: =IF(ISERROR(VLOOKUP($B52,月次ピボット!$A:$N,MATCH(C$5,月次ピボット!$B$3:$M$3,0)+1,FALSE)),0,VLOOKUP($B52,月次ピボット!$A:$N,MATCH(C$5,月次ピボット!$B$3:$M$3,0)+1,FALSE)) -> 0 | D52: =IF(ISERROR(VLOOKUP($B52,月次ピボット!$A:$N,MATCH(D$5,月次ピボット!$B$3:$M$3,0)+1,FALSE)),0,VLOOKUP($B52,月次ピボット!$A:$N,MATCH(D$5,月次ピボット!$B$3:$M$3,0)+1,FALSE)) -> 0 | E52: =IF(ISERROR(VLOOKUP($B52,月次ピボット!$A:$N,MATCH(E$5,月次ピボット!$B$3:$M$3,0)+1,FALSE)),0,VLOOKUP($B52,月次ピボット!$A:$N,MATCH(E$5,月次ピボット!$B$3:$M$3,0)+1,FALSE)) -> 0 | F52: =IF(ISERROR(VLOOKUP($B52,月次ピボット!$A:$N,MATCH(F$5,月次ピボット!$B$3:$M$3,0)+1,FALSE)),0,VLOOKUP($B52,月次ピボット!$A:$N,MATCH(F$5,月次ピボット!$B$3:$M$3,0)+1,FALSE)) -> 0 | G52: =IF(ISERROR(VLOOKUP($B52,月次ピボット!$A:$N,MATCH(G$5,月次ピボット!$B$3:$M$3,0)+1,FALSE)),0,VLOOKUP($B52,月次ピボット!$A:$N,MATCH(G$5,月次ピボット!$B$3:$M$3,0)+1,FALSE)) -> 0 | H52: =IF(ISERROR(VLOOKUP($B52,月次ピボット!$A:$N,MATCH(H$5,月次ピボット!$B$3:$M$3,0)+1,FALSE)),0,VLOOKUP($B52,月次ピボット!$A:$N,MATCH(H$5,月次ピボット!$B$3:$M$3,0)+1,FALSE)) -> 0 | I52: =IF(ISERROR(VLOOKUP($B52,月次ピボット!$A:$N,MATCH(I$5,月次ピボット!$B$3:$M$3,0)+1,FALSE)),0,VLOOKUP($B52,月次ピボット!$A:$N,MATCH(I$5,月次ピボット!$B$3:$M$3,0)+1,FALSE)) -> 0 | J52: =IF(ISERROR(VLOOKUP($B52,月次ピボット!$A:$N,MATCH(J$5,月次ピボット!$B$3:$M$3,0)+1,FALSE)),0,VLOOKUP($B52,月次ピボット!$A:$N,MATCH(J$5,月次ピボット!$B$3:$M$3,0)+1,FALSE)) -> 0 | K52: =IF(ISERROR(VLOOKUP($B52,月次ピボット!$A:$N,MATCH(K$5,月次ピボット!$B$3:$M$3,0)+1,FALSE)),0,VLOOKUP($B52,月次ピボット!$A:$N,MATCH(K$5,月次ピボット!$B$3:$M$3,0)+1,FALSE)) -> 0 | L52: =IF(ISERROR(VLOOKUP($B52,月次ピボット!$A:$N,MATCH(L$5,月次ピボット!$B$3:$M$3,0)+1,FALSE)),0,VLOOKUP($B52,月次ピボット!$A:$N,MATCH(L$5,月次ピボット!$B$3:$M$3,0)+1,FALSE)) -> 0 | M52: =IF(ISERROR(VLOOKUP($B52,月次ピボット!$A:$N,MATCH(M$5,月次ピボット!$B$3:$M$3,0)+1,FALSE)),0,VLOOKUP($B52,月次ピボット!$A:$N,MATCH(M$5,月次ピボット!$B$3:$M$3,0)+1,FALSE)) -> 0 | N52: =IF(ISERROR(VLOOKUP($B52,月次ピボット!$A:$N,MATCH(N$5,月次ピボット!$B$3:$M$3,0)+1,FALSE)),0,VLOOKUP($B52,月次ピボット!$A:$N,MATCH(N$5,月次ピボット!$B$3:$M$3,0)+1,FALSE)) -> 0
B53: 財務等支出合計 | C53: =SUM(C43:C52) -> 696949 | D53: =SUM(D43:D52) -> 5009593 | E53: 697837 | F53: 698282 | G53: 698728 | H53: 699175 | I53: =SUM(I43:I52) -> 699623 | J53: 5856872 | K53: 0 | L53: 0 | M53: 0 | N53: 0
B55: 財務収支過不足 | C55: =C40-C53 -> -696949 | D55: =D40-D53 -> -5009593 | E55: -697837 | F55: -698282 | G55: -698728 | H55: -699175 | I55: =I40-I53 -> -699623 | J55: -5856872 | K55: 0 | L55: 0 | M55: 0 | N55: 0
B58: 総合収入額 | C58: =SUM(C16,C40) -> 14434406 | D58: =SUM(D16,D40) -> 23849472 | E58: 28317313 | F58: 21979242 | G58: 25824353 | H58: 30383076 | I58: =SUM(I16,I40) -> 31773646 | J58: 27648094 | K58: 0 | L58: 0 | M58: 0 | N58: 0
B59: 総合支出額 | C59: =SUM(C26,C53) -> 14063245 | D59: =SUM(D26,D53) -> 23035665 | E59: 27895210 | F59: 24509238 | G59: 26974362 | H59: 23696041 | I59: =SUM(I26,I53) -> 27222311 | J59: 25944525 | K59: 0 | L59: 0 | M59: 0 | N59: 0
B60: 総合収支過不足 | C60: =C58-C59 -> 371161 | D60: =D58-D59 -> 813807 | E60: 422103 | F60: -2529996 | G60: -1150009 | H60: 6687035 | I60: =I58-I59 -> 4551335 | J60: 1703569 | K60: 0 | L60: 0 | M60: 0 | N60: 0
B62: 月初資金残高 | C62: =基本情報!B24 -> 457250582 | D62: =C63 -> 457621743 | E62: =D63 -> 458435550 | F62: 458857653 | G62: 456327657 | H62: 455177648 | I62: 461864683 | J62: 466416018 | K62: 468119587 | L62: 468119587 | M62: 468119587 | N62: 468119587
B63: 月末資金残高 | C63: =C62+C60 -> 457621743 | D63: =D62+D60 -> 458435550 | E63: =E62+E60 -> 458857653 | F63: 456327657 | G63: 455177648 | H63: 461864683 | I63: =I62+I60 -> 466416018 | J63: 468119587 | K63: 468119587 | L63: 468119587 | M63: 468119587 | N63: 468119587

Sheet 入出金対比グラフ
B1: =基本情報!B9 -> 株式会社弥生トレーディング | N1: =IF(基本情報!B31="","",基本情報!B31) -> 小林敬幸税理士事務所
B3: 総合収支額と資金残高の対比
C19: =月別資金繰り表!C6 -> 2020-04-01 | D19: =EOMONTH(C19,1) -> 2020-05-31 | E19: =EOMONTH(D19,1) -> 2020-06-30 | F19: 2020-07-31 | G19: 2020-08-31 | H19: 2020-09-30 | I19: 2020-10-31 | J19: 2020-11-30 | K19: 2020-12-31 | L19: 2021-01-31 | M19: 2021-02-28 | N19: 2021-03-31
B20: 総合収入額 | C20: =月別資金繰り表!C58 -> 14434406 | D20: =月別資金繰り表!D58 -> 23849472 | E20: =月別資金繰り表!E58 -> 28317313 | F20: =月別資金繰り表!F58 -> 21979242 | G20: =月別資金繰り表!G58 -> 25824353 | H20: =月別資金繰り表!H58 -> 30383076 | I20: =月別資金繰り表!I58 -> 31773646 | J20: =月別資金繰り表!J58 -> 27648094 | K20: =月別資金繰り表!K58 -> 0 | L20: =月別資金繰り表!L58 -> 0 | M20: =月別資金繰り表!M58 -> 0 | N20: =月別資金繰り表!N58 -> 0
B21: 総合支出額 | C21: =月別資金繰り表!C59 -> 14063245 | D21: =月別資金繰り表!D59 -> 23035665 | E21: =月別資金繰り表!E59 -> 27895210 | F21: =月別資金繰り表!F59 -> 24509238 | G21: =月別資金繰り表!G59 -> 26974362 | H21: =月別資金繰り表!H59 -> 23696041 | I21: =月別資金繰り表!I59 -> 27222311 | J21: =月別資金繰り表!J59 -> 25944525 | K21: =月別資金繰り表!K59 -> 0 | L21: =月別資金繰り表!L59 -> 0 | M21: =月別資金繰り表!M59 -> 0 | N21: =月別資金繰り表!N59 -> 0
B22: 資金残高 | C22: =月別資金繰り表!C63 -> 457621743 | D22: =月別資金繰り表!D63 -> 458435550 | E22: =月別資金繰り表!E63 -> 458857653 | F22: =月別資金繰り表!F63 -> 456327657 | G22: =月別資金繰り表!G63 -> 455177648 | H22: =月別資金繰り表!H63 -> 461864683 | I22: =月別資金繰り表!I63 -> 466416018 | J22: =月別資金繰り表!J63 -> 468119587 | K22: =月別資金繰り表!K63 -> 468119587 | L22: =月別資金繰り表!L63 -> 468119587 | M22: =月別資金繰り表!M63 -> 468119587 | N22: =月別資金繰り表!N63 -> 468119587
B25: 経常収支と借入金返済額の対比
C42: =月別資金繰り表!C6 -> 2020-04-01 | D42: =EOMONTH(C42,1) -> 2020-05-31 | E42: =EOMONTH(D42,1) -> 2020-06-30 | F42: =EOMONTH(E42,1) -> 2020-07-31 | G42: =EOMONTH(F42,1) -> 2020-08-31 | H42: =EOMONTH(G42,1) -> 2020-09-30 | I42: =EOMONTH(H42,1) -> 2020-10-31 | J42: =EOMONTH(I42,1) -> 2020-11-30 | K42: =EOMONTH(J42,1) -> 2020-12-31 | L42: =EOMONTH(K42,1) -> 2021-01-31 | M42: =EOMONTH(L42,1) -> 2021-02-28 | N42: =EOMONTH(M42,1) -> 2021-03-31
B43: 経常収支額 | C43: =月別資金繰り表!C28 -> 1068110 | D43: =月別資金繰り表!D28 -> 5823400 | E43: =月別資金繰り表!E28 -> 1119940 | F43: =月別資金繰り表!F28 -> -1831714 | G43: =月別資金繰り表!G28 -> -451281 | H43: =月別資金繰り表!H28 -> 7386210 | I43: =月別資金繰り表!I28 -> 5250958 | J43: =月別資金繰り表!J28 -> 7560441 | K43: =月別資金繰り表!K28 -> 0 | L43: =月別資金繰り表!L28 -> 0 | M43: =月別資金繰り表!M28 -> 0 | N43: =月別資金繰り表!N28 -> 0
B44: 短期借入金返済 | C44: =月別資金繰り表!C43 -> 500000 | D44: =月別資金繰り表!D43 -> 500000 | E44: =月別資金繰り表!E43 -> 500000 | F44: =月別資金繰り表!F43 -> 500000 | G44: =月別資金繰り表!G43 -> 500000 | H44: =月別資金繰り表!H43 -> 500000 | I44: =月別資金繰り表!I43 -> 500000 | J44: =月別資金繰り表!J43 -> 500000 | K44: =月別資金繰り表!K43 -> 0 | L44: =月別資金繰り表!L43 -> 0 | M44: =月別資金繰り表!M43 -> 0 | N44: =月別資金繰り表!N43 -> 0
B45: 長期借入金返済 | C45: =月別資金繰り表!C44 -> 196949 | D45: =月別資金繰り表!D44 -> 197393 | E45: =月別資金繰り表!E44 -> 197837 | F45: =月別資金繰り表!F44 -> 198282 | G45: =月別資金繰り表!G44 -> 198728 | H45: =月別資金繰り表!H44 -> 199175 | I45: =月別資金繰り表!I44 -> 199623 | J45: =月別資金繰り表!J44 -> 200072 | K45: =月別資金繰り表!K44 -> 0 | L45: =月別資金繰り表!L44 -> 0 | M45: =月別資金繰り表!M44 -> 0 | N45: =月別資金繰り表!N44 -> 0
B46: 役員・関係会社等借入金返済 | C46: =月別資金繰り表!C45 -> 0 | D46: =月別資金繰り表!D45 -> 0 | E46: =月別資金繰り表!E45 -> 0 | F46: =月別資金繰り表!F45 -> 0 | G46: =月別資金繰り表!G45 -> 0 | H46: =月別資金繰り表!H45 -> 0 | I46: =月別資金繰り表!I45 -> 0 | J46: =月別資金繰り表!J45 -> 0 | K46: =月別資金繰り表!K45 -> 0 | L46: =月別資金繰り表!L45 -> 0 | M46: =月別資金繰り表!M45 -> 0 | N46: =月別資金繰り表!N45 -> 0
B47: 長期未払金支払 | C47: =月別資金繰り表!C46 -> 0 | D47: =月別資金繰り表!D46 -> 0 | E47: =月別資金繰り表!E46 -> 0 | F47: =月別資金繰り表!F46 -> 0 | G47: =月別資金繰り表!G46 -> 0 | H47: =月別資金繰り表!H46 -> 0 | I47: =月別資金繰り表!I46 -> 0 | J47: =月別資金繰り表!J46 -> 0 | K47: =月別資金繰り表!K46 -> 0 | L47: =月別資金繰り表!L46 -> 0 | M47: =月別資金繰り表!M46 -> 0 | N47: =月別資金繰り表!N46 -> 0
B48: 資金残高 | C48: =月別資金繰り表!C63 -> 457621743 | D48: =月別資金繰り表!D63 -> 458435550 | E48: =月別資金繰り表!E63 -> 458857653 | F48: =月別資金繰り表!F63 -> 456327657 | G48: =月別資金繰り表!G63 -> 455177648 | H48: =月別資金繰り表!H63 -> 461864683 | I48: =月別資金繰り表!I63 -> 466416018 | J48: =月別資金繰り表!J63 -> 468119587 | K48: =月別資金繰り表!K63 -> 468119587 | L48: =月別資金繰り表!L63 -> 468119587 | M48: =月別資金繰り表!M63 -> 468119587 | N48: =月別資金繰り表!N63 -> 468119587

Sheet 資金借入金対比グラフ
B1: =基本情報!B9 -> 株式会社弥生トレーディング | N1: =IF(基本情報!B31="","",基本情報!B31) -> 小林敬幸税理士事務所
B3: 資金残高と借入金残高の対比
C42: =月別資金繰り表!C6 -> 2020-04-01 | D42: =EOMONTH(C42,1) -> 2020-05-31 | E42: =EOMONTH(D42,1) -> 2020-06-30 | F42: 2020-07-31 | G42: 2020-08-31 | H42: 2020-09-30 | I42: 2020-10-31 | J42: 2020-11-30 | K42: 2020-12-31 | L42: 2021-01-31 | M42: 2021-02-28 | N42: 2021-03-31
B43: 資金残高 | C43: =月別資金繰り表!C63 -> 457621743 | D43: =月別資金繰り表!D63 -> 458435550 | E43: =月別資金繰り表!E63 -> 458857653 | F43: =月別資金繰り表!F63 -> 456327657 | G43: =月別資金繰り表!G63 -> 455177648 | H43: =月別資金繰り表!H63 -> 461864683 | I43: =月別資金繰り表!I63 -> 466416018 | J43: =月別資金繰り表!J63 -> 468119587 | K43: =月別資金繰り表!K63 -> 468119587 | L43: =月別資金繰り表!L63 -> 468119587 | M43: =月別資金繰り表!M63 -> 468119587 | N43: =月別資金繰り表!N63 -> 468119587
B44: 短期借入金残高 | C44: =基本情報!B34+月別資金繰り表!C32-月別資金繰り表!C43 -> 3500000 | D44: =C44+月別資金繰り表!D32-月別資金繰り表!D43 -> 3000000 | E44: =D44+月別資金繰り表!E32-月別資金繰り表!E43 -> 2500000 | F44: =E44+月別資金繰り表!F32-月別資金繰り表!F43 -> 2000000 | G44: =F44+月別資金繰り表!G32-月別資金繰り表!G43 -> 1500000 | H44: =G44+月別資金繰り表!H32-月別資金繰り表!H43 -> 1000000 | I44: =H44+月別資金繰り表!I32-月別資金繰り表!I43 -> 500000 | J44: =I44+月別資金繰り表!J32-月別資金繰り表!J43 -> 0 | K44: =J44+月別資金繰り表!K32-月別資金繰り表!K43 -> 0 | L44: =K44+月別資金繰り表!L32-月別資金繰り表!L43 -> 0 | M44: =L44+月別資金繰り表!M32-月別資金繰り表!M43 -> 0 | N44: =M44+月別資金繰り表!N32-月別資金繰り表!N43 -> 0
B45: 長期借入金残高 | C45: =基本情報!B35+月別資金繰り表!C33-月別資金繰り表!C44 -> 7196553 | D45: =C45+月別資金繰り表!D33-月別資金繰り表!D44 -> 6999160 | E45: =D45+月別資金繰り表!E33-月別資金繰り表!E44 -> 6801323 | F45: =E45+月別資金繰り表!F33-月別資金繰り表!F44 -> 6603041 | G45: =F45+月別資金繰り表!G33-月別資金繰り表!G44 -> 6404313 | H45: =G45+月別資金繰り表!H33-月別資金繰り表!H44 -> 6205138 | I45: =H45+月別資金繰り表!I33-月別資金繰り表!I44 -> 6005515 | J45: =I45+月別資金繰り表!J33-月別資金繰り表!J44 -> 5805443 | K45: =J45+月別資金繰り表!K33-月別資金繰り表!K44 -> 5805443 | L45: =K45+月別資金繰り表!L33-月別資金繰り表!L44 -> 5805443 | M45: =L45+月別資金繰り表!M33-月別資金繰り表!M44 -> 5805443 | N45: =M45+月別資金繰り表!N33-月別資金繰り表!N44 -> 5805443
B46: 役員・関係会社等借入金残高 | C46: =基本情報!B36+月別資金繰り表!C34-月別資金繰り表!C46 -> 0 | D46: =C46+月別資金繰り表!D34-月別資金繰り表!D46 -> 0 | E46: =D46+月別資金繰り表!E34-月別資金繰り表!E46 -> 0 | F46: =E46+月別資金繰り表!F34-月別資金繰り表!F46 -> 0 | G46: =F46+月別資金繰り表!G34-月別資金繰り表!G46 -> 0 | H46: =G46+月別資金繰り表!H34-月別資金繰り表!H46 -> 0 | I46: =H46+月別資金繰り表!I34-月別資金繰り表!I46 -> 0 | J46: =I46+月別資金繰り表!J34-月別資金繰り表!J46 -> 0 | K46: =J46+月別資金繰り表!K34-月別資金繰り表!K46 -> 0 | L46: =K46+月別資金繰り表!L34-月別資金繰り表!L46 -> 0 | M46: =L46+月別資金繰り表!M34-月別資金繰り表!M46 -> 0 | N46: =M46+月別資金繰り表!N34-月別資金繰り表!N46 -> 0
B47: 長期未払金残高 | C47: =基本情報!B37+月別資金繰り表!C35-月別資金繰り表!C46 -> 0 | D47: =C47+月別資金繰り表!D35-月別資金繰り表!D46 -> 0 | E47: =D47+月別資金繰り表!E35-月別資金繰り表!E46 -> 0 | F47: =E47+月別資金繰り表!F35-月別資金繰り表!F46 -> 0 | G47: =F47+月別資金繰り表!G35-月別資金繰り表!G46 -> 0 | H47: =G47+月別資金繰り表!H35-月別資金繰り表!H46 -> 0 | I47: =H47+月別資金繰り表!I35-月別資金繰り表!I46 -> 0 | J47: =I47+月別資金繰り表!J35-月別資金繰り表!J46 -> 0 | K47: =J47+月別資金繰り表!K35-月別資金繰り表!K46 -> 0 | L47: =K47+月別資金繰り表!L35-月別資金繰り表!L46 -> 0 | M47: =L47+月別資金繰り表!M35-月別資金繰り表!M46 -> 0 | N47: =M47+月別資金繰り表!N35-月別資金繰り表!N46 -> 0
B48: 経常収入 | C48: =月別資金繰り表!C16 -> 14434406 | D48: =月別資金繰り表!D16 -> 23849472 | E48: =月別資金繰り表!E16 -> 28317313 | F48: =月別資金繰り表!F16 -> 21979242 | G48: =月別資金繰り表!G16 -> 25824353 | H48: =月別資金繰り表!H16 -> 30383076 | I48: =月別資金繰り表!I16 -> 31773646 | J48: =月別資金繰り表!J16 -> 27648094 | K48: =月別資金繰り表!K16 -> 0 | L48: =月別資金繰り表!L16 -> 0 | M48: =月別資金繰り表!M16 -> 0 | N48: =月別資金繰り表!N16 -> 0

Sheet 勘定科目マスター
B8: 勘定科目 | C8: 資金増の区分 | D8: 資金減の区分 | E8: 収入／支出 | G8: ※資金繰り表項目一覧
B9: 定期預金 | C9: 定期性預金払戻 | D9: 定期性預金預入 | E9: =IF(ISERROR(VLOOKUP(D9,H$10:I$41,2,0)),"",VLOOKUP(D9,H$10:I$41,2,0)) -> 支出 | G9: 取引の種類 | H9: 税区分名 | I9: 収入／支出 | J9: 取引の種類
B10: 定期積金 | C10: 定期性預金払戻 | D10: 定期性預金預入 | E10: =IF(ISERROR(VLOOKUP(D10,H$10:I$41,2,0)),"",VLOOKUP(D10,H$10:I$41,2,0)) -> 支出 | G10: 経常収入 | H10: 現金売上 | I10: 収入 | J10: 経常収入
B11: 郵便貯金 | C11: 定期性預金払戻 | D11: 定期性預金預入 | E11: 支出 | H11: 売掛金回収 | I11: 収入 | J11: 経常収入
B12: 受取手形 | C12: 受取手形期日取立 | D12: その他経常支出 | E12: 支出 | H12: 受取手形期日取立 | I12: 収入 | J12: 経常収入
B13: 売掛金 | C13: 売掛金回収 | D13: その他経常支出 | E13: 支出 | H13: 受取手形割引 | I13: 収入 | J13: 経常収入
B14: 仕掛品 | C14: その他経常収入 | D14: 現金仕入 | E14: 支出 | H14: 利息等収入 | I14: 収入 | J14: 経常収入
B15: 有価証券 | C15: 投資・貸付金等回収 | D15: 投資・貸付金等支出 | E15: 支出 | H15: 雑収入 | I15: 収入 | J15: 経常収入
B16: 前渡金 | C16: その他経常収入 | D16: その他経常支出 | E16: 支出 | H16: その他経常収入 | I16: 収入 | J16: 経常収入
B17: 立替金 | C17: その他経常収入 | D17: その他経常支出 | E17: 支出 | G17: 経常支出 | H17: 現金仕入 | I17: 支出 | J17: 経常支出
B18: 前払費用 | C18: その他経常収入 | D18: その他経常支出 | E18: 支出 | H18: 買掛金支払 | I18: 支出 | J18: 経常支出
B19: 未収収益 | C19: その他経常収入 | D19: その他経常支出 | E19: 支出 | H19: 支払手形決済 | I19: 支出 | J19: 経常支出
B20: 短期貸付金 | C20: 投資・貸付金等回収 | D20: 投資・貸付金等支出 | E20: 支出 | H20: 人件費支出 | I20: 支出 | J20: 経常支出
B21: 未収入金 | C21: その他経常収入 | D21: その他経常支出 | E21: 支出 | H21: 諸経費支出 | I21: 支出 | J21: 経常支出
B22: 仮払金 | C22: その他経常収入 | D22: その他経常支出 | E22: 支出 | H22: 利息等支出 | I22: 支出 | J22: 経常支出
B23: 預け金 | C23: その他経常収入 | D23: その他経常支出 | E23: 支出 | H23: その他経常支出 | I23: 支出 | J23: 経常支出
B24: 建物 | C24: 固定資産売却収入 | D24: 固定資産取得 | E24: 支出 | G24: 財務等収入 | H24: 短期借入金借入 | I24: 収入 | J24: 財務等収入
B25: 附属設備 | C25: 固定資産売却収入 | D25: 固定資産取得 | E25: 支出 | H25: 長期借入金借入 | I25: 収入 | J25: 財務等収入
B26: 構築物 | C26: 固定資産売却収入 | D26: 固定資産取得 | E26: 支出 | H26: 役員・関係会社等借入 | I26: 収入 | J26: 財務等収入
B27: 機械装置 | C27: 固定資産売却収入 | D27: 固定資産取得 | E27: 支出 | H27: 長期未払金収入 | I27: 収入 | J27: 財務等収入
B28: 車両運搬具 | C28: 固定資産売却収入 | D28: 固定資産取得 | E28: 支出 | H28: 固定資産売却収入 | I28: 収入 | J28: 財務等収入
B29: 工具器具備品 | C29: 固定資産売却収入 | D29: 固定資産取得 | E29: 支出 | H29: 定期性預金払戻 | I29: 収入 | J29: 財務等収入
B30: 土地 | C30: 固定資産売却収入 | D30: 固定資産取得 | E30: 支出 | H30: 投資・貸付金等回収 | I30: 収入 | J30: 財務等収入
B31: 建設仮勘定 | C31: 固定資産売却収入 | D31: 固定資産取得 | E31: 支出 | H31: その他財務等収入 | I31: 収入 | J31: 財務等収入
B32: ソフトウェア | C32: 固定資産売却収入 | D32: 固定資産取得 | E32: 支出 | G32: 財務等支出 | H32: 短期借入金返済 | I32: 支出 | J32: 財務等支出
B33: 投資有価証券 | C33: 投資・貸付金等回収 | D33: 投資・貸付金等支出 | E33: 支出 | H33: 長期借入金返済 | I33: 支出 | J33: 財務等支出
B34: 出資金 | C34: 投資・貸付金等回収 | D34: 投資・貸付金等支出 | E34: 支出 | H34: 役員・関係会社等返済 | I34: 支出 | J34: 財務等支出
B35: 敷金 | C35: 固定資産売却収入 | D35: 固定資産取得 | E35: 支出 | H35: 長期未払金支払 | I35: 支出 | J35: 財務等支出
B36: 差入保証金 | C36: 固定資産売却収入 | D36: 固定資産取得 | E36: 支出 | H36: 固定資産取得 | I36: 支出 | J36: 財務等支出
B37: 長期貸付金 | C37: 投資・貸付金等回収 | D37: 投資・貸付金等支出 | E37: 支出 | H37: 定期性預金預入 | I37: 支出 | J37: 財務等支出
B38: 長期前払費用 | C38: 固定資産売却収入 | D38: 固定資産取得 | E38: 支出 | H38: 投資・貸付金等支出 | I38: 支出 | J38: 財務等支出
B39: 預託金 | C39: 固定資産売却収入 | D39: 固定資産取得 | E39: 支出 | H39: 法人税等支払 | I39: 支出 | J39: 財務等支出
B40: 支払手形 | C40: その他経常収入 | D40: 支払手形決済 | E40: 支出 | H40: 消費税等支払 | I40: 支出 | J40: 財務等支出
B41: 買掛金 | C41: その他経常収入 | D41: 買掛金支払 | E41: 支出 | H41: その他財務等支出 | I41: 支出 | J41: 財務等支出
B42: 短期借入金 | C42: 短期借入金借入 | D42: 短期借入金返済 | E42: 支出
B43: 未払金 | C43: その他経常収入 | D43: その他経常支出 | E43: 支出
B44: 未払費用 | C44: その他経常収入 | D44: その他経常支出 | E44: 支出
B45: 未払法人税等 | C45: その他経常収入 | D45: 法人税等支払 | E45: 支出
B46: 未払消費税等 | C46: その他経常収入 | D46: 消費税等支払 | E46: 支出
B47: 前受金 | C47: その他経常収入 | D47: その他経常支出 | E47: 支出
B48: 預り金 | C48: その他経常収入 | D48: その他経常支出 | E48: 支出
B49: 前受収益 | C49: その他経常収入 | D49: その他経常支出 | E49: 支出
B50: 仮受金 | C50: その他経常収入 | D50: その他経常支出 | E50: 支出
B51: 預り保証金 | C51: その他経常収入 | D51: その他経常支出 | E51: 支出
B52: 長期借入金 | C52: 長期借入金借入 | D52: 長期借入金返済 | E52: 支出
B53: 長期未払金 | C53: その他経常収入 | D53: 長期未払金支払 | E53: 支出
B54: 売上高 | C54: 現金売上 | D54: 現金売上 | E54: 収入
B55: 仕入高 | C55: 現金仕入 | D55: 現金仕入 | E55: 支出
B56: 役員報酬 | C56: 人件費支出 | D56: 人件費支出 | E56: 支出
B57: 役員賞与 | C57: 人件費支出 | D57: 人件費支出 | E57: 支出
B58: 給料手当 | C58: 人件費支出 | D58: 人件費支出 | E58: 支出
B59: 雑給 | C59: 人件費支出 | D59: 人件費支出 | E59: 支出
B60: 賞与 | C60: 人件費支出 | D60: 人件費支出 | E60: 支出
B61: 退職金 | C61: 人件費支出 | D61: 人件費支出 | E61: 支出
B62: 法定福利費 | C62: 人件費支出 | D62: 人件費支出 | E62: 支出
B63: 福利厚生費 | C63: 人件費支出 | D63: 人件費支出 | E63: 支出
B64: 採用教育費 | C64: 人件費支出 | D64: 人件費支出 | E64: 支出
B65: 外注費 | C65: 諸経費支出 | D65: 諸経費支出 | E65: 支出
B66: 荷造運賃 | C66: 諸経費支出 | D66: 諸経費支出 | E66: 支出
B67: 広告宣伝費 | C67: 諸経費支出 | D67: 諸経費支出 | E67: 支出
B68: 交際費 | C68: 諸経費支出 | D68: 諸経費支出 | E68: 支出
B69: 会議費 | C69: 諸経費支出 | D69: 諸経費支出 | E69: 支出
B70: 旅費交通費 | C70: 諸経費支出 | D70: 諸経費支出 | E70: 支出
B71: 通信費 | C71: 諸経費支出 | D71: 諸経費支出 | E71: 支出
B72: 販売手数料 | C72: 諸経費支出 | D72: 諸経費支出 | E72: 支出
B73: 販売促進費 | C73: 諸経費支出 | D73: 諸経費支出 | E73: 支出
B74: 消耗品費 | C74: 諸経費支出 | D74: 諸経費支出 | E74: =IF(ISERROR(VLOOKUP(D74,H$10:I$41,2,0)),"",VLOOKUP(D74,H$10:I$41,2,0)) -> 支出
B75: 事務用品費 | C75: 諸経費支出 | D75: 諸経費支出 | E75: 支出
B76: 修繕費 | C76: 諸経費支出 | D76: 諸経費支出 | E76: 支出
B77: 水道光熱費 | C77: 諸経費支出 | D77: 諸経費支出 | E77: 支出
B78: 新聞図書費 | C78: 諸経費支出 | D78: 諸経費支出 | E78: 支出
B79: 諸会費 | C79: 諸経費支出 | D79: 諸経費支出 | E79: 支出
B80: 支払手数料 | C80: 諸経費支出 | D80: 諸経費支出 | E80: 支出
B81: 車両費 | C81: 諸経費支出 | D81: 諸経費支出 | E81: 支出
B82: 地代家賃 | C82: 諸経費支出 | D82: 諸経費支出 | E82: 支出
B83: 賃借料 | C83: 諸経費支出 | D83: 諸経費支出 | E83: 支出
B84: リース料 | C84: 諸経費支出 | D84: 諸経費支出 | E84: 支出
B85: 保険料 | C85: 諸経費支出 | D85: 諸経費支出 | E85: 支出
B86: 租税公課 | C86: 諸経費支出 | D86: 諸経費支出 | E86: 支出
B87: 支払報酬料 | C87: 諸経費支出 | D87: 諸経費支出 | E87: 支出
B88: 寄付金 | C88: 諸経費支出 | D88: 諸経費支出 | E88: 支出
B89: 研究開発費 | C89: 諸経費支出 | D89: 諸経費支出 | E89: 支出
B90: 雑費 | C90: 諸経費支出 | D90: 諸経費支出 | E90: 支出
B91: 受取利息 | C91: 利息等収入 | D91: 利息等収入 | E91: 収入
B92: 受取配当金 | C92: 利息等収入 | D92: 利息等収入 | E92: 収入
B93: 雑収入 | C93: 雑収入 | D93: 雑収入 | E93: 収入
B94: 支払利息 | C94: 利息等支出 | D94: 利息等支出 | E94: 支出
B95: 割引料 | C95: 利息等支出 | D95: 利息等支出 | E95: 支出
B96: 手形売却損 | C96: 利息等支出 | D96: 利息等支出 | E96: 支出
B97: 貸倒損失(外) | C97: 諸経費支出 | D97: 諸経費支出 | E97: 支出
B98: 売上割引 | C98: 利息等支出 | D98: 利息等支出 | E98: 支出
B99: 雑損失 | C99: その他経常支出 | D99: その他経常支出 | E99: 支出
B100: 法人税、住民税及び事業税 | C100: 法人税等支払 | D100: 法人税等支払 | E100: 支出
B101: 法人税等 | C101: 法人税等支払 | D101: 法人税等支払 | E101: 支出
B102: [製]材料仕入高 | C102: 現金仕入 | D102: 現金仕入 | E102: 支出
B103: [製]役員報酬 | C103: 人件費支出 | D103: 人件費支出 | E103: 支出
B104: [製]給料手当 | C104: 人件費支出 | D104: 人件費支出 | E104: 支出
B105: [製]雑給 | C105: 人件費支出 | D105: 人件費支出 | E105: 支出
B106: [製]賞与 | C106: 人件費支出 | D106: 人件費支出 | E106: 支出
B107: [製]退職金 | C107: 人件費支出 | D107: 人件費支出 | E107: 支出
B108: [製]法定福利費 | C108: 人件費支出 | D108: 人件費支出 | E108: 支出
B109: [製]福利厚生費 | C109: 人件費支出 | D109: 人件費支出 | E109: 支出
B110: [製]外注加工費 | C110: 諸経費支出 | D110: 諸経費支出 | E110: 支出
B111: [製]動力費 | C111: 諸経費支出 | D111: 諸経費支出 | E111: 支出
B112: [製]荷造運賃 | C112: 諸経費支出 | D112: 諸経費支出 | E112: 支出
B113: [製]会議費 | C113: 諸経費支出 | D113: 諸経費支出 | E113: 支出
B114: [製]旅費交通費 | C114: 諸経費支出 | D114: 諸経費支出 | E114: 支出
B115: [製]通信費 | C115: 諸経費支出 | D115: 諸経費支出 | E115: 支出
B116: [製]消耗品費 | C116: 諸経費支出 | D116: 諸経費支出 | E116: 支出
B117: [製]事務用品費 | C117: 諸経費支出 | D117: 諸経費支出 | E117: 支出
B118: [製]消耗工具費 | C118: 諸経費支出 | D118: 諸経費支出 | E118: 支出
B119: [製]車両費 | C119: 諸経費支出 | D119: 諸経費支出 | E119: 支出
B120: [製]修繕費 | C120: 諸経費支出 | D120: 諸経費支出 | E120: 支出
B121: [製]水道光熱費 | C121: 諸経費支出 | D121: 諸経費支出 | E121: 支出
B122: [製]新聞図書費 | C122: 諸経費支出 | D122: 諸経費支出 | E122: 支出
B123: [製]諸会費 | C123: 諸経費支出 | D123: 諸経費支出 | E123: 支出
B124: [製]地代家賃 | C124: 諸経費支出 | D124: 諸経費支出 | E124: 支出
B125: [製]賃借料 | C125: 諸経費支出 | D125: 諸経費支出 | E125: 支出
B126: [製]租税公課 | C126: 諸経費支出 | D126: 諸経費支出 | E126: 支出
B127: [製]保険料 | C127: 諸経費支出 | D127: 諸経費支出 | E127: 支出
B128: [製]支払報酬料 | C128: 諸経費支出 | D128: 諸経費支出 | E128: 支出
B129: [製]寄付金 | C129: 諸経費支出 | D129: 諸経費支出 | E129: 支出
B130: [製]研究開発費 | C130: 諸経費支出 | D130: 諸経費支出 | E130: 支出
B131: [製]保管料 | C131: 諸経費支出 | D131: 諸経費支出 | E131: 支出
B132: [製]特許使用料 | C132: 諸経費支出 | D132: 諸経費支出 | E132: 支出
B133: [製]雑費 | C133: 諸経費支出 | D133: 諸経費支出 | E133: 支出
B134: 仮払消費税等 | C134: その他経常収入 | D134: その他経常収入 | E134: 収入
B135: 仮受消費税等 | C135: その他経常収入 | D135: その他経常収入 | E135: 収入
B136: [製]外注費 | C136: 諸経費支出 | D136: 諸経費支出 | E136: 支出
B137: 仮受消費税 | C137: その他経常収入 | D137: その他経常支出 | E137: 支出
B138: 仮払消費税 | C138: その他経常収入 | D138: その他経常支出 | E138: =IF(ISERROR(VLOOKUP(D138,H$10:I$41,2,0)),"",VLOOKUP(D138,H$10:I$41,2,0)) -> 支出
B139: 研修費 | C139: 諸経費支出 | D139: 諸経費支出 | E139: 支出
B140: 退職慰労金 | C140: 諸経費支出 | D140: 諸経費支出 | E140: 支出
B141: 保険積立金 | C141: 固定資産売却収入 | D141: 固定資産取得 | E141: 支出
B142: 保証金 | C142: 固定資産売却収入 | D142: 固定資産取得 | E142: 支出

Sheet データ基礎 (hidden)
A1: 日付 | B1: 借方科目 | C1: 借方金額 | D1: 貸方科目 | E1: 貸方金額 | F1: 摘要 | G1: 増・減 | H1: 相手科目 | I1: 資金繰り表科目 | J1: 収／支 | K1: 金額 | L1: 借方補助科目 | M1: 貸方補助科目 | N1: 相手補助科目 | O1: 資金繰り表区分 | P1: 増減金額
A2: 2020-04-01 | B2: 福利厚生費 | C2: 2000 | D2: 現金 | E2: 2000 | F2: 軽減税率：従業員夜食代 | G2: 減 | H2: 福利厚生費 | I2: 人件費支出 | J2: 支出 | K2: 2000 | O2: 経常支出 | P2: -2000
A3: 2020-04-05 | B3: 現金 | C3: 230100 | D3: 売上高 | E3: 230100 | F3: 本日売上 | G3: 増 | H3: 売上高 | I3: 現金売上 | J3: 収入 | K3: 230100 | O3: 経常収入 | P3: 230100
A4: 2020-04-05 | B4: 保険料 | C4: 46000 | D4: 普通預金 | E4: 46000 | F4: 自動車保険 | G4: 減 | H4: 保険料 | I4: 諸経費支出 | J4: 支出 | K4: 46000 | L4: 損害保険 | M4: 赤坂銀行 本店 | N4: 損害保険 | O4: 経常支出 | P4: -46000
A5: 2020-04-05 | B5: 当座預金 | C5: 1658600 | D5: 売掛金 | E5: 1658600 | F5: 掛代金回収 越後屋 | G5: 増 | H5: 売掛金 | I5: 売掛金回収 | J5: 収入 | K5: 1658600 | L5: 北東銀行 築地支店 | M5: 越後屋百貨店 | N5: 越後屋百貨店 | O5: 経常収入 | P5: 1658600
A6: 2020-04-06 | B6: 交際費 | C6: 76280 | D6: 現金 | E6: 76280 | F6: 得意先接待 パブゴールド（佐藤） | G6: 減 | H6: 交際費 | I6: 諸経費支出 | J6: 支出 | K6: 76280 | O6: 経常支出 | P6: -76280
A7: 2020-04-06 | B7: 現金 | C7: 186345 | D7: 売上高 | E7: 186345 | F7: 本日売上 | G7: 増 | H7: 売上高 | I7: 現金売上 | J7: 収入 | K7: 186345 | O7: 経常収入 | P7: 186345
A8: 2020-04-06 | B8: 保険料 | C8: 46000 | D8: 普通預金 | E8: 46000 | F8: 自動車保険 | G8: 減 | H8: 保険料 | I8: 諸経費支出 | J8: 支出 | K8: 46000 | L8: 損害保険 | M8: 赤坂銀行 本店 | N8: 損害保険 | O8: 経常支出 | P8: -46000
A9: 2020-04-07 | B9: 旅費交通費 | C9: 4200 | D9: 現金 | E9: 4200 | F9: タクシー 川島交通（弥生幸子） | G9: 減 | H9: 旅費交通費 | I9: 諸経費支出 | J9: 支出 | K9: 4200 | O9: 経常支出 | P9: -4200
A10: 2020-04-07 | B10: 現金 | C10: 163410 | D10: 売上高 | E10: 163410 | F10: 本日売上 | G10: 増 | H10: 売上高 | I10: 現金売上 | J10: 収入 | K10: 163410 | O10: 経常収入 | P10: 163410
A11: 2020-04-07 | B11: 当座預金 | C11: 147420 | D11: 受取手形 | E11: 147420 | F11: 決済,振出人:中野産業 | G11: 増 | H11: 受取手形 | I11: 受取手形期日取立 | J11: 収入 | K11: 147420 | L11: 北東銀行 築地支店 | O11: 経常収入 | P11: 147420
A12: 2020-04-08 | B12: 現金 | C12: 182829 | D12: 売上高 | E12: 182829 | F12: 本日売上 | G12: 増 | H12: 売上高 | I12: 現金売上 | J12: 収入 | K12: 182829 | O12: 経常収入 | P12: 182829
A13: 2020-04-08 | B13: [製]消耗品費 | C13: 3560 | D13: 現金 | E13: 3560 | F13: ガムテープ セブンマート城西店 | G13: 減 | H13: [製]消耗品費 | I13: 諸経費支出 | J13: 支出 | K13: 3560 | O13: 経常支出 | P13: -3560
A14: 2020-04-08 | B14: [製]消耗品費 | C14: 18000 | D14: 現金 | E14: 18000 | F14: 作業用品 | G14: 減 | H14: [製]消耗品費 | I14: 諸経費支出 | J14: 支出 | K14: 18000 | O14: 経常支出 | P14: -18000
A15: 2020-04-09 | B15: 現金 | C15: 163997 | D15: 売上高 | E15: 163997 | F15: 本日売上 | G15: 増 | H15: 売上高 | I15: 現金売上 | J15: 収入 | K15: 163997 | O15: 経常収入 | P15: 163997
A16: 2020-04-09 | B16: 当座預金 | C16: 122010 | D16: 売掛金 | E16: 122010 | F16: C002中央産業仙台 | G16: 増 | H16: 売掛金 | I16: 売掛金回収 | J16: 収入 | K16: 122010 | L16: 北東銀行 築地支店 | M16: 中央産業仙台 | N16: 中央産業仙台 | O16: 経常収入 | P16: 122010
A17: 2020-04-10 | B17: [製]消耗品費 | C17: 1560 | D17: 現金 | E17: 1560 | F17: ゴミ袋 まるとく商店 | G17: 減 | H17: [製]消耗品費 | I17: 諸経費支出 | J17: 支出 | K17: 1560 | O17: 経常支出 | P17: -1560
A18: 2020-04-10 | B18: [製]消耗品費 | C18: 2730 | D18: 現金 | E18: 2730 | F18: トイレットペーパー まるとく商店 | G18: 減 | H18: [製]消耗品費 | I18: 諸経費支出 | J18: 支出 | K18: 2730 | O18: 経常支出 | P18: -2730
A19: 2020-04-10 | B19: [製]修繕費 | C19: 55000 | D19: 現金 | E19: 55000 | F19: パソコン修理 | G19: 減 | H19: [製]修繕費 | I19: 諸経費支出 | J19: 支出 | K19: 55000 | O19: 経常支出 | P19: -55000
A20: 2020-04-10 | B20: 立替金 | C20: 175897 | D20: 普通預金 | E20: 175897 | F20: 雇用保険の納付 | G20: 減 | H20: 立替金 | I20: その他経常支出 | J20: 支出 | K20: 175897 | L20: 雇用保険 | M20: 港銀行 城西支店 | N20: 雇用保険 | O20: 経常支出 | P20: -175897
A21: 2020-04-11 | B21: 預り金 | C21: 37100 | D21: 普通預金 | E21: 37100 | F21: 住民税支払 | G21: 減 | H21: 預り金 | I21: その他経常支出 | J21: 支出 | K21: 37100 | L21: 住民税 | M21: 港銀行 城西支店 | N21: 住民税 | O21: 経常支出 | P21: -37100
A22: 2020-04-12 | B22: 現金 | C22: 89997 | D22: 売上高 | E22: 89997 | F22: 本日売上 | G22: 増 | H22: 売上高 | I22: 現金売上 | J22: 収入 | K22: 89997 | O22: 経常収入 | P22: 89997
A23: 2020-04-12 | B23: [製]賃借料 | C23: 44625 | D23: 普通預金 | E23: 44625 | F23: 弥生信販 機械リース ３月分 | G23: 減 | H23: [製]賃借料 | I23: 諸経費支出 | J23: 支出 | K23: 44625 | M23: 港銀行 城西支店 | O23: 経常支出 | P23: -44625
A24: 2020-04-13 | B24: 現金 | C24: 162058 | D24: 売上高 | E24: 162058 | F24: 本日売上 | G24: 増 | H24: 売上高 | I24: 現金売上 | J24: 収入 | K24: 162058 | O24: 経常収入 | P24: 162058
A25: 2020-04-14 | B25: 現金 | C25: 186068 | D25: 売上高 | E25: 186068 | F25: 本日売上 | G25: 増 | H25: 売上高 | I25: 現金売上 | J25: 収入 | K25: 186068 | O25: 経常収入 | P25: 186068
A26: 2020-04-15 | B26: 現金 | C26: 1856845 | D26: 売掛金 | E26: 1856845 | F26: 売掛金請求 | G26: 増 | H26: 売掛金 | I26: 売掛金回収 | J26: 収入 | K26: 1856845 | M26: オリエント商会 | N26: オリエント商会 | O26: 経常収入 | P26: 1856845
A27: 2020-04-15 | B27: 水道光熱費 | C27: 20722 | D27: 普通預金 | E27: 20722 | F27: 電気代 関東電力 | G27: 減 | H27: 水道光熱費 | I27: 諸経費支出 | J27: 支出 | K27: 20722 | M27: 港銀行 城西支店 | O27: 経常支出 | P27: -20722
A28: 2020-04-15 | B28: 現金 | C28: 160005 | D28: 売上高 | E28: 160005 | F28: 本日売上 | G28: 増 | H28: 売上高 | I28: 現金売上 | J28: 収入 | K28: 160005 | O28: 経常収入 | P28: 160005
A29: 2020-04-15 | B29: 水道光熱費 | C29: 56325 | D29: 普通預金 | E29: 56325 | F29: 電気代 関東電力 | G29: 減 | H29: 水道光熱費 | I29: 諸経費支出 | J29: 支出 | K29: 56325 | M29: 港銀行 城西支店 | O29: 経常支出 | P29: -56325
A30: 2020-04-15 | B30: [製]通信費 | C30: 36103 | D30: 普通預金 | E30: 36103 | F30: 電話料 ３月分 JＴＴ | G30: 減 | H30: [製]通信費 | I30: 諸経費支出 | J30: 支出 | K30: 36103 | M30: 港銀行 城西支店 | O30: 経常支出 | P30: -36103
A31: 2020-04-15 | B31: [製]水道光熱費 | C31: 35000 | D31: 普通預金 | E31: 35000 | F31: 電気代 関東電力 | G31: 減 | H31: [製]水道光熱費 | I31: 諸経費支出 | J31: 支出 | K31: 35000 | M31: 港銀行 城西支店 | O31: 経常支出 | P31: -35000
A32: 2020-04-15 | B32: 買掛金 | C32: 236000 | D32: 当座預金 | E32: 236000 | F32: 買掛金支払 | G32: 減 | H32: 買掛金 | I32: 買掛金支払 | J32: 支出 | K32: 236000 | L32: アース商店 | M32: 北東銀行 築地支店 | N32: アース商店 | O32: 経常支出 | P32: -236000
A33: 2020-04-15 | B33: 未払金 | C33: 10000 | D33: 普通預金 | E33: 10000 | F33: 接待交際費の支払い | G33: 減 | H33: 未払金 | I33: その他経常支出 | J33: 支出 | K33: 10000 | O33: 経常支出 | P33: -10000
A34: 2020-04-16 | B34: 通信費 | C34: 36520 | D34: 普通預金 | E34: 36520 | F34: 携帯電話 ３月分 モバイル BB （弥生幸子） | G34: 減 | H34: 通信費 | I34: 諸経費支出 | J34: 支出 | K34: 36520 | M34: 港銀行 城西支店 | O34: 経常支出 | P34: -36520
A35: 2020-04-17 | B35: 支払手形 | C35: 1060642 | D35: 当座預金 | E35: 1060642 | F35: 決済 | G35: 減 | H35: 支払手形 | I35: 支払手形決済 | J35: 支出 | K35: 1060642 | M35: 北東銀行 築地支店 | O35: 経常支出 | P35: -1060642
A36: 2020-04-19 | B36: 現金 | C36: 135562 | D36: 売上高 | E36: 135562 | F36: 本日売上 | G36: 増 | H36: 売上高 | I36: 現金売上 | J36: 収入 | K36: 135562 | O36: 経常収入 | P36: 135562
A37: 2020-04-19 | B37: 事務用品費 | C37: 6650 | D37: 現金 | E37: 6650 | F37: 弥生文具 領収書１０冊 | G37: 減 | H37: 事務用品費 | I37: 諸経費支出 | J37: 支出 | K37: 6650 | O37: 経常支出 | P37: -6650
A38: 2020-04-20 | B38: 現金 | C38: 163058 | D38: 売上高 | E38: 163058 | F38: 本日売上 | G38: 増 | H38: 売上高 | I38: 現金売上 | J38: 収入 | K38: 163058 | O38: 経常収入 | P38: 163058
A39: 2020-04-20 | B39: [製]消耗品費 | C39: 8050 | D39: 現金 | E39: 8050 | F39: マット、モップ代 | G39: 減 | H39: [製]消耗品費 | I39: 諸経費支出 | J39: 支出 | K39: 8050 | O39: 経常支出 | P39: -8050
A40: 2020-04-20 | B40: 交際費 | C40: 10000 | D40: 現金 | E40: 10000 | F40: 軽減税率：交際費（贈答品） | G40: 減 | H40: 交際費 | I40: 諸経費支出 | J40: 支出 | K40: 10000 | O40: 経常支出 | P40: -10000
A41: 2020-04-20 | B41: 長期借入金 | C41: 196949 | D41: 当座預金 | E41: 196949 | F41: 設備投資資金返済4月分 | G41: 減 | H41: 長期借入金 | I41: 長期借入金返済 | J41: 支出 | K41: 196949 | L41: 北東銀行 築地支店 | M41: 北東銀行 築地支店 | N41: 北東銀行 築地支店 | O41: 財務等支出 | P41: -196949
A42: 2020-04-20 | B42: 支払利息 | C42: 17079 | D42: 当座預金 | E42: 17079 | G42: 減 | H42: 支払利息 | I42: 利息等支出 | J42: 支出 | K42: 17079 | O42: 経常支出 | P42: -17079
A43: 2020-04-21 | B43: 現金 | C43: 162591 | D43: 売上高 | E43: 162591 | F43: 本日売上 | G43: 増 | H43: 売上高 | I43: 現金売上 | J43: 収入 | K43: 162591 | O43: 経常収入 | P43: 162591
A44: 2020-04-21 | B44: リース料 | C44: 5250 | D44: 普通預金 | E44: 5250 | F44: レジスターリース料 ユーロリース | G44: 減 | H44: リース料 | I44: 諸経費支出 | J44: 支出 | K44: 5250 | M44: 赤坂銀行 本店 | O44: 経常支出 | P44: -5250
A45: 2020-04-22 | B45: 租税公課 | C45: 10000 | D45: 現金 | E45: 10000 | F45: 収入印紙 城西郵便局 | G45: 減 | H45: 租税公課 | I45: 諸経費支出 | J45: 支出 | K45: 10000 | O45: 経常支出 | P45: -10000
A46: 2020-04-22 | B46: 現金 | C46: 98918 | D46: 売上高 | E46: 98918 | F46: 本日売上 | G46: 増 | H46: 売上高 | I46: 現金売上 | J46: 収入 | K46: 98918 | O46: 経常収入 | P46: 98918
A47: 2020-04-22 | B47: 短期借入金 | C47: 500000 | D47: 普通預金 | E47: 500000 | F47: 短期借入金（年末融資（令和１年））返済４回目 | G47: 減 | H47: 短期借入金 | I47: 短期借入金返済 | J47: 支出 | K47: 500000 | L47: 港銀行 城西支店 | M47: 港銀行 城西支店 | N47: 港銀行 城西支店 | O47: 財務等支出 | P47: -500000
A48: 2020-04-22 | B48: 支払利息 | C48: 8812 | D48: 普通預金 | E48: 8812 | G48: 減 | H48: 支払利息 | I48: 利息等支出 | J48: 支出 | K48: 8812 | O48: 経常支出 | P48: -8812
A49: 2020-04-23 | B49: 現金 | C49: 88105 | D49: 売上高 | E49: 88105 | F49: 本日売上 | G49: 増 | H49: 売上高 | I49: 現金売上 | J49: 収入 | K49: 88105 | O49: 経常収入 | P49: 88105
A50: 2020-04-23 | B50: 消耗品費 | C50: 46800 | D50: 現金 | E50: 46800 | F50: 北国電気 店舗オーディオ機器 | G50: 減 | H50: 消耗品費 | I50: 諸経費支出 | J50: 支出 | K50: 46800 | O50: 経常支出 | P50: -46800
A51: 2020-04-24 | B51: 買掛金 | C51: 198000 | D51: 当座預金 | E51: 198000 | F51: 買掛金支払 | G51: 減 | H51: 買掛金 | I51: 買掛金支払 | J51: 支出 | K51: 198000 | L51: スター工芸 | M51: 北東銀行 築地支店 | N51: スター工芸 | O51: 経常支出 | P51: -198000
A52: 2020-04-25 | B52: 旅費交通費 | C52: 285864 | D52: 現金 | E52: 285864 | F52: //給与 4月分 | G52: 減 | H52: 旅費交通費 | I52: 諸経費支出 | J52: 支出 | K52: 285864 | O52: 経常支出 | P52: -285864
A53: 2020-04-25 | B53: 支払手数料 | C53: 1405682 | D53: 当座預金 | E53: 1405682 | F53: //給与 4月分 振込 | G53: 減 | H53: 支払手数料 | I53: 諸経費支出 | J53: 支出 | K53: 1405682 | M53: 北東銀行 築地支店 | O53: 経常支出 | P53: -1405682
A54: 2020-04-25 | B54: 修繕費 | C54: 85000 | D54: 現金 | E54: 85000 | F54: 中沢インテリア ブラインド修理 | G54: 減 | H54: 修繕費 | I54: 諸経費支出 | J54: 支出 | K54: 85000 | O54: 経常支出 | P54: -85000
A55: 2020-04-25 | B55: 新聞図書費 | C55: 4000 | D55: 現金 | E55: 4000 | F55: 軽減税率：新聞購読料（定期購読） | G55: 減 | H55: 新聞図書費 | I55: 諸経費支出 | J55: 支出 | K55: 4000 | O55: 経常支出 | P55: -4000
A56: 2020-04-25 | B56: 新聞図書費 | C56: 3500 | D56: 普通預金 | E56: 3500 | F56: 軽減税率：新聞代（定期購読）普通預金 | G56: 減 | H56: 新聞図書費 | I56: 諸経費支出 | J56: 支出 | K56: 3500 | O56: 経常支出 | P56: -3500
A57: 2020-04-25 | B57: 新聞図書費 | C57: 3000 | D57: 当座預金 | E57: 3000 | F57: 軽減税率：新聞代（定期購読）自動振替 | G57: 減 | H57: 新聞図書費 | I57: 諸経費支出 | J57: 支出 | K57: 3000 | O57: 経常支出 | P57: -3000
A58: 2020-04-25 | B58: 仮払金 | C58: 15000 | D58: 現金 | E58: 15000 | F58: 仮払金支給(交際費) | G58: 減 | H58: 仮払金 | I58: その他経常支出 | J58: 支出 | K58: 15000 | O58: 経常支出 | P58: -15000
A59: 2020-04-26 | B59: 現金 | C59: 169449 | D59: 売上高 | E59: 169449 | F59: 本日売上 | G59: 増 | H59: 売上高 | I59: 現金売上 | J59: 収入 | K59: 169449 | O59: 経常収入 | P59: 169449
A60: 2020-04-26 | B60: 通信費 | C60: 5630 | D60: 普通預金 | E60: 5630 | F60: 国際電話料 IB テレコム ： ペルシャ絨毯 | G60: 減 | H60: 通信費 | I60: 諸経費支出 | J60: 支出 | K60: 5630 | L60: 国際電話 | M60: 港銀行 城西支店 | N60: 国際電話 | O60: 経常支出 | P60: -5630
A61: 2020-04-26 | B61: 当座預金 | C61: 325452 | D61: 売掛金 | E61: 325452 | F61: 売掛金振込入金 | G61: 増 | H61: 売掛金 | I61: 売掛金回収 | J61: 収入 | K61: 325452 | L61: 北東銀行 築地支店 | M61: ミナミ産業 | N61: ミナミ産業 | O61: 経常収入 | P61: 325452
A62: 2020-04-27 | B62: 現金 | C62: 143850 | D62: 売上高 | E62: 143850 | F62: 本日売上 | G62: 増 | H62: 売上高 | I62: 現金売上 | J62: 収入 | K62: 143850 | O62: 経常収入 | P62: 143850
A63: 2020-04-28 | B63: 当座預金 | C63: 1958775 | D63: 売掛金 | E63: 1958775 | F63: L003愛知マート | G63: 増 | H63: 売掛金 | I63: 売掛金回収 | J63: 収入 | K63: 1958775 | L63: 北東銀行 築地支店 | M63: 愛知マート | N63: 愛知マート | O63: 経常収入 | P63: 1958775
A64: 2020-04-28 | B64: リース料 | C64: 12300 | D64: 普通預金 | E64: 12300 | F64: コピーリース料 アジア信販 | G64: 減 | H64: リース料 | I64: 諸経費支出 | J64: 支出 | K64: 12300 | M64: 港銀行 城西支店 | O64: 経常支出 | P64: -12300
A65: 2020-04-28 | B65: 現金 | C65: 150848 | D65: 売上高 | E65: 150848 | F65: 本日売上 | G65: 増 | H65: 売上高 | I65: 現金売上 | J65: 収入 | K65: 150848 | O65: 経常収入 | P65: 150848
A66: 2020-04-29 | B66: 現金 | C66: 176791 | D66: 売上高 | E66: 176791 | F66: 本日売上 | G66: 増 | H66: 売上高 | I66: 現金売上 | J66: 収入 | K66: 176791 | O66: 経常収入 | P66: 176791
A67: 2020-04-29 | B67: 当座預金 | C67: 126000 | D67: 受取手形 | E67: 126000 | F67: 決済,振出人:九州物産 | G67: 増 | H67: 受取手形 | I67: 受取手形期日取立 | J67: 収入 | K67: 126000 | L67: 北東銀行 築地支店 | O67: 経常収入 | P67: 126000
A68: 2020-04-30 | B68: 現金 | C68: 462000 | D68: 売掛金 | E68: 462000 | F68: G001御殿場リビング | G68: 増 | H68: 売掛金 | I68: 売掛金回収 | J68: 収入 | K68: 462000 | M68: 御殿場リビング | N68: 御殿場リビング | O68: 経常収入 | P68: 462000
A69: 2020-04-30 | B69: 福利厚生費 | C69: 4200 | D69: 現金 | E69: 4200 | F69: 残業夜食代 そば処砂場 （弥生幸子） | G69: 減 | H69: 福利厚生費 | I69: 人件費支出 | J69: 支出 | K69: 4200 | O69: 経常支出 | P69: -4200
A70: 2020-04-30 | B70: 現金 | C70: 138648 | D70: 売上高 | E70: 138648 | F70: 本日売上 | G70: 増 | H70: 売上高 | I70: 現金売上 | J70: 収入 | K70: 138648 | O70: 経常収入 | P70: 138648
A71: 2020-04-30 | B71: 地代家賃 | C71: 6000 | D71: 現金 | E71: 6000 | F71: 駐車場 早川 | G71: 減 | H71: 地代家賃 | I71: 諸経費支出 | J71: 支出 | K71: 6000 | L71: 駐車場 | N71: 駐車場 | O71: 経常支出 | P71: -6000
A72: 2020-04-30 | B72: 地代家賃 | C72: 189000 | D72: 普通預金 | E72: 189000 | F72: 店舗家賃振込 | G72: 減 | H72: 地代家賃 | I72: 諸経費支出 | J72: 支出 | K72: 189000 | L72: 山田さん | M72: 港銀行 城西支店 | N72: 山田さん | O72: 経常支出 | P72: -189000
A73: 2020-04-30 | B73: 旅費交通費 | C73: 56800 | D73: 現金 | E73: 56800 | F73: 通勤定期代 城西バス | G73: 減 | H73: 旅費交通費 | I73: 諸経費支出 | J73: 支出 | K73: 56800 | O73: 経常支出 | P73: -56800
A74: 2020-04-30 | B74: 地代家賃 | C74: 252000 | D74: 当座預金 | E74: 252000 | F74: 事務所家賃支払 | G74: 減 | H74: 地代家賃 | I74: 諸経費支出 | J74: 支出 | K74: 252000 | L74: ABビル | M74: 北東銀行 築地支店 | N74: ABビル | O74: 経常支出 | P74: -252000
A75: 2020-04-30 | B75: 車両費 | C75: 87953 | D75: 当座預金 | E75: 87953 | F75: 北海石油・ガソリン代 | G75: 減 | H75: 車両費 | I75: 諸経費支出 | J75: 支出 | K75: 87953 | L75: ガソリン | M75: 北東銀行 築地支店 | N75: ガソリン | O75: 経常支出 | P75: -87953
A76: 2020-04-30 | B76: 荷造運賃 | C76: 358000 | D76: 当座預金 | E76: 358000 | F76: やよい配送・運賃 | G76: 減 | H76: 荷造運賃 | I76: 諸経費支出 | J76: 支出 | K76: 358000 | M76: 北東銀行 築地支店 | O76: 経常支出 | P76: -358000
A77: 2020-04-30 | B77: 租税公課 | C77: 125400 | D77: 普通預金 | E77: 125400 | F77: 償却資産税 固定資産税納税 | G77: 減 | H77: 租税公課 | I77: 諸経費支出 | J77: 支出 | K77: 125400 | M77: 港銀行 城西支店 | O77: 経常支出 | P77: -125400
A78: 2020-04-30 | B78: [製]地代家賃 | C78: 115000 | D78: 現金 | E78: 115000 | F78: ４月分 | G78: 減 | H78: [製]地代家賃 | I78: 諸経費支出 | J78: 支出 | K78: 115000 | O78: 経常支出 | P78: -115000
A79: 2020-04-30 | B79: 買掛金 | C79: 78000 | D79: 当座預金 | E79: 78000 | F79: 買掛金支払 | G79: 減 | H79: 買掛金 | I79: 買掛金支払 | J79: 支出 | K79: 78000 | L79: コスモ | M79: 北東銀行 築地支店 | N79: コスモ | O79: 経常支出 | P79: -78000
A80: 2020-04-30 | B80: [製]旅費交通費 | C80: 7800 | D80: 現金 | E80: 7800 | F80: 通勤定期代 | G80: 減 | H80: [製]旅費交通費 | I80: 諸経費支出 | J80: 支出 | K80: 7800 | O80: 経常支出 | P80: -7800
A81: 2020-04-30 | B81: 支払報酬料 | C81: 45000 | D81: 普通預金 | E81: 45000 | F81: 税理士顧問料／顧問料振込 ４月分 | G81: 減 | H81: 支払報酬料 | I81: 諸経費支出 | J81: 支出 | K81: 45000 | M81: 港銀行 城西支店 | O81: 経常支出 | P81: -45000
A82: 2020-04-30 | B82: 当座預金 | C82: 1645350 | D82: 売掛金 | E82: 1645350 | F82: A002厚木産業 | G82: 増 | H82: 売掛金 | I82: 売掛金回収 | J82: 収入 | K82: 1645350 | L82: 北東銀行 築地支店 | M82: 厚木産業 | N82: 厚木産業 | O82: 経常収入 | P82: 1645350
A83: 2020-04-30 | B83: 当座預金 | C83: 1502025 | D83: 売掛金 | E83: 1502025 | F83: B001文京食器店 | G83: 増 | H83: 売掛金 | I83: 売掛金回収 | J83: 収入 | K83: 1502025 | L83: 北東銀行 築地支店 | M83: 文京食器店 | N83: 文京食器店 | O83: 経常収入 | P83: 1502025
A84: 2020-04-30 | B84: 当座預金 | C84: 376245 | D84: 売掛金 | E84: 376245 | F84: L001ＬＳリビング大分 | G84: 増 | H84: 売掛金 | I84: 売掛金回収 | J84: 収入 | K84: 376245 | L84: 北東銀行 築地支店 | M84: ＬＳリビング 大分店 | N84: ＬＳリビング 大分店 | O84: 経常収入 | P84: 376245
A85: 2020-04-30 | B85: 当座預金 | C85: 542430 | D85: 売掛金 | E85: 542430 | F85: L002ＬＳリビング福岡 | G85: 増 | H85: 売掛金 | I85: 売掛金回収 | J85: 収入 | K85: 542430 | L85: 北東銀行 築地支店 | M85: ＬＳリビング 福岡店 | N85: ＬＳリビング 福岡店 | O85: 経常収入 | P85: 542430
A86: 2020-04-30 | B86: 買掛金 | C86: 3192929 | D86: 当座預金 | E86: 3192929 | F86: H001橋本商会 | G86: 減 | H86: 買掛金 | I86: 買掛金支払 | J86: 支出 | K86: 3192929 | L86: 橋本商会 | M86: 北東銀行 築地支店 | N86: 橋本商会 | O86: 経常支出 | P86: -3192929
A87: 2020-04-30 | B87: 買掛金 | C87: 964370 | D87: 当座預金 | E87: 964370 | F87: 掛代金支払 | G87: 減 | H87: 買掛金 | I87: 買掛金支払 | J87: 支出 | K87: 964370 | L87: 北海商事 | M87: 北東銀行 築地支店 | N87: 北海商事 | O87: 経常支出 | P87: -964370
A88: 2020-04-30 | B88: 当座預金 | C88: 758625 | D88: 売掛金 | E88: 758625 | F88: 掛代金回収 E001エヌ商会 | G88: 増 | H88: 売掛金 | I88: 売掛金回収 | J88: 収入 | K88: 758625 | L88: 北東銀行 築地支店 | M88: エヌ商会 | N88: エヌ商会 | O88: 経常収入 | P88: 758625
A89: 2020-04-30 | B89: 地代家賃 | C89: 240000 | D89: 当座預金 | E89: 240000 | F89: 事務所家賃支払 | G89: 減 | H89: 地代家賃 | I89: 諸経費支出 | J89: 支出 | K89: 240000 | L89: ABビル | M89: 北東銀行 築地支店 | N89: ABビル | O89: 経常支出 | P89: -240000
A90: 2020-04-30 | B90: 買掛金 | C90: 3508963 | D90: 当座預金 | E90: 3508963 | F90: 買掛金支払 | G90: 減 | H90: 買掛金 | I90: 買掛金支払 | J90: 支出 | K90: 3508963 | L90: 富士興産 | M90: 北東銀行 築地支店 | N90: 富士興産 | O90: 経常支出 | P90: -3508963
A91: 2020-05-01 | B91: [製]消耗品費 | C91: 4380 | D91: 現金 | E91: 4380 | F91: ゴミ処理券 | G91: 減 | H91: [製]消耗品費 | I91: 諸経費支出 | J91: 支出 | K91: 4380 | O91: 経常支出 | P91: -4380
A92: 2020-05-01 | B92: [製]消耗品費 | C92: 35000 | D92: 普通預金 | E92: 35000 | F92: トナーカートリッジ代 | G92: 減 | H92: [製]消耗品費 | I92: 諸経費支出 | J92: 支出 | K92: 35000 | M92: 港銀行 城西支店 | O92: 経常支出 | P92: -35000
A93: 2020-05-01 | B93: 福利厚生費 | C93: 2000 | D93: 現金 | E93: 2000 | F93: 軽減税率：従業員夜食代 | G93: 減 | H93: 福利厚生費 | I93: 人件費支出 | J93: 支出 | K93: 2000 | O93: 経常支出 | P93: -2000
A94: 2020-05-03 | B94: 車両費 | C94: 2210 | D94: 現金 | E94: 2210 | F94: パーキング 市営駐車場（弥生幸子） | G94: 減 | H94: 車両費 | I94: 諸経費支出 | J94: 支出 | K94: 2210 | L94: その他 | N94: その他 | O94: 経常支出 | P94: -2210
A95: 2020-05-03 | B95: 交際費 | C95: 31500 | D95: 現金 | E95: 31500 | F95: ミナミ開店祝 花輪代 | G95: 減 | H95: 交際費 | I95: 諸経費支出 | J95: 支出 | K95: 31500 | O95: 経常支出 | P95: -31500
A96: 2020-05-03 | B96: 現金 | C96: 128220 | D96: 売上高 | E96: 128220 | F96: 本日売上 | G96: 増 | H96: 売上高 | I96: 現金売上 | J96: 収入 | K96: 128220 | O96: 経常収入 | P96: 128220
A97: 2020-05-04 | B97: 福利厚生費 | C97: 1500 | D97: 現金 | E97: 1500 | F97: お茶菓子 セブンマート城西店（清水） | G97: 減 | H97: 福利厚生費 | I97: 人件費支出 | J97: 支出 | K97: 1500 | O97: 経常支出 | P97: -1500
A98: 2020-05-04 | B98: 現金 | C98: 150800 | D98: 売上高 | E98: 150800 | F98: 本日売上 | G98: 増 | H98: 売上高 | I98: 現金売上 | J98: 収入 | K98: 150800 | O98: 経常収入 | P98: 150800
A99: 2020-05-05 | B99: 現金 | C99: 174698 | D99: 売上高 | E99: 174698 | F99: 本日売上 | G99: 増 | H99: 売上高 | I99: 現金売上 | J99: 収入 | K99: 174698 | O99: 経常収入 | P99: 174698
A100: 2020-05-05 | B100: 保険料 | C100: 46000 | D100: 普通預金 | E100: 46000 | F100: 自動車保険 | G100: 減 | H100: 保険料 | I100: 諸経費支出 | J100: 支出 | K100: 46000 | L100: 損害保険 | M100: 赤坂銀行 本店 | N100: 損害保険 | O100: 経常支出 | P100: -46000
A101: 2020-05-06 | B101: 現金 | C101: 171600 | D101: 売上高 | E101: 171600 | F101: 本日売上 | G101: 増 | H101: 売上高 | I101: 現金売上 | J101: 収入 | K101: 171600 | O101: 経常収入 | P101: 171600
A102: 2020-05-06 | B102: 法定福利費 | C102: 215432 | D102: 普通預金 | E102: 215432 | F102: 社会保険料会社負担／自動振替 | G102: 減 | H102: 法定福利費 | I102: 人件費支出 | J102: 支出 | K102: 215432 | M102: 港銀行 城西支店 | O102: 経常支出 | P102: -215432
A103: 2020-05-06 | B103: 預り金 | C103: 199567 | D103: 普通預金 | E103: 199567 | F103: 社会保険料 | G103: 減 | H103: 預り金 | I103: その他経常支出 | J103: 支出 | K103: 199567 | L103: 社会保険料 | N103: 社会保険料 | O103: 経常支出 | P103: -199567
A104: 2020-05-07 | B104: 旅費交通費 | C104: 580 | D104: 現金 | E104: 580 | F104: 電車代 地下鉄（佐藤） | G104: 減 | H104: 旅費交通費 | I104: 諸経費支出 | J104: 支出 | K104: 580 | O104: 経常支出 | P104: -580
A105: 2020-05-07 | B105: 現金 | C105: 143849 | D105: 売上高 | E105: 143849 | F105: 本日売上 | G105: 増 | H105: 売上高 | I105: 現金売上 | J105: 収入 | K105: 143849 | O105: 経常収入 | P105: 143849
A106: 2020-05-07 | B106: 保険料 | C106: 46000 | D106: 普通預金 | E106: 46000 | F106: 自動車保険 | G106: 減 | H106: 保険料 | I106: 諸経費支出 | J106: 支出 | K106: 46000 | L106: 損害保険 | M106: 赤坂銀行 本店 | N106: 損害保険 | O106: 経常支出 | P106: -46000
A107: 2020-05-08 | B107: 買掛金 | C107: 1197000 | D107: 当座預金 | E107: 1197000 | F107: A201アトラス | G107: 減 | H107: 買掛金 | I107: 買掛金支払 | J107: 支出 | K107: 1197000 | L107: アトラス | M107: 北東銀行 築地支店 | N107: アトラス | O107: 経常支出 | P107: -1197000
A108: 2020-05-09 | B108: 当座預金 | C108: 587698 | D108: 受取手形 | E108: 587698 | F108: 決済,振出人:中野産業 | G108: 増 | H108: 受取手形 | I108: 受取手形期日取立 | J108: 収入 | K108: 587698 | L108: 北東銀行 築地支店 | O108: 経常収入 | P108: 587698
A109: 2020-05-10 | B109: 現金 | C109: 122039 | D109: 売上高 | E109: 122039 | F109: 本日売上 | G109: 増 | H109: 売上高 | I109: 現金売上 | J109: 収入 | K109: 122039 | O109: 経常収入 | P109: 122039
A110: 2020-05-10 | B110: [製]福利厚生費 | C110: 2671 | D110: 現金 | E110: 2671 | F110: お茶等、コンビニストア | G110: 減 | H110: [製]福利厚生費 | I110: 人件費支出 | J110: 支出 | K110: 2671 | O110: 経常支出 | P110: -2671
A111: 2020-05-10 | B111: 預り金 | C111: 37100 | D111: 普通預金 | E111: 37100 | F111: 住民税支払 | G111: 減 | H111: 預り金 | I111: その他経常支出 | J111: 支出 | K111: 37100 | L111: 住民税 | M111: 港銀行 城西支店 | N111: 住民税 | O111: 経常支出 | P111: -37100
A112: 2020-05-10 | B112: 当座預金 | C112: 520905 | D112: 売掛金 | E112: 520905 | F112: 掛代金回収 C001中央産業 | G112: 増 | H112: 売掛金 | I112: 売掛金回収 | J112: 収入 | K112: 520905 | L112: 北東銀行 築地支店 | M112: 中央産業 | N112: 中央産業 | O112: 経常収入 | P112: 520905
A113: 2020-05-11 | B113: 当座預金 | C113: 255150 | D113: 売掛金 | E113: 255150 | F113: H001ハマ屋 | G113: 増 | H113: 売掛金 | I113: 売掛金回収 | J113: 収入 | K113: 255150 | L113: 北東銀行 築地支店 | M113: ハマ屋 | N113: ハマ屋 | O113: 経常収入 | P113: 255150
A114: 2020-05-11 | B114: 交際費 | C114: 68500 | D114: 現金 | E114: 68500 | F114: 接待 割烹 よしの（弥生幸子）：景徳鎮 | G114: 減 | H114: 交際費 | I114: 諸経費支出 | J114: 支出 | K114: 68500 | O114: 経常支出 | P114: -68500
A115: 2020-05-11 | B115: 現金 | C115: 147477 | D115: 売上高 | E115: 147477 | F115: 本日売上 | G115: 増 | H115: 売上高 | I115: 現金売上 | J115: 収入 | K115: 147477 | O115: 経常収入 | P115: 147477
A116: 2020-05-12 | B116: 水道光熱費 | C116: 28560 | D116: 普通預金 | E116: 28560 | F116: 電気代 関東電力 | G116: 減 | H116: 水道光熱費 | I116: 諸経費支出 | J116: 支出 | K116: 28560 | M116: 港銀行 城西支店 | O116: 経常支出 | P116: -28560
A117: 2020-05-12 | B117: 現金 | C117: 157591 | D117: 売上高 | E117: 157591 | F117: 本日売上 | G117: 増 | H117: 売上高 | I117: 現金売上 | J117: 収入 | K117: 157591 | O117: 経常収入 | P117: 157591
A118: 2020-05-12 | B118: 水道光熱費 | C118: 57265 | D118: 普通預金 | E118: 57265 | F118: 電気代 関東電力 | G118: 減 | H118: 水道光熱費 | I118: 諸経費支出 | J118: 支出 | K118: 57265 | M118: 港銀行 城西支店 | O118: 経常支出 | P118: -57265
A119: 2020-05-12 | B119: [製]水道光熱費 | C119: 45500 | D119: 普通預金 | E119: 45500 | F119: 電気代 関東電力 | G119: 減 | H119: [製]水道光熱費 | I119: 諸経費支出 | J119: 支出 | K119: 45500 | M119: 港銀行 城西支店 | O119: 経常支出 | P119: -45500
A120: 2020-05-12 | B120: [製]賃借料 | C120: 44625 | D120: 普通預金 | E120: 44625 | F120: 弥生信販 機械リース ４月分 | G120: 減 | H120: [製]賃借料 | I120: 諸経費支出 | J120: 支出 | K120: 44625 | M120: 港銀行 城西支店 | O120: 経常支出 | P120: -44625
A121: 2020-05-13 | B121: 現金 | C121: 117324 | D121: 売上高 | E121: 117324 | F121: 本日売上 | G121: 増 | H121: 売上高 | I121: 現金売上 | J121: 収入 | K121: 117324 | O121: 経常収入 | P121: 117324
A122: 2020-05-14 | B122: 現金 | C122: 120343 | D122: 売上高 | E122: 120343 | F122: 本日売上 | G122: 増 | H122: 売上高 | I122: 現金売上 | J122: 収入 | K122: 120343 | O122: 経常収入 | P122: 120343
A123: 2020-05-15 | B123: 買掛金 | C123: 151199 | D123: 当座預金 | E123: 151199 | F123: Y001山田商事 | G123: 減 | H123: 買掛金 | I123: 買掛金支払 | J123: 支出 | K123: 151199 | L123: 山田商事 | M123: 北東銀行 築地支店 | N123: 山田商事 | O123: 経常支出 | P123: -151199
A124: 2020-05-15 | B124: 現金 | C124: 2565485 | D124: 売掛金 | E124: 2565485 | F124: O003オリエント商会 | G124: 増 | H124: 売掛金 | I124: 売掛金回収 | J124: 収入 | K124: 2565485 | M124: オリエント商会 | N124: オリエント商会 | O124: 経常収入 | P124: 2565485
A125: 2020-05-15 | B125: 買掛金 | C125: 1220000 | D125: 当座預金 | E125: 1220000 | F125: 買掛金支払 | G125: 減 | H125: 買掛金 | I125: 買掛金支払 | J125: 支出 | K125: 1220000 | L125: アース商店 | M125: 北東銀行 築地支店 | N125: アース商店 | O125: 経常支出 | P125: -1220000
A126: 2020-05-15 | B126: 買掛金 | C126: 248000 | D126: 当座預金 | E126: 248000 | F126: S201ｻﾝﾗｲｽﾞ | G126: 減 | H126: 買掛金 | I126: 買掛金支払 | J126: 支出 | K126: 248000 | L126: サンライズ | M126: 北東銀行 築地支店 | N126: サンライズ | O126: 経常支出 | P126: -248000
A127: 2020-05-15 | B127: 未払金 | C127: 10000 | D127: 普通預金 | E127: 10000 | F127: 接待交際費の支払い | G127: 減 | H127: 未払金 | I127: その他経常支出 | J127: 支出 | K127: 10000 | O127: 経常支出 | P127: -10000
A128: 2020-05-17 | B128: 通信費 | C128: 40000 | D128: 現金 | E128: 40000 | F128: 切手代 城西郵便局 | G128: 減 | H128: 通信費 | I128: 諸経費支出 | J128: 支出 | K128: 40000 | O128: 経常支出 | P128: -40000
A129: 2020-05-17 | B129: 現金 | C129: 147660 | D129: 売上高 | E129: 147660 | F129: 本日売上 | G129: 増 | H129: 売上高 | I129: 現金売上 | J129: 収入 | K129: 147660 | O129: 経常収入 | P129: 147660
A130: 2020-05-17 | B130: 通信費 | C130: 36587 | D130: 普通預金 | E130: 36587 | F130: 携帯電話 ４月分 モバイル BB （弥生幸子） | G130: 減 | H130: 通信費 | I130: 諸経費支出 | J130: 支出 | K130: 36587 | M130: 港銀行 城西支店 | O130: 経常支出 | P130: -36587
A131: 2020-05-17 | B131: 通信費 | C131: 26370 | D131: 普通預金 | E131: 26370 | F131: 電話料 ４月分 JＴＴ | G131: 減 | H131: 通信費 | I131: 諸経費支出 | J131: 支出 | K131: 26370 | M131: 港銀行 城西支店 | O131: 経常支出 | P131: -26370
A132: 2020-05-17 | B132: 通信費 | C132: 56580 | D132: 普通預金 | E132: 56580 | F132: 電話料 ４月分 JＴＴ | G132: 減 | H132: 通信費 | I132: 諸経費支出 | J132: 支出 | K132: 56580 | M132: 港銀行 城西支店 | O132: 経常支出 | P132: -56580
A133: 2020-05-17 | B133: [製]通信費 | C133: 23516 | D133: 普通預金 | E133: 23516 | F133: 電話料 ４月分 JＴＴ | G133: 減 | H133: [製]通信費 | I133: 諸経費支出 | J133: 支出 | K133: 23516 | M133: 港銀行 城西支店 | O133: 経常支出 | P133: -23516
A134: 2020-05-18 | B134: 現金 | C134: 142220 | D134: 売上高 | E134: 142220 | F134: 本日売上 | G134: 増 | H134: 売上高 | I134: 現金売上 | J134: 収入 | K134: 142220 | O134: 経常収入 | P134: 142220
A135: 2020-05-19 | B135: 現金 | C135: 162620 | D135: 売上高 | E135: 162620 | F135: 本日売上 | G135: 増 | H135: 売上高 | I135: 現金売上 | J135: 収入 | K135: 162620 | O135: 経常収入 | P135: 162620
A136: 2020-05-19 | B136: 当座預金 | C136: 1214100 | D136: 受取手形 | E136: 1214100 | F136: 決済,振出人:中央産業大阪 | G136: 増 | H136: 受取手形 | I136: 受取手形期日取立 | J136: 収入 | K136: 1214100 | L136: 北東銀行 築地支店 | O136: 経常収入 | P136: 1214100
A137: 2020-05-19 | B137: 支払手形 | C137: 3558215 | D137: 当座預金 | E137: 3558215 | F137: 決済 | G137: 減 | H137: 支払手形 | I137: 支払手形決済 | J137: 支出 | K137: 3558215 | M137: 北東銀行 築地支店 | O137: 経常支出 | P137: -3558215
A138: 2020-05-20 | B138: 買掛金 | C138: 151200 | D138: 当座預金 | E138: 151200 | F138: I201イーグル | G138: 減 | H138: 買掛金 | I138: 買掛金支払 | J138: 支出 | K138: 151200 | L138: イーグル | M138: 北東銀行 築地支店 | N138: イーグル | O138: 経常支出 | P138: -151200
A139: 2020-05-20 | B139: 現金 | C139: 148572 | D139: 売上高 | E139: 148572 | F139: 本日売上 | G139: 増 | H139: 売上高 | I139: 現金売上 | J139: 収入 | K139: 148572 | O139: 経常収入 | P139: 148572
A140: 2020-05-20 | B140: [製]消耗品費 | C140: 8050 | D140: 現金 | E140: 8050 | F140: マット、モップ代 | G140: 減 | H140: [製]消耗品費 | I140: 諸経費支出 | J140: 支出 | K140: 8050 | O140: 経常支出 | P140: -8050
A141: 2020-05-20 | B141: 買掛金 | C141: 12340 | D141: 当座預金 | E141: 12340 | F141: M201ミラクル | G141: 減 | H141: 買掛金 | I141: 買掛金支払 | J141: 支出 | K141: 12340 | L141: ミラクル | M141: 北東銀行 築地支店 | N141: ミラクル | O141: 経常支出 | P141: -12340
A142: 2020-05-20 | B142: 当座預金 | C142: 134400 | D142: 売掛金 | E142: 134400 | F142: P001プラザ調布 | G142: 増 | H142: 売掛金 | I142: 売掛金回収 | J142: 収入 | K142: 134400 | L142: 北東銀行 築地支店 | M142: プラザ調布 | N142: プラザ調布 | O142: 経常収入 | P142: 134400
A143: 2020-05-20 | B143: 交際費 | C143: 10000 | D143: 現金 | E143: 10000 | F143: 軽減税率：交際費（贈答品） | G143: 減 | H143: 交際費 | I143: 諸経費支出 | J143: 支出 | K143: 10000 | O143: 経常支出 | P143: -10000
A144: 2020-05-20 | B144: 長期借入金 | C144: 197393 | D144: 当座預金 | E144: 197393 | F144: 設備投資資金返済5月分 | G144: 減 | H144: 長期借入金 | I144: 長期借入金返済 | J144: 支出 | K144: 197393 | L144: 北東銀行 築地支店 | M144: 北東銀行 築地支店 | N144: 北東銀行 築地支店 | O144: 財務等支出 | P144: -197393
A145: 2020-05-20 | B145: 支払利息 | C145: 16635 | D145: 当座預金 | E145: 16635 | G145: 減 | H145: 支払利息 | I145: 利息等支出 | J145: 支出 | K145: 16635 | O145: 経常支出 | P145: -16635
A146: 2020-05-21 | B146: 現金 | C146: 127781 | D146: 売上高 | E146: 127781 | F146: 本日売上 | G146: 増 | H146: 売上高 | I146: 現金売上 | J146: 収入 | K146: 127781 | O146: 経常収入 | P146: 127781
A147: 2020-05-22 | B147: リース料 | C147: 5250 | D147: 普通預金 | E147: 5250 | F147: レジスターリース料 ユーロリース | G147: 減 | H147: リース料 | I147: 諸経費支出 | J147: 支出 | K147: 5250 | M147: 赤坂銀行 本店 | O147: 経常支出 | P147: -5250
A148: 2020-05-22 | B148: 仮払消費税等 | C148: 351000 | D148: 当座預金 | E148: 351000 | F148: 東京税関 | G148: 減 | H148: 仮払消費税等 | I148: その他経常収入 | J148: 収入 | K148: -351000 | M148: 北東銀行 築地支店 | O148: 経常収入 | P148: -351000
A149: 2020-05-22 | B149: 仮払消費税等 | C149: 99000 | D149: 当座預金 | E149: 99000 | F149: 東京税関 | G149: 減 | H149: 仮払消費税等 | I149: その他経常収入 | J149: 収入 | K149: -99000 | O149: 経常収入 | P149: -99000
A150: 2020-05-22 | B150: 短期借入金 | C150: 500000 | D150: 普通預金 | E150: 500000 | F150: 短期借入金（年末融資（令和１年））返済５回目 | G150: 減 | H150: 短期借入金 | I150: 短期借入金返済 | J150: 支出 | K150: 500000 | L150: 港銀行 城西支店 | M150: 港銀行 城西支店 | N150: 港銀行 城西支店 | O150: 財務等支出 | P150: -500000
A151: 2020-05-22 | B151: 支払利息 | C151: 7833 | D151: 普通預金 | E151: 7833 | G151: 減 | H151: 支払利息 | I151: 利息等支出 | J151: 支出 | K151: 7833 | O151: 経常支出 | P151: -7833
A152: 2020-05-24 | B152: 現金 | C152: 146886 | D152: 売上高 | E152: 146886 | F152: 本日売上 | G152: 増 | H152: 売上高 | I152: 現金売上 | J152: 収入 | K152: 146886 | O152: 経常収入 | P152: 146886
A153: 2020-05-25 | B153: 買掛金 | C153: 2100000 | D153: 当座預金 | E153: 2100000 | F153: T010日本橋商会 | G153: 減 | H153: 買掛金 | I153: 買掛金支払 | J153: 支出 | K153: 2100000 | L153: 日本橋商会 | M153: 北東銀行 築地支店 | N153: 日本橋商会 | O153: 経常支出 | P153: -2100000
A154: 2020-05-25 | B154: 福利厚生費 | C154: 980 | D154: 現金 | E154: 980 | F154: 残業食事 セブンマート城西店（上原） | G154: 減 | H154: 福利厚生費 | I154: 人件費支出 | J154: 支出 | K154: 980 | O154: 経常支出 | P154: -980
A155: 2020-05-25 | B155: 現金 | C155: 167153 | D155: 売上高 | E155: 167153 | F155: 本日売上 | G155: 増 | H155: 売上高 | I155: 現金売上 | J155: 収入 | K155: 167153 | O155: 経常収入 | P155: 167153
A156: 2020-05-25 | B156: 旅費交通費 | C156: 285864 | D156: 現金 | E156: 285864 | F156: //給与 5月分 | G156: 減 | H156: 旅費交通費 | I156: 諸経費支出 | J156: 支出 | K156: 285864 | O156: 経常支出 | P156: -285864
A157: 2020-05-25 | B157: 支払手数料 | C157: 1405682 | D157: 当座預金 | E157: 1405682 | F157: //給与 5月分 振込 | G157: 減 | H157: 支払手数料 | I157: 諸経費支出 | J157: 支出 | K157: 1405682 | M157: 北東銀行 築地支店 | O157: 経常支出 | P157: -1405682
A158: 2020-05-25 | B158: 当座預金 | C158: 386820 | D158: 売掛金 | E158: 386820 | F158: K002川崎ﾎｰﾑｼｮｯﾌﾟ | G158: 増 | H158: 売掛金 | I158: 売掛金回収 | J158: 収入 | K158: 386820 | L158: 北東銀行 築地支店 | M158: 川崎ﾎｰﾑｼｮｯﾌﾟ | N158: 川崎ﾎｰﾑｼｮｯﾌﾟ | O158: 経常収入 | P158: 386820
A159: 2020-05-25 | B159: 買掛金 | C159: 208250 | D159: 当座預金 | E159: 208250 | F159: ４月仕入分支払い | G159: 減 | H159: 買掛金 | I159: 買掛金支払 | J159: 支出 | K159: 208250 | L159: 株式会社吉野 | M159: 北東銀行 築地支店 | N159: 株式会社吉野 | O159: 経常支出 | P159: -208250
A160: 2020-05-25 | B160: 買掛金 | C160: 180000 | D160: 当座預金 | E160: 180000 | F160: 買掛金支払 | G160: 減 | H160: 買掛金 | I160: 買掛金支払 | J160: 支出 | K160: 180000 | L160: スター工芸 | M160: 北東銀行 築地支店 | N160: スター工芸 | O160: 経常支出 | P160: -180000
A161: 2020-05-25 | B161: 新聞図書費 | C161: 4000 | D161: 現金 | E161: 4000 | F161: 軽減税率：新聞購読料（定期購読） | G161: 減 | H161: 新聞図書費 | I161: 諸経費支出 | J161: 支出 | K161: 4000 | O161: 経常支出 | P161: -4000
A162: 2020-05-25 | B162: 新聞図書費 | C162: 3500 | D162: 普通預金 | E162: 3500 | F162: 軽減税率：新聞代（定期購読）普通預金 | G162: 減 | H162: 新聞図書費 | I162: 諸経費支出 | J162: 支出 | K162: 3500 | O162: 経常支出 | P162: -3500
A163: 2020-05-25 | B163: 新聞図書費 | C163: 3000 | D163: 当座預金 | E163: 3000 | F163: 軽減税率：新聞代（定期購読）自動振替 | G163: 減 | H163: 新聞図書費 | I163: 諸経費支出 | J163: 支出 | K163: 3000 | O163: 経常支出 | P163: -3000
A164: 2020-05-25 | B164: 仮払金 | C164: 15000 | D164: 現金 | E164: 15000 | F164: 仮払金支給(交際費) | G164: 減 | H164: 仮払金 | I164: その他経常支出 | J164: 支出 | K164: 15000 | O164: 経常支出 | P164: -15000
A165: 2020-05-26 | B165: 現金 | C165: 157172 | D165: 売上高 | E165: 157172 | F165: 本日売上 | G165: 増 | H165: 売上高 | I165: 現金売上 | J165: 収入 | K165: 157172 | O165: 経常収入 | P165: 157172
A166: 2020-05-27 | B166: 現金 | C166: 167658 | D166: 売上高 | E166: 167658 | F166: 本日売上 | G166: 増 | H166: 売上高 | I166: 現金売上 | J166: 収入 | K166: 167658 | O166: 経常収入 | P166: 167658
A167: 2020-05-27 | B167: 当座預金 | C167: 583800 | D167: 受取手形 | E167: 583800 | F167: 決済,振出人:九州物産 | G167: 増 | H167: 受取手形 | I167: 受取手形期日取立 | J167: 収入 | K167: 583800 | L167: 北東銀行 築地支店 | O167: 経常収入 | P167: 583800
A168: 2020-05-28 | B168: 現金 | C168: 167580 | D168: 売上高 | E168: 167580 | F168: 本日売上 | G168: 増 | H168: 売上高 | I168: 現金売上 | J168: 収入 | K168: 167580 | O168: 経常収入 | P168: 167580
A169: 2020-05-28 | B169: 未払消費税等 | C169: 2697700 | D169: 当座預金 | E169: 2697700 | F169: 消費税確定分 | G169: 減 | H169: 未払消費税等 | I169: 消費税等支払 | J169: 支出 | K169: 2697700 | M169: 北東銀行 築地支店 | O169: 財務等支出 | P169: -2697700
A170: 2020-05-28 | B170: 未払法人税等 | C170: 1614500 | D170: 普通預金 | E170: 1614500 | F170: 法人税・住民税確定分 | G170: 減 | H170: 未払法人税等 | I170: 法人税等支払 | J170: 支出 | K170: 1614500 | M170: 港銀行 城西支店 | O170: 財務等支出 | P170: -1614500
A171: 2020-05-28 | B171: 租税公課 | C171: 25000 | D171: 現金 | E171: 25000 | F171: 自動車税 | G171: 減 | H171: 租税公課 | I171: 諸経費支出 | J171: 支出 | K171: 25000 | O171: 経常支出 | P171: -25000
A172: 2020-05-28 | B172: 支払報酬料 | C172: 45000 | D172: 普通預金 | E172: 45000 | F172: 税理士顧問料 ５月分 | G172: 減 | H172: 支払報酬料 | I172: 諸経費支出 | J172: 支出 | K172: 45000 | M172: 港銀行 城西支店 | O172: 経常支出 | P172: -45000
A173: 2020-05-28 | B173: 当座預金 | C173: 167580 | D173: 売掛金 | E173: 167580 | F173: I001池袋リビング | G173: 増 | H173: 売掛金 | I173: 売掛金回収 | J173: 収入 | K173: 167580 | L173: 昭和信用金庫 本店 | M173: 池袋リビング | N173: 池袋リビング | O173: 経常収入 | P173: 167580
A174: 2020-05-28 | B174: 当座預金 | C174: 306600 | D174: 売掛金 | E174: 306600 | F174: I002市川ストア | G174: 増 | H174: 売掛金 | I174: 売掛金回収 | J174: 収入 | K174: 306600 | L174: 北東銀行 築地支店 | M174: 市川ストア | N174: 市川ストア | O174: 経常収入 | P174: 306600
A175: 2020-05-28 | B175: 当座預金 | C175: 196980 | D175: 売掛金 | E175: 196980 | F175: K001海北商店 | G175: 増 | H175: 売掛金 | I175: 売掛金回収 | J175: 収入 | K175: 196980 | L175: 北東銀行 築地支店 | M175: 海北商店 | N175: 海北商店 | O175: 経常収入 | P175: 196980
A176: 2020-05-28 | B176: 当座預金 | C176: 76440 | D176: 売掛金 | E176: 76440 | F176: M001三島商会 | G176: 増 | H176: 売掛金 | I176: 売掛金回収 | J176: 収入 | K176: 76440 | L176: 北東銀行 築地支店 | M176: 三島商会 | N176: 三島商会 | O176: 経常収入 | P176: 76440
A177: 2020-05-29 | B177: 当座預金 | C177: 2825687 | D177: 売掛金 | E177: 2825687 | F177: 売掛金振込入金 | G177: 増 | H177: 売掛金 | I177: 売掛金回収 | J177: 収入 | K177: 2825687 | L177: 北東銀行 築地支店 | M177: 長島商事 | N177: 長島商事 | O177: 経常収入 | P177: 2825687
A178: 2020-05-29 | B178: 当座預金 | C178: 283905 | D178: 売掛金 | E178: 283905 | F178: M001三島商会 | G178: 増 | H178: 売掛金 | I178: 売掛金回収 | J178: 収入 | K178: 283905 | L178: 北東銀行 築地支店 | M178: 三島商会 | N178: 三島商会 | O178: 経常収入 | P178: 283905
A179: 2020-05-29 | B179: 当座預金 | C179: 145293 | D179: 売掛金 | E179: 145293 | F179: O001大津商会 | G179: 増 | H179: 売掛金 | I179: 売掛金回収 | J179: 収入 | K179: 145293 | L179: 北東銀行 築地支店 | M179: 大津商会 | N179: 大津商会 | O179: 経常収入 | P179: 145293
A180: 2020-05-29 | B180: 当座預金 | C180: 12600 | D180: 売掛金 | E180: 12600 | F180: Y001山口商事 | G180: 増 | H180: 売掛金 | I180: 売掛金回収 | J180: 収入 | K180: 12600 | L180: 北東銀行 築地支店 | M180: 山口商事 | N180: 山口商事 | O180: 経常収入 | P180: 12600
A181: 2020-05-29 | B181: 買掛金 | C181: 1118460 | D181: 当座預金 | E181: 1118460 | F181: F201有限会社富士 | G181: 減 | H181: 買掛金 | I181: 買掛金支払 | J181: 支出 | K181: 1118460 | L181: 有限会社富士 | M181: 北東銀行 築地支店 | N181: 有限会社富士 | O181: 経常支出 | P181: -1118460
A182: 2020-05-29 | B182: 買掛金 | C182: 153405 | D182: 当座預金 | E182: 153405 | F182: U001キャラクト株式 | G182: 減 | H182: 買掛金 | I182: 買掛金支払 | J182: 支出 | K182: 153405 | L182: キャラクト | M182: 北東銀行 築地支店 | N182: キャラクト | O182: 経常支出 | P182: -153405
A183: 2020-05-29 | B183: 現金 | C183: 376588 | D183: 売掛金 | E183: 376588 | F183: G001御殿場リビング | G183: 増 | H183: 売掛金 | I183: 売掛金回収 | J183: 収入 | K183: 376588 | M183: 御殿場リビング | N183: 御殿場リビング | O183: 経常収入 | P183: 376588
A184: 2020-05-29 | B184: 当座預金 | C184: 221676 | D184: 売掛金 | E184: 221676 | F184: H002彦商会 | G184: 増 | H184: 売掛金 | I184: 売掛金回収 | J184: 収入 | K184: 221676 | L184: 北東銀行 築地支店 | M184: 彦商会 | N184: 彦商会 | O184: 経常収入 | P184: 221676
A185: 2020-05-29 | B185: 当座預金 | C185: 858480 | D185: 売掛金 | E185: 858480 | F185: M002有限会社ミナミ | G185: 増 | H185: 売掛金 | I185: 売掛金回収 | J185: 収入 | K185: 858480 | L185: 北東銀行 築地支店 | M185: 有限会社ミナミ | N185: 有限会社ミナミ | O185: 経常収入 | P185: 858480
A186: 2020-05-29 | B186: 当座預金 | C186: 193158 | D186: 売掛金 | E186: 193158 | F186: O002大阪食器 | G186: 増 | H186: 売掛金 | I186: 売掛金回収 | J186: 収入 | K186: 193158 | L186: 北東銀行 築地支店 | M186: 大阪食器 | N186: 大阪食器 | O186: 経常収入 | P186: 193158
A187: 2020-05-29 | B187: リース料 | C187: 12300 | D187: 普通預金 | E187: 12300 | F187: コピーリース料 アジア信販 | G187: 減 | H187: リース料 | I187: 諸経費支出 | J187: 支出 | K187: 12300 | M187: 港銀行 城西支店 | O187: 経常支出 | P187: -12300
A188: 2020-05-29 | B188: 当座預金 | C188: 103477 | D188: 売掛金 | E188: 103477 | F188: R001ﾘﾋﾞﾝｸﾞｼｮｯﾌﾟ佐 | G188: 増 | H188: 売掛金 | I188: 売掛金回収 | J188: 収入 | K188: 103477 | L188: 北東銀行 築地支店 | M188: リビングショップ佐渡 | N188: リビングショップ佐渡 | O188: 経常収入 | P188: 103477
A189: 2020-05-30 | B189: 給料手当 | C189: 68000 | D189: 現金 | E189: 68000 | F189: アルバイト店員 | G189: 減 | H189: 給料手当 | I189: 人件費支出 | J189: 支出 | K189: 68000 | O189: 経常支出 | P189: -68000
A190: 2020-05-30 | B190: 地代家賃 | C190: 6000 | D190: 現金 | E190: 6000 | F190: 駐車場 早川 | G190: 減 | H190: 地代家賃 | I190: 諸経費支出 | J190: 支出 | K190: 6000 | L190: 駐車場 | N190: 駐車場 | O190: 経常支出 | P190: -6000
A191: 2020-05-30 | B191: 地代家賃 | C191: 189000 | D191: 普通預金 | E191: 189000 | F191: 店舗家賃振込 | G191: 減 | H191: 地代家賃 | I191: 諸経費支出 | J191: 支出 | K191: 189000 | L191: 山田さん | M191: 港銀行 城西支店 | N191: 山田さん | O191: 経常支出 | P191: -189000
A192: 2020-05-30 | B192: 旅費交通費 | C192: 10040 | D192: 現金 | E192: 10040 | F192: アルバイト通勤定期代 城西バス | G192: 減 | H192: 旅費交通費 | I192: 諸経費支出 | J192: 支出 | K192: 10040 | O192: 経常支出 | P192: -10040
A193: 2020-05-30 | B193: 地代家賃 | C193: 252000 | D193: 当座預金 | E193: 252000 | F193: 事務所家賃支払 | G193: 減 | H193: 地代家賃 | I193: 諸経費支出 | J193: 支出 | K193: 252000 | L193: ABビル | M193: 北東銀行 築地支店 | N193: ABビル | O193: 経常支出 | P193: -252000
A194: 2020-05-30 | B194: 車両費 | C194: 89561 | D194: 当座預金 | E194: 89561 | F194: 北海石油・ガソリン代 | G194: 減 | H194: 車両費 | I194: 諸経費支出 | J194: 支出 | K194: 89561 | L194: ガソリン | M194: 北東銀行 築地支店 | N194: ガソリン | O194: 経常支出 | P194: -89561
A195: 2020-05-30 | B195: 旅費交通費 | C195: 56800 | D195: 現金 | E195: 56800 | F195: 通勤定期代 城西バス | G195: 減 | H195: 旅費交通費 | I195: 諸経費支出 | J195: 支出 | K195: 56800 | O195: 経常支出 | P195: -56800
A196: 2020-05-30 | B196: 荷造運賃 | C196: 356000 | D196: 当座預金 | E196: 356000 | F196: やよい配送・運賃 | G196: 減 | H196: 荷造運賃 | I196: 諸経費支出 | J196: 支出 | K196: 356000 | M196: 北東銀行 築地支店 | O196: 経常支出 | P196: -356000
A197: 2020-05-30 | B197: 法定福利費 | C197: 215432 | D197: 普通預金 | E197: 215432 | F197: 社会保険料会社負担／自動振替 | G197: 減 | H197: 法定福利費 | I197: 人件費支出 | J197: 支出 | K197: 215432 | M197: 港銀行 城西支店 | O197: 経常支出 | P197: -215432
A198: 2020-05-30 | B198: 預り金 | C198: 199567 | D198: 普通預金 | E198: 199567 | F198: 社会保険料 | G198: 減 | H198: 預り金 | I198: その他経常支出 | J198: 支出 | K198: 199567 | L198: 社会保険料 | N198: 社会保険料 | O198: 経常支出 | P198: -199567
A199: 2020-05-31 | B199: 現金 | C199: 141953 | D199: 売上高 | E199: 141953 | F199: 本日売上 | G199: 増 | H199: 売上高 | I199: 現金売上 | J199: 収入 | K199: 141953 | O199: 経常収入 | P199: 141953
A200: 2020-05-31 | B200: 普通預金 | C200: 640 | D200: 受取配当金 | E200: 640 | F200: 出資配当 | G200: 増 | H200: 受取配当金 | I200: 利息等収入 | J200: 収入 | K200: 640 | L200: 赤坂銀行 本店 | O200: 経常収入 | P200: 640
... 776 more rows

Sheet 月次ピボット
A1: 合計 / 金額 | B1: 年 | C1: 日付
B2: 2020年 | J2: 総計
A3: 資金繰り表科目 | B3: 4月 | C3: 5月 | D3: 6月 | E3: 7月 | F3: 8月 | G3: 9月 | H3: 10月 | I3: 11月
A4: 現金売上 | B4: 2952629 | C4: 3111196 | D4: 3621918 | E4: 3350444 | F4: 3623791 | G4: 3640449 | H4: 3321745 | I4: 3407612 | J4: 27029784
A5: 売掛金回収 | B5: 11208357 | C5: 18802038 | D5: 21647624 | E5: 17355144 | F5: 19032267 | G5: 23142392 | H5: 24154601 | I5: 17093963 | J5: 152436386
A6: 受取手形期日取立 | B6: 273420 | C6: 2385598 | D6: 3047771 | E6: 1273654 | F6: 3734949 | G6: 3762685 | H6: 4739300 | I6: 4646519 | J6: 23863896
A7: 利息等収入 | C7: 640 | F7: 1865 | J7: 2505
A8: その他経常収入 | C8: -450000 | F8: -568519 | G8: -162450 | H8: -442000 | I8: 2500000 | J8: 877031
A9: 買掛金支払 | B9: 8178262 | C9: 9753120 | D9: 21288579 | E9: 14939352 | F9: 21381980 | G9: 18618842 | H9: 18815277 | I9: 15705685 | J9: 128681097
A10: 支払手形決済 | B10: 1060642 | C10: 3558215 | J10: 4618857
A11: 人件費支出 | B11: 6200 | C11: 506015 | D11: 296186 | E11: 3788038 | F11: 421737 | G11: 297667 | H11: 324975 | I11: 323033 | J11: 5963851
A12: 諸経費支出 | B12: 3857304 | C12: 3723020 | D12: 5327896 | E12: 3541118 | F12: 4190055 | G12: 3799921 | H12: 7103427 | I12: 3781354 | J12: 35324095
A13: 利息等支出 | B13: 25891 | C13: 24468 | D13: 23045 | E13: 21621 | F13: 20195 | G13: 18769 | H13: 17342 | I13: 15914 | J13: 167245
A14: その他経常支出 | B14: 237997 | C14: 461234 | D14: 261667 | E14: 1520827 | F14: 261667 | G14: 261667 | H14: 261667 | I14: 261667 | J14: 3528393
A15: 短期借入金返済 | B15: 500000 | C15: 500000 | D15: 500000 | E15: 500000 | F15: 500000 | G15: 500000 | H15: 500000 | I15: 500000 | J15: 4000000
A16: 長期借入金返済 | B16: 196949 | C16: 197393 | D16: 197837 | E16: 198282 | F16: 198728 | G16: 199175 | H16: 199623 | I16: 200072 | J16: 1588059
A17: 法人税等支払 | C17: 1614500 | I17: 2650000 | J17: 4264500
A18: 消費税等支払 | C18: 2697700 | I18: 2506800 | J18: 5204500
A19: 総計 | B19: 28497651 | C19: 46885137 | D19: 56212523 | E19: 46488480 | F19: 52798715 | G19: 54079117 | H19: 58995957 | I19: 53592619 | J19: 397550199

Sheet ピボット用テーブル (hidden)
A1: 日付 | B1: 借方科目 | C1: 借方金額 | D1: 貸方科目 | E1: 貸方金額 | F1: 摘要 | G1: 増・減 | H1: 相手科目 | I1: 資金繰り表科目 | J1: 収／支 | K1: 金額 | L1: 借方補助科目 | M1: 貸方補助科目 | N1: 相手補助科目 | O1: 資金繰り表区分 | P1: 増減金額
A2: 2020-04-01 | B2: 福利厚生費 | C2: 2000 | D2: 現金 | E2: 2000 | F2: 軽減税率：従業員夜食代 | G2: 減 | H2: 福利厚生費 | I2: 人件費支出 | J2: 支出 | K2: 2000 | O2: 経常支出 | P2: -2000
A3: 2020-04-05 | B3: 現金 | C3: 230100 | D3: 売上高 | E3: 230100 | F3: 本日売上 | G3: 増 | H3: 売上高 | I3: 現金売上 | J3: 収入 | K3: 230100 | O3: 経常収入 | P3: 230100
A4: 2020-04-05 | B4: 保険料 | C4: 46000 | D4: 普通預金 | E4: 46000 | F4: 自動車保険 | G4: 減 | H4: 保険料 | I4: 諸経費支出 | J4: 支出 | K4: 46000 | L4: 損害保険 | M4: 赤坂銀行 本店 | N4: 損害保険 | O4: 経常支出 | P4: -46000
A5: 2020-04-05 | B5: 当座預金 | C5: 1658600 | D5: 売掛金 | E5: 1658600 | F5: 掛代金回収 越後屋 | G5: 増 | H5: 売掛金 | I5: 売掛金回収 | J5: 収入 | K5: 1658600 | L5: 北東銀行 築地支店 | M5: 越後屋百貨店 | N5: 越後屋百貨店 | O5: 経常収入 | P5: 1658600
A6: 2020-04-06 | B6: 交際費 | C6: 76280 | D6: 現金 | E6: 76280 | F6: 得意先接待 パブゴールド（佐藤） | G6: 減 | H6: 交際費 | I6: 諸経費支出 | J6: 支出 | K6: 76280 | O6: 経常支出 | P6: -76280
A7: 2020-04-06 | B7: 現金 | C7: 186345 | D7: 売上高 | E7: 186345 | F7: 本日売上 | G7: 増 | H7: 売上高 | I7: 現金売上 | J7: 収入 | K7: 186345 | O7: 経常収入 | P7: 186345
A8: 2020-04-06 | B8: 保険料 | C8: 46000 | D8: 普通預金 | E8: 46000 | F8: 自動車保険 | G8: 減 | H8: 保険料 | I8: 諸経費支出 | J8: 支出 | K8: 46000 | L8: 損害保険 | M8: 赤坂銀行 本店 | N8: 損害保険 | O8: 経常支出 | P8: -46000
A9: 2020-04-07 | B9: 旅費交通費 | C9: 4200 | D9: 現金 | E9: 4200 | F9: タクシー 川島交通（弥生幸子） | G9: 減 | H9: 旅費交通費 | I9: 諸経費支出 | J9: 支出 | K9: 4200 | O9: 経常支出 | P9: -4200
A10: 2020-04-07 | B10: 現金 | C10: 163410 | D10: 売上高 | E10: 163410 | F10: 本日売上 | G10: 増 | H10: 売上高 | I10: 現金売上 | J10: 収入 | K10: 163410 | O10: 経常収入 | P10: 163410
A11: 2020-04-07 | B11: 当座預金 | C11: 147420 | D11: 受取手形 | E11: 147420 | F11: 決済,振出人:中野産業 | G11: 増 | H11: 受取手形 | I11: 受取手形期日取立 | J11: 収入 | K11: 147420 | L11: 北東銀行 築地支店 | O11: 経常収入 | P11: 147420
A12: 2020-04-08 | B12: 現金 | C12: 182829 | D12: 売上高 | E12: 182829 | F12: 本日売上 | G12: 増 | H12: 売上高 | I12: 現金売上 | J12: 収入 | K12: 182829 | O12: 経常収入 | P12: 182829
A13: 2020-04-08 | B13: [製]消耗品費 | C13: 3560 | D13: 現金 | E13: 3560 | F13: ガムテープ セブンマート城西店 | G13: 減 | H13: [製]消耗品費 | I13: 諸経費支出 | J13: 支出 | K13: 3560 | O13: 経常支出 | P13: -3560
A14: 2020-04-08 | B14: [製]消耗品費 | C14: 18000 | D14: 現金 | E14: 18000 | F14: 作業用品 | G14: 減 | H14: [製]消耗品費 | I14: 諸経費支出 | J14: 支出 | K14: 18000 | O14: 経常支出 | P14: -18000
A15: 2020-04-09 | B15: 現金 | C15: 163997 | D15: 売上高 | E15: 163997 | F15: 本日売上 | G15: 増 | H15: 売上高 | I15: 現金売上 | J15: 収入 | K15: 163997 | O15: 経常収入 | P15: 163997
A16: 2020-04-09 | B16: 当座預金 | C16: 122010 | D16: 売掛金 | E16: 122010 | F16: C002中央産業仙台 | G16: 増 | H16: 売掛金 | I16: 売掛金回収 | J16: 収入 | K16: 122010 | L16: 北東銀行 築地支店 | M16: 中央産業仙台 | N16: 中央産業仙台 | O16: 経常収入 | P16: 122010
A17: 2020-04-10 | B17: [製]消耗品費 | C17: 1560 | D17: 現金 | E17: 1560 | F17: ゴミ袋 まるとく商店 | G17: 減 | H17: [製]消耗品費 | I17: 諸経費支出 | J17: 支出 | K17: 1560 | O17: 経常支出 | P17: -1560
A18: 2020-04-10 | B18: [製]消耗品費 | C18: 2730 | D18: 現金 | E18: 2730 | F18: トイレットペーパー まるとく商店 | G18: 減 | H18: [製]消耗品費 | I18: 諸経費支出 | J18: 支出 | K18: 2730 | O18: 経常支出 | P18: -2730
A19: 2020-04-10 | B19: [製]修繕費 | C19: 55000 | D19: 現金 | E19: 55000 | F19: パソコン修理 | G19: 減 | H19: [製]修繕費 | I19: 諸経費支出 | J19: 支出 | K19: 55000 | O19: 経常支出 | P19: -55000
A20: 2020-04-10 | B20: 立替金 | C20: 175897 | D20: 普通預金 | E20: 175897 | F20: 雇用保険の納付 | G20: 減 | H20: 立替金 | I20: その他経常支出 | J20: 支出 | K20: 175897 | L20: 雇用保険 | M20: 港銀行 城西支店 | N20: 雇用保険 | O20: 経常支出 | P20: -175897
A21: 2020-04-11 | B21: 預り金 | C21: 37100 | D21: 普通預金 | E21: 37100 | F21: 住民税支払 | G21: 減 | H21: 預り金 | I21: その他経常支出 | J21: 支出 | K21: 37100 | L21: 住民税 | M21: 港銀行 城西支店 | N21: 住民税 | O21: 経常支出 | P21: -37100
A22: 2020-04-12 | B22: 現金 | C22: 89997 | D22: 売上高 | E22: 89997 | F22: 本日売上 | G22: 増 | H22: 売上高 | I22: 現金売上 | J22: 収入 | K22: 89997 | O22: 経常収入 | P22: 89997
A23: 2020-04-12 | B23: [製]賃借料 | C23: 44625 | D23: 普通預金 | E23: 44625 | F23: 弥生信販 機械リース ３月分 | G23: 減 | H23: [製]賃借料 | I23: 諸経費支出 | J23: 支出 | K23: 44625 | M23: 港銀行 城西支店 | O23: 経常支出 | P23: -44625
A24: 2020-04-13 | B24: 現金 | C24: 162058 | D24: 売上高 | E24: 162058 | F24: 本日売上 | G24: 増 | H24: 売上高 | I24: 現金売上 | J24: 収入 | K24: 162058 | O24: 経常収入 | P24: 162058
A25: 2020-04-14 | B25: 現金 | C25: 186068 | D25: 売上高 | E25: 186068 | F25: 本日売上 | G25: 増 | H25: 売上高 | I25: 現金売上 | J25: 収入 | K25: 186068 | O25: 経常収入 | P25: 186068
A26: 2020-04-15 | B26: 現金 | C26: 1856845 | D26: 売掛金 | E26: 1856845 | F26: 売掛金請求 | G26: 増 | H26: 売掛金 | I26: 売掛金回収 | J26: 収入 | K26: 1856845 | M26: オリエント商会 | N26: オリエント商会 | O26: 経常収入 | P26: 1856845
A27: 2020-04-15 | B27: 水道光熱費 | C27: 20722 | D27: 普通預金 | E27: 20722 | F27: 電気代 関東電力 | G27: 減 | H27: 水道光熱費 | I27: 諸経費支出 | J27: 支出 | K27: 20722 | M27: 港銀行 城西支店 | O27: 経常支出 | P27: -20722
A28: 2020-04-15 | B28: 現金 | C28: 160005 | D28: 売上高 | E28: 160005 | F28: 本日売上 | G28: 増 | H28: 売上高 | I28: 現金売上 | J28: 収入 | K28: 160005 | O28: 経常収入 | P28: 160005
A29: 2020-04-15 | B29: 水道光熱費 | C29: 56325 | D29: 普通預金 | E29: 56325 | F29: 電気代 関東電力 | G29: 減 | H29: 水道光熱費 | I29: 諸経費支出 | J29: 支出 | K29: 56325 | M29: 港銀行 城西支店 | O29: 経常支出 | P29: -56325
A30: 2020-04-15 | B30: [製]通信費 | C30: 36103 | D30: 普通預金 | E30: 36103 | F30: 電話料 ３月分 JＴＴ | G30: 減 | H30: [製]通信費 | I30: 諸経費支出 | J30: 支出 | K30: 36103 | M30: 港銀行 城西支店 | O30: 経常支出 | P30: -36103
A31: 2020-04-15 | B31: [製]水道光熱費 | C31: 35000 | D31: 普通預金 | E31: 35000 | F31: 電気代 関東電力 | G31: 減 | H31: [製]水道光熱費 | I31: 諸経費支出 | J31: 支出 | K31: 35000 | M31: 港銀行 城西支店 | O31: 経常支出 | P31: -35000
A32: 2020-04-15 | B32: 買掛金 | C32: 236000 | D32: 当座預金 | E32: 236000 | F32: 買掛金支払 | G32: 減 | H32: 買掛金 | I32: 買掛金支払 | J32: 支出 | K32: 236000 | L32: アース商店 | M32: 北東銀行 築地支店 | N32: アース商店 | O32: 経常支出 | P32: -236000
A33: 2020-04-15 | B33: 未払金 | C33: 10000 | D33: 普通預金 | E33: 10000 | F33: 接待交際費の支払い | G33: 減 | H33: 未払金 | I33: その他経常支出 | J33: 支出 | K33: 10000 | O33: 経常支出 | P33: -10000
A34: 2020-04-16 | B34: 通信費 | C34: 36520 | D34: 普通預金 | E34: 36520 | F34: 携帯電話 ３月分 モバイル BB （弥生幸子） | G34: 減 | H34: 通信費 | I34: 諸経費支出 | J34: 支出 | K34: 36520 | M34: 港銀行 城西支店 | O34: 経常支出 | P34: -36520
A35: 2020-04-17 | B35: 支払手形 | C35: 1060642 | D35: 当座預金 | E35: 1060642 | F35: 決済 | G35: 減 | H35: 支払手形 | I35: 支払手形決済 | J35: 支出 | K35: 1060642 | M35: 北東銀行 築地支店 | O35: 経常支出 | P35: -1060642
A36: 2020-04-19 | B36: 現金 | C36: 135562 | D36: 売上高 | E36: 135562 | F36: 本日売上 | G36: 増 | H36: 売上高 | I36: 現金売上 | J36: 収入 | K36: 135562 | O36: 経常収入 | P36: 135562
A37: 2020-04-19 | B37: 事務用品費 | C37: 6650 | D37: 現金 | E37: 6650 | F37: 弥生文具 領収書１０冊 | G37: 減 | H37: 事務用品費 | I37: 諸経費支出 | J37: 支出 | K37: 6650 | O37: 経常支出 | P37: -6650
A38: 2020-04-20 | B38: 現金 | C38: 163058 | D38: 売上高 | E38: 163058 | F38: 本日売上 | G38: 増 | H38: 売上高 | I38: 現金売上 | J38: 収入 | K38: 163058 | O38: 経常収入 | P38: 163058
A39: 2020-04-20 | B39: [製]消耗品費 | C39: 8050 | D39: 現金 | E39: 8050 | F39: マット、モップ代 | G39: 減 | H39: [製]消耗品費 | I39: 諸経費支出 | J39: 支出 | K39: 8050 | O39: 経常支出 | P39: -8050
A40: 2020-04-20 | B40: 交際費 | C40: 10000 | D40: 現金 | E40: 10000 | F40: 軽減税率：交際費（贈答品） | G40: 減 | H40: 交際費 | I40: 諸経費支出 | J40: 支出 | K40: 10000 | O40: 経常支出 | P40: -10000
A41: 2020-04-20 | B41: 長期借入金 | C41: 196949 | D41: 当座預金 | E41: 196949 | F41: 設備投資資金返済4月分 | G41: 減 | H41: 長期借入金 | I41: 長期借入金返済 | J41: 支出 | K41: 196949 | L41: 北東銀行 築地支店 | M41: 北東銀行 築地支店 | N41: 北東銀行 築地支店 | O41: 財務等支出 | P41: -196949
A42: 2020-04-20 | B42: 支払利息 | C42: 17079 | D42: 当座預金 | E42: 17079 | G42: 減 | H42: 支払利息 | I42: 利息等支出 | J42: 支出 | K42: 17079 | O42: 経常支出 | P42: -17079
A43: 2020-04-21 | B43: 現金 | C43: 162591 | D43: 売上高 | E43: 162591 | F43: 本日売上 | G43: 増 | H43: 売上高 | I43: 現金売上 | J43: 収入 | K43: 162591 | O43: 経常収入 | P43: 162591
A44: 2020-04-21 | B44: リース料 | C44: 5250 | D44: 普通預金 | E44: 5250 | F44: レジスターリース料 ユーロリース | G44: 減 | H44: リース料 | I44: 諸経費支出 | J44: 支出 | K44: 5250 | M44: 赤坂銀行 本店 | O44: 経常支出 | P44: -5250
A45: 2020-04-22 | B45: 租税公課 | C45: 10000 | D45: 現金 | E45: 10000 | F45: 収入印紙 城西郵便局 | G45: 減 | H45: 租税公課 | I45: 諸経費支出 | J45: 支出 | K45: 10000 | O45: 経常支出 | P45: -10000
A46: 2020-04-22 | B46: 現金 | C46: 98918 | D46: 売上高 | E46: 98918 | F46: 本日売上 | G46: 増 | H46: 売上高 | I46: 現金売上 | J46: 収入 | K46: 98918 | O46: 経常収入 | P46: 98918
A47: 2020-04-22 | B47: 短期借入金 | C47: 500000 | D47: 普通預金 | E47: 500000 | F47: 短期借入金（年末融資（令和１年））返済４回目 | G47: 減 | H47: 短期借入金 | I47: 短期借入金返済 | J47: 支出 | K47: 500000 | L47: 港銀行 城西支店 | M47: 港銀行 城西支店 | N47: 港銀行 城西支店 | O47: 財務等支出 | P47: -500000
A48: 2020-04-22 | B48: 支払利息 | C48: 8812 | D48: 普通預金 | E48: 8812 | G48: 減 | H48: 支払利息 | I48: 利息等支出 | J48: 支出 | K48: 8812 | O48: 経常支出 | P48: -8812
A49: 2020-04-23 | B49: 現金 | C49: 88105 | D49: 売上高 | E49: 88105 | F49: 本日売上 | G49: 増 | H49: 売上高 | I49: 現金売上 | J49: 収入 | K49: 88105 | O49: 経常収入 | P49: 88105
A50: 2020-04-23 | B50: 消耗品費 | C50: 46800 | D50: 現金 | E50: 46800 | F50: 北国電気 店舗オーディオ機器 | G50: 減 | H50: 消耗品費 | I50: 諸経費支出 | J50: 支出 | K50: 46800 | O50: 経常支出 | P50: -46800
A51: 2020-04-24 | B51: 買掛金 | C51: 198000 | D51: 当座預金 | E51: 198000 | F51: 買掛金支払 | G51: 減 | H51: 買掛金 | I51: 買掛金支払 | J51: 支出 | K51: 198000 | L51: スター工芸 | M51: 北東銀行 築地支店 | N51: スター工芸 | O51: 経常支出 | P51: -198000
A52: 2020-04-25 | B52: 旅費交通費 | C52: 285864 | D52: 現金 | E52: 285864 | F52: //給与 4月分 | G52: 減 | H52: 旅費交通費 | I52: 諸経費支出 | J52: 支出 | K52: 285864 | O52: 経常支出 | P52: -285864
A53: 2020-04-25 | B53: 支払手数料 | C53: 1405682 | D53: 当座預金 | E53: 1405682 | F53: //給与 4月分 振込 | G53: 減 | H53: 支払手数料 | I53: 諸経費支出 | J53: 支出 | K53: 1405682 | M53: 北東銀行 築地支店 | O53: 経常支出 | P53: -1405682
A54: 2020-04-25 | B54: 修繕費 | C54: 85000 | D54: 現金 | E54: 85000 | F54: 中沢インテリア ブラインド修理 | G54: 減 | H54: 修繕費 | I54: 諸経費支出 | J54: 支出 | K54: 85000 | O54: 経常支出 | P54: -85000
A55: 2020-04-25 | B55: 新聞図書費 | C55: 4000 | D55: 現金 | E55: 4000 | F55: 軽減税率：新聞購読料（定期購読） | G55: 減 | H55: 新聞図書費 | I55: 諸経費支出 | J55: 支出 | K55: 4000 | O55: 経常支出 | P55: -4000
A56: 2020-04-25 | B56: 新聞図書費 | C56: 3500 | D56: 普通預金 | E56: 3500 | F56: 軽減税率：新聞代（定期購読）普通預金 | G56: 減 | H56: 新聞図書費 | I56: 諸経費支出 | J56: 支出 | K56: 3500 | O56: 経常支出 | P56: -3500
A57: 2020-04-25 | B57: 新聞図書費 | C57: 3000 | D57: 当座預金 | E57: 3000 | F57: 軽減税率：新聞代（定期購読）自動振替 | G57: 減 | H57: 新聞図書費 | I57: 諸経費支出 | J57: 支出 | K57: 3000 | O57: 経常支出 | P57: -3000
A58: 2020-04-25 | B58: 仮払金 | C58: 15000 | D58: 現金 | E58: 15000 | F58: 仮払金支給(交際費) | G58: 減 | H58: 仮払金 | I58: その他経常支出 | J58: 支出 | K58: 15000 | O58: 経常支出 | P58: -15000
A59: 2020-04-26 | B59: 現金 | C59: 169449 | D59: 売上高 | E59: 169449 | F59: 本日売上 | G59: 増 | H59: 売上高 | I59: 現金売上 | J59: 収入 | K59: 169449 | O59: 経常収入 | P59: 169449
A60: 2020-04-26 | B60: 通信費 | C60: 5630 | D60: 普通預金 | E60: 5630 | F60: 国際電話料 IB テレコム ： ペルシャ絨毯 | G60: 減 | H60: 通信費 | I60: 諸経費支出 | J60: 支出 | K60: 5630 | L60: 国際電話 | M60: 港銀行 城西支店 | N60: 国際電話 | O60: 経常支出 | P60: -5630
A61: 2020-04-26 | B61: 当座預金 | C61: 325452 | D61: 売掛金 | E61: 325452 | F61: 売掛金振込入金 | G61: 増 | H61: 売掛金 | I61: 売掛金回収 | J61: 収入 | K61: 325452 | L61: 北東銀行 築地支店 | M61: ミナミ産業 | N61: ミナミ産業 | O61: 経常収入 | P61: 325452
A62: 2020-04-27 | B62: 現金 | C62: 143850 | D62: 売上高 | E62: 143850 | F62: 本日売上 | G62: 増 | H62: 売上高 | I62: 現金売上 | J62: 収入 | K62: 143850 | O62: 経常収入 | P62: 143850
A63: 2020-04-28 | B63: 当座預金 | C63: 1958775 | D63: 売掛金 | E63: 1958775 | F63: L003愛知マート | G63: 増 | H63: 売掛金 | I63: 売掛金回収 | J63: 収入 | K63: 1958775 | L63: 北東銀行 築地支店 | M63: 愛知マート | N63: 愛知マート | O63: 経常収入 | P63: 1958775
A64: 2020-04-28 | B64: リース料 | C64: 12300 | D64: 普通預金 | E64: 12300 | F64: コピーリース料 アジア信販 | G64: 減 | H64: リース料 | I64: 諸経費支出 | J64: 支出 | K64: 12300 | M64: 港銀行 城西支店 | O64: 経常支出 | P64: -12300
A65: 2020-04-28 | B65: 現金 | C65: 150848 | D65: 売上高 | E65: 150848 | F65: 本日売上 | G65: 増 | H65: 売上高 | I65: 現金売上 | J65: 収入 | K65: 150848 | O65: 経常収入 | P65: 150848
A66: 2020-04-29 | B66: 現金 | C66: 176791 | D66: 売上高 | E66: 176791 | F66: 本日売上 | G66: 増 | H66: 売上高 | I66: 現金売上 | J66: 収入 | K66: 176791 | O66: 経常収入 | P66: 176791
A67: 2020-04-29 | B67: 当座預金 | C67: 126000 | D67: 受取手形 | E67: 126000 | F67: 決済,振出人:九州物産 | G67: 増 | H67: 受取手形 | I67: 受取手形期日取立 | J67: 収入 | K67: 126000 | L67: 北東銀行 築地支店 | O67: 経常収入 | P67: 126000
A68: 2020-04-30 | B68: 現金 | C68: 462000 | D68: 売掛金 | E68: 462000 | F68: G001御殿場リビング | G68: 増 | H68: 売掛金 | I68: 売掛金回収 | J68: 収入 | K68: 462000 | M68: 御殿場リビング | N68: 御殿場リビング | O68: 経常収入 | P68: 462000
A69: 2020-04-30 | B69: 福利厚生費 | C69: 4200 | D69: 現金 | E69: 4200 | F69: 残業夜食代 そば処砂場 （弥生幸子） | G69: 減 | H69: 福利厚生費 | I69: 人件費支出 | J69: 支出 | K69: 4200 | O69: 経常支出 | P69: -4200
A70: 2020-04-30 | B70: 現金 | C70: 138648 | D70: 売上高 | E70: 138648 | F70: 本日売上 | G70: 増 | H70: 売上高 | I70: 現金売上 | J70: 収入 | K70: 138648 | O70: 経常収入 | P70: 138648
A71: 2020-04-30 | B71: 地代家賃 | C71: 6000 | D71: 現金 | E71: 6000 | F71: 駐車場 早川 | G71: 減 | H71: 地代家賃 | I71: 諸経費支出 | J71: 支出 | K71: 6000 | L71: 駐車場 | N71: 駐車場 | O71: 経常支出 | P71: -6000
A72: 2020-04-30 | B72: 地代家賃 | C72: 189000 | D72: 普通預金 | E72: 189000 | F72: 店舗家賃振込 | G72: 減 | H72: 地代家賃 | I72: 諸経費支出 | J72: 支出 | K72: 189000 | L72: 山田さん | M72: 港銀行 城西支店 | N72: 山田さん | O72: 経常支出 | P72: -189000
A73: 2020-04-30 | B73: 旅費交通費 | C73: 56800 | D73: 現金 | E73: 56800 | F73: 通勤定期代 城西バス | G73: 減 | H73: 旅費交通費 | I73: 諸経費支出 | J73: 支出 | K73: 56800 | O73: 経常支出 | P73: -56800
A74: 2020-04-30 | B74: 地代家賃 | C74: 252000 | D74: 当座預金 | E74: 252000 | F74: 事務所家賃支払 | G74: 減 | H74: 地代家賃 | I74: 諸経費支出 | J74: 支出 | K74: 252000 | L74: ABビル | M74: 北東銀行 築地支店 | N74: ABビル | O74: 経常支出 | P74: -252000
A75: 2020-04-30 | B75: 車両費 | C75: 87953 | D75: 当座預金 | E75: 87953 | F75: 北海石油・ガソリン代 | G75: 減 | H75: 車両費 | I75: 諸経費支出 | J75: 支出 | K75: 87953 | L75: ガソリン | M75: 北東銀行 築地支店 | N75: ガソリン | O75: 経常支出 | P75: -87953
A76: 2020-04-30 | B76: 荷造運賃 | C76: 358000 | D76: 当座預金 | E76: 358000 | F76: やよい配送・運賃 | G76: 減 | H76: 荷造運賃 | I76: 諸経費支出 | J76: 支出 | K76: 358000 | M76: 北東銀行 築地支店 | O76: 経常支出 | P76: -358000
A77: 2020-04-30 | B77: 租税公課 | C77: 125400 | D77: 普通預金 | E77: 125400 | F77: 償却資産税 固定資産税納税 | G77: 減 | H77: 租税公課 | I77: 諸経費支出 | J77: 支出 | K77: 125400 | M77: 港銀行 城西支店 | O77: 経常支出 | P77: -125400
A78: 2020-04-30 | B78: [製]地代家賃 | C78: 115000 | D78: 現金 | E78: 115000 | F78: ４月分 | G78: 減 | H78: [製]地代家賃 | I78: 諸経費支出 | J78: 支出 | K78: 115000 | O78: 経常支出 | P78: -115000
A79: 2020-04-30 | B79: 買掛金 | C79: 78000 | D79: 当座預金 | E79: 78000 | F79: 買掛金支払 | G79: 減 | H79: 買掛金 | I79: 買掛金支払 | J79: 支出 | K79: 78000 | L79: コスモ | M79: 北東銀行 築地支店 | N79: コスモ | O79: 経常支出 | P79: -78000
A80: 2020-04-30 | B80: [製]旅費交通費 | C80: 7800 | D80: 現金 | E80: 7800 | F80: 通勤定期代 | G80: 減 | H80: [製]旅費交通費 | I80: 諸経費支出 | J80: 支出 | K80: 7800 | O80: 経常支出 | P80: -7800
A81: 2020-04-30 | B81: 支払報酬料 | C81: 45000 | D81: 普通預金 | E81: 45000 | F81: 税理士顧問料／顧問料振込 ４月分 | G81: 減 | H81: 支払報酬料 | I81: 諸経費支出 | J81: 支出 | K81: 45000 | M81: 港銀行 城西支店 | O81: 経常支出 | P81: -45000
A82: 2020-04-30 | B82: 当座預金 | C82: 1645350 | D82: 売掛金 | E82: 1645350 | F82: A002厚木産業 | G82: 増 | H82: 売掛金 | I82: 売掛金回収 | J82: 収入 | K82: 1645350 | L82: 北東銀行 築地支店 | M82: 厚木産業 | N82: 厚木産業 | O82: 経常収入 | P82: 1645350
A83: 2020-04-30 | B83: 当座預金 | C83: 1502025 | D83: 売掛金 | E83: 1502025 | F83: B001文京食器店 | G83: 増 | H83: 売掛金 | I83: 売掛金回収 | J83: 収入 | K83: 1502025 | L83: 北東銀行 築地支店 | M83: 文京食器店 | N83: 文京食器店 | O83: 経常収入 | P83: 1502025
A84: 2020-04-30 | B84: 当座預金 | C84: 376245 | D84: 売掛金 | E84: 376245 | F84: L001ＬＳリビング大分 | G84: 増 | H84: 売掛金 | I84: 売掛金回収 | J84: 収入 | K84: 376245 | L84: 北東銀行 築地支店 | M84: ＬＳリビング 大分店 | N84: ＬＳリビング 大分店 | O84: 経常収入 | P84: 376245
A85: 2020-04-30 | B85: 当座預金 | C85: 542430 | D85: 売掛金 | E85: 542430 | F85: L002ＬＳリビング福岡 | G85: 増 | H85: 売掛金 | I85: 売掛金回収 | J85: 収入 | K85: 542430 | L85: 北東銀行 築地支店 | M85: ＬＳリビング 福岡店 | N85: ＬＳリビング 福岡店 | O85: 経常収入 | P85: 542430
A86: 2020-04-30 | B86: 買掛金 | C86: 3192929 | D86: 当座預金 | E86: 3192929 | F86: H001橋本商会 | G86: 減 | H86: 買掛金 | I86: 買掛金支払 | J86: 支出 | K86: 3192929 | L86: 橋本商会 | M86: 北東銀行 築地支店 | N86: 橋本商会 | O86: 経常支出 | P86: -3192929
A87: 2020-04-30 | B87: 買掛金 | C87: 964370 | D87: 当座預金 | E87: 964370 | F87: 掛代金支払 | G87: 減 | H87: 買掛金 | I87: 買掛金支払 | J87: 支出 | K87: 964370 | L87: 北海商事 | M87: 北東銀行 築地支店 | N87: 北海商事 | O87: 経常支出 | P87: -964370
A88: 2020-04-30 | B88: 当座預金 | C88: 758625 | D88: 売掛金 | E88: 758625 | F88: 掛代金回収 E001エヌ商会 | G88: 増 | H88: 売掛金 | I88: 売掛金回収 | J88: 収入 | K88: 758625 | L88: 北東銀行 築地支店 | M88: エヌ商会 | N88: エヌ商会 | O88: 経常収入 | P88: 758625
A89: 2020-04-30 | B89: 地代家賃 | C89: 240000 | D89: 当座預金 | E89: 240000 | F89: 事務所家賃支払 | G89: 減 | H89: 地代家賃 | I89: 諸経費支出 | J89: 支出 | K89: 240000 | L89: ABビル | M89: 北東銀行 築地支店 | N89: ABビル | O89: 経常支出 | P89: -240000
A90: 2020-04-30 | B90: 買掛金 | C90: 3508963 | D90: 当座預金 | E90: 3508963 | F90: 買掛金支払 | G90: 減 | H90: 買掛金 | I90: 買掛金支払 | J90: 支出 | K90: 3508963 | L90: 富士興産 | M90: 北東銀行 築地支店 | N90: 富士興産 | O90: 経常支出 | P90: -3508963
A91: 2020-05-01 | B91: [製]消耗品費 | C91: 4380 | D91: 現金 | E91: 4380 | F91: ゴミ処理券 | G91: 減 | H91: [製]消耗品費 | I91: 諸経費支出 | J91: 支出 | K91: 4380 | O91: 経常支出 | P91: -4380
A92: 2020-05-01 | B92: [製]消耗品費 | C92: 35000 | D92: 普通預金 | E92: 35000 | F92: トナーカートリッジ代 | G92: 減 | H92: [製]消耗品費 | I92: 諸経費支出 | J92: 支出 | K92: 35000 | M92: 港銀行 城西支店 | O92: 経常支出 | P92: -35000
A93: 2020-05-01 | B93: 福利厚生費 | C93: 2000 | D93: 現金 | E93: 2000 | F93: 軽減税率：従業員夜食代 | G93: 減 | H93: 福利厚生費 | I93: 人件費支出 | J93: 支出 | K93: 2000 | O93: 経常支出 | P93: -2000
A94: 2020-05-03 | B94: 車両費 | C94: 2210 | D94: 現金 | E94: 2210 | F94: パーキング 市営駐車場（弥生幸子） | G94: 減 | H94: 車両費 | I94: 諸経費支出 | J94: 支出 | K94: 2210 | L94: その他 | N94: その他 | O94: 経常支出 | P94: -2210
A95: 2020-05-03 | B95: 交際費 | C95: 31500 | D95: 現金 | E95: 31500 | F95: ミナミ開店祝 花輪代 | G95: 減 | H95: 交際費 | I95: 諸経費支出 | J95: 支出 | K95: 31500 | O95: 経常支出 | P95: -31500
A96: 2020-05-03 | B96: 現金 | C96: 128220 | D96: 売上高 | E96: 128220 | F96: 本日売上 | G96: 増 | H96: 売上高 | I96: 現金売上 | J96: 収入 | K96: 128220 | O96: 経常収入 | P96: 128220
A97: 2020-05-04 | B97: 福利厚生費 | C97: 1500 | D97: 現金 | E97: 1500 | F97: お茶菓子 セブンマート城西店（清水） | G97: 減 | H97: 福利厚生費 | I97: 人件費支出 | J97: 支出 | K97: 1500 | O97: 経常支出 | P97: -1500
A98: 2020-05-04 | B98: 現金 | C98: 150800 | D98: 売上高 | E98: 150800 | F98: 本日売上 | G98: 増 | H98: 売上高 | I98: 現金売上 | J98: 収入 | K98: 150800 | O98: 経常収入 | P98: 150800
A99: 2020-05-05 | B99: 現金 | C99: 174698 | D99: 売上高 | E99: 174698 | F99: 本日売上 | G99: 増 | H99: 売上高 | I99: 現金売上 | J99: 収入 | K99: 174698 | O99: 経常収入 | P99: 174698
A100: 2020-05-05 | B100: 保険料 | C100: 46000 | D100: 普通預金 | E100: 46000 | F100: 自動車保険 | G100: 減 | H100: 保険料 | I100: 諸経費支出 | J100: 支出 | K100: 46000 | L100: 損害保険 | M100: 赤坂銀行 本店 | N100: 損害保険 | O100: 経常支出 | P100: -46000
A101: 2020-05-06 | B101: 現金 | C101: 171600 | D101: 売上高 | E101: 171600 | F101: 本日売上 | G101: 増 | H101: 売上高 | I101: 現金売上 | J101: 収入 | K101: 171600 | O101: 経常収入 | P101: 171600
A102: 2020-05-06 | B102: 法定福利費 | C102: 215432 | D102: 普通預金 | E102: 215432 | F102: 社会保険料会社負担／自動振替 | G102: 減 | H102: 法定福利費 | I102: 人件費支出 | J102: 支出 | K102: 215432 | M102: 港銀行 城西支店 | O102: 経常支出 | P102: -215432
A103: 2020-05-06 | B103: 預り金 | C103: 199567 | D103: 普通預金 | E103: 199567 | F103: 社会保険料 | G103: 減 | H103: 預り金 | I103: その他経常支出 | J103: 支出 | K103: 199567 | L103: 社会保険料 | N103: 社会保険料 | O103: 経常支出 | P103: -199567
A104: 2020-05-07 | B104: 旅費交通費 | C104: 580 | D104: 現金 | E104: 580 | F104: 電車代 地下鉄（佐藤） | G104: 減 | H104: 旅費交通費 | I104: 諸経費支出 | J104: 支出 | K104: 580 | O104: 経常支出 | P104: -580
A105: 2020-05-07 | B105: 現金 | C105: 143849 | D105: 売上高 | E105: 143849 | F105: 本日売上 | G105: 増 | H105: 売上高 | I105: 現金売上 | J105: 収入 | K105: 143849 | O105: 経常収入 | P105: 143849
A106: 2020-05-07 | B106: 保険料 | C106: 46000 | D106: 普通預金 | E106: 46000 | F106: 自動車保険 | G106: 減 | H106: 保険料 | I106: 諸経費支出 | J106: 支出 | K106: 46000 | L106: 損害保険 | M106: 赤坂銀行 本店 | N106: 損害保険 | O106: 経常支出 | P106: -46000
A107: 2020-05-08 | B107: 買掛金 | C107: 1197000 | D107: 当座預金 | E107: 1197000 | F107: A201アトラス | G107: 減 | H107: 買掛金 | I107: 買掛金支払 | J107: 支出 | K107: 1197000 | L107: アトラス | M107: 北東銀行 築地支店 | N107: アトラス | O107: 経常支出 | P107: -1197000
A108: 2020-05-09 | B108: 当座預金 | C108: 587698 | D108: 受取手形 | E108: 587698 | F108: 決済,振出人:中野産業 | G108: 増 | H108: 受取手形 | I108: 受取手形期日取立 | J108: 収入 | K108: 587698 | L108: 北東銀行 築地支店 | O108: 経常収入 | P108: 587698
A109: 2020-05-10 | B109: 現金 | C109: 122039 | D109: 売上高 | E109: 122039 | F109: 本日売上 | G109: 増 | H109: 売上高 | I109: 現金売上 | J109: 収入 | K109: 122039 | O109: 経常収入 | P109: 122039
A110: 2020-05-10 | B110: [製]福利厚生費 | C110: 2671 | D110: 現金 | E110: 2671 | F110: お茶等、コンビニストア | G110: 減 | H110: [製]福利厚生費 | I110: 人件費支出 | J110: 支出 | K110: 2671 | O110: 経常支出 | P110: -2671
A111: 2020-05-10 | B111: 預り金 | C111: 37100 | D111: 普通預金 | E111: 37100 | F111: 住民税支払 | G111: 減 | H111: 預り金 | I111: その他経常支出 | J111: 支出 | K111: 37100 | L111: 住民税 | M111: 港銀行 城西支店 | N111: 住民税 | O111: 経常支出 | P111: -37100
A112: 2020-05-10 | B112: 当座預金 | C112: 520905 | D112: 売掛金 | E112: 520905 | F112: 掛代金回収 C001中央産業 | G112: 増 | H112: 売掛金 | I112: 売掛金回収 | J112: 収入 | K112: 520905 | L112: 北東銀行 築地支店 | M112: 中央産業 | N112: 中央産業 | O112: 経常収入 | P112: 520905
A113: 2020-05-11 | B113: 当座預金 | C113: 255150 | D113: 売掛金 | E113: 255150 | F113: H001ハマ屋 | G113: 増 | H113: 売掛金 | I113: 売掛金回収 | J113: 収入 | K113: 255150 | L113: 北東銀行 築地支店 | M113: ハマ屋 | N113: ハマ屋 | O113: 経常収入 | P113: 255150
A114: 2020-05-11 | B114: 交際費 | C114: 68500 | D114: 現金 | E114: 68500 | F114: 接待 割烹 よしの（弥生幸子）：景徳鎮 | G114: 減 | H114: 交際費 | I114: 諸経費支出 | J114: 支出 | K114: 68500 | O114: 経常支出 | P114: -68500
A115: 2020-05-11 | B115: 現金 | C115: 147477 | D115: 売上高 | E115: 147477 | F115: 本日売上 | G115: 増 | H115: 売上高 | I115: 現金売上 | J115: 収入 | K115: 147477 | O115: 経常収入 | P115: 147477
A116: 2020-05-12 | B116: 水道光熱費 | C116: 28560 | D116: 普通預金 | E116: 28560 | F116: 電気代 関東電力 | G116: 減 | H116: 水道光熱費 | I116: 諸経費支出 | J116: 支出 | K116: 28560 | M116: 港銀行 城西支店 | O116: 経常支出 | P116: -28560
A117: 2020-05-12 | B117: 現金 | C117: 157591 | D117: 売上高 | E117: 157591 | F117: 本日売上 | G117: 増 | H117: 売上高 | I117: 現金売上 | J117: 収入 | K117: 157591 | O117: 経常収入 | P117: 157591
A118: 2020-05-12 | B118: 水道光熱費 | C118: 57265 | D118: 普通預金 | E118: 57265 | F118: 電気代 関東電力 | G118: 減 | H118: 水道光熱費 | I118: 諸経費支出 | J118: 支出 | K118: 57265 | M118: 港銀行 城西支店 | O118: 経常支出 | P118: -57265
A119: 2020-05-12 | B119: [製]水道光熱費 | C119: 45500 | D119: 普通預金 | E119: 45500 | F119: 電気代 関東電力 | G119: 減 | H119: [製]水道光熱費 | I119: 諸経費支出 | J119: 支出 | K119: 45500 | M119: 港銀行 城西支店 | O119: 経常支出 | P119: -45500
A120: 2020-05-12 | B120: [製]賃借料 | C120: 44625 | D120: 普通預金 | E120: 44625 | F120: 弥生信販 機械リース ４月分 | G120: 減 | H120: [製]賃借料 | I120: 諸経費支出 | J120: 支出 | K120: 44625 | M120: 港銀行 城西支店 | O120: 経常支出 | P120: -44625
A121: 2020-05-13 | B121: 現金 | C121: 117324 | D121: 売上高 | E121: 117324 | F121: 本日売上 | G121: 増 | H121: 売上高 | I121: 現金売上 | J121: 収入 | K121: 117324 | O121: 経常収入 | P121: 117324
A122: 2020-05-14 | B122: 現金 | C122: 120343 | D122: 売上高 | E122: 120343 | F122: 本日売上 | G122: 増 | H122: 売上高 | I122: 現金売上 | J122: 収入 | K122: 120343 | O122: 経常収入 | P122: 120343
A123: 2020-05-15 | B123: 買掛金 | C123: 151199 | D123: 当座預金 | E123: 151199 | F123: Y001山田商事 | G123: 減 | H123: 買掛金 | I123: 買掛金支払 | J123: 支出 | K123: 151199 | L123: 山田商事 | M123: 北東銀行 築地支店 | N123: 山田商事 | O123: 経常支出 | P123: -151199
A124: 2020-05-15 | B124: 現金 | C124: 2565485 | D124: 売掛金 | E124: 2565485 | F124: O003オリエント商会 | G124: 増 | H124: 売掛金 | I124: 売掛金回収 | J124: 収入 | K124: 2565485 | M124: オリエント商会 | N124: オリエント商会 | O124: 経常収入 | P124: 2565485
A125: 2020-05-15 | B125: 買掛金 | C125: 1220000 | D125: 当座預金 | E125: 1220000 | F125: 買掛金支払 | G125: 減 | H125: 買掛金 | I125: 買掛金支払 | J125: 支出 | K125: 1220000 | L125: アース商店 | M125: 北東銀行 築地支店 | N125: アース商店 | O125: 経常支出 | P125: -1220000
A126: 2020-05-15 | B126: 買掛金 | C126: 248000 | D126: 当座預金 | E126: 248000 | F126: S201ｻﾝﾗｲｽﾞ | G126: 減 | H126: 買掛金 | I126: 買掛金支払 | J126: 支出 | K126: 248000 | L126: サンライズ | M126: 北東銀行 築地支店 | N126: サンライズ | O126: 経常支出 | P126: -248000
A127: 2020-05-15 | B127: 未払金 | C127: 10000 | D127: 普通預金 | E127: 10000 | F127: 接待交際費の支払い | G127: 減 | H127: 未払金 | I127: その他経常支出 | J127: 支出 | K127: 10000 | O127: 経常支出 | P127: -10000
A128: 2020-05-17 | B128: 通信費 | C128: 40000 | D128: 現金 | E128: 40000 | F128: 切手代 城西郵便局 | G128: 減 | H128: 通信費 | I128: 諸経費支出 | J128: 支出 | K128: 40000 | O128: 経常支出 | P128: -40000
A129: 2020-05-17 | B129: 現金 | C129: 147660 | D129: 売上高 | E129: 147660 | F129: 本日売上 | G129: 増 | H129: 売上高 | I129: 現金売上 | J129: 収入 | K129: 147660 | O129: 経常収入 | P129: 147660
A130: 2020-05-17 | B130: 通信費 | C130: 36587 | D130: 普通預金 | E130: 36587 | F130: 携帯電話 ４月分 モバイル BB （弥生幸子） | G130: 減 | H130: 通信費 | I130: 諸経費支出 | J130: 支出 | K130: 36587 | M130: 港銀行 城西支店 | O130: 経常支出 | P130: -36587
A131: 2020-05-17 | B131: 通信費 | C131: 26370 | D131: 普通預金 | E131: 26370 | F131: 電話料 ４月分 JＴＴ | G131: 減 | H131: 通信費 | I131: 諸経費支出 | J131: 支出 | K131: 26370 | M131: 港銀行 城西支店 | O131: 経常支出 | P131: -26370
A132: 2020-05-17 | B132: 通信費 | C132: 56580 | D132: 普通預金 | E132: 56580 | F132: 電話料 ４月分 JＴＴ | G132: 減 | H132: 通信費 | I132: 諸経費支出 | J132: 支出 | K132: 56580 | M132: 港銀行 城西支店 | O132: 経常支出 | P132: -56580
A133: 2020-05-17 | B133: [製]通信費 | C133: 23516 | D133: 普通預金 | E133: 23516 | F133: 電話料 ４月分 JＴＴ | G133: 減 | H133: [製]通信費 | I133: 諸経費支出 | J133: 支出 | K133: 23516 | M133: 港銀行 城西支店 | O133: 経常支出 | P133: -23516
A134: 2020-05-18 | B134: 現金 | C134: 142220 | D134: 売上高 | E134: 142220 | F134: 本日売上 | G134: 増 | H134: 売上高 | I134: 現金売上 | J134: 収入 | K134: 142220 | O134: 経常収入 | P134: 142220
A135: 2020-05-19 | B135: 現金 | C135: 162620 | D135: 売上高 | E135: 162620 | F135: 本日売上 | G135: 増 | H135: 売上高 | I135: 現金売上 | J135: 収入 | K135: 162620 | O135: 経常収入 | P135: 162620
A136: 2020-05-19 | B136: 当座預金 | C136: 1214100 | D136: 受取手形 | E136: 1214100 | F136: 決済,振出人:中央産業大阪 | G136: 増 | H136: 受取手形 | I136: 受取手形期日取立 | J136: 収入 | K136: 1214100 | L136: 北東銀行 築地支店 | O136: 経常収入 | P136: 1214100
A137: 2020-05-19 | B137: 支払手形 | C137: 3558215 | D137: 当座預金 | E137: 3558215 | F137: 決済 | G137: 減 | H137: 支払手形 | I137: 支払手形決済 | J137: 支出 | K137: 3558215 | M137: 北東銀行 築地支店 | O137: 経常支出 | P137: -3558215
A138: 2020-05-20 | B138: 買掛金 | C138: 151200 | D138: 当座預金 | E138: 151200 | F138: I201イーグル | G138: 減 | H138: 買掛金 | I138: 買掛金支払 | J138: 支出 | K138: 151200 | L138: イーグル | M138: 北東銀行 築地支店 | N138: イーグル | O138: 経常支出 | P138: -151200
A139: 2020-05-20 | B139: 現金 | C139: 148572 | D139: 売上高 | E139: 148572 | F139: 本日売上 | G139: 増 | H139: 売上高 | I139: 現金売上 | J139: 収入 | K139: 148572 | O139: 経常収入 | P139: 148572
A140: 2020-05-20 | B140: [製]消耗品費 | C140: 8050 | D140: 現金 | E140: 8050 | F140: マット、モップ代 | G140: 減 | H140: [製]消耗品費 | I140: 諸経費支出 | J140: 支出 | K140: 8050 | O140: 経常支出 | P140: -8050
A141: 2020-05-20 | B141: 買掛金 | C141: 12340 | D141: 当座預金 | E141: 12340 | F141: M201ミラクル | G141: 減 | H141: 買掛金 | I141: 買掛金支払 | J141: 支出 | K141: 12340 | L141: ミラクル | M141: 北東銀行 築地支店 | N141: ミラクル | O141: 経常支出 | P141: -12340
A142: 2020-05-20 | B142: 当座預金 | C142: 134400 | D142: 売掛金 | E142: 134400 | F142: P001プラザ調布 | G142: 増 | H142: 売掛金 | I142: 売掛金回収 | J142: 収入 | K142: 134400 | L142: 北東銀行 築地支店 | M142: プラザ調布 | N142: プラザ調布 | O142: 経常収入 | P142: 134400
A143: 2020-05-20 | B143: 交際費 | C143: 10000 | D143: 現金 | E143: 10000 | F143: 軽減税率：交際費（贈答品） | G143: 減 | H143: 交際費 | I143: 諸経費支出 | J143: 支出 | K143: 10000 | O143: 経常支出 | P143: -10000
A144: 2020-05-20 | B144: 長期借入金 | C144: 197393 | D144: 当座預金 | E144: 197393 | F144: 設備投資資金返済5月分 | G144: 減 | H144: 長期借入金 | I144: 長期借入金返済 | J144: 支出 | K144: 197393 | L144: 北東銀行 築地支店 | M144: 北東銀行 築地支店 | N144: 北東銀行 築地支店 | O144: 財務等支出 | P144: -197393
A145: 2020-05-20 | B145: 支払利息 | C145: 16635 | D145: 当座預金 | E145: 16635 | G145: 減 | H145: 支払利息 | I145: 利息等支出 | J145: 支出 | K145: 16635 | O145: 経常支出 | P145: -16635
A146: 2020-05-21 | B146: 現金 | C146: 127781 | D146: 売上高 | E146: 127781 | F146: 本日売上 | G146: 増 | H146: 売上高 | I146: 現金売上 | J146: 収入 | K146: 127781 | O146: 経常収入 | P146: 127781
A147: 2020-05-22 | B147: リース料 | C147: 5250 | D147: 普通預金 | E147: 5250 | F147: レジスターリース料 ユーロリース | G147: 減 | H147: リース料 | I147: 諸経費支出 | J147: 支出 | K147: 5250 | M147: 赤坂銀行 本店 | O147: 経常支出 | P147: -5250
A148: 2020-05-22 | B148: 仮払消費税等 | C148: 351000 | D148: 当座預金 | E148: 351000 | F148: 東京税関 | G148: 減 | H148: 仮払消費税等 | I148: その他経常収入 | J148: 収入 | K148: -351000 | M148: 北東銀行 築地支店 | O148: 経常収入 | P148: -351000
A149: 2020-05-22 | B149: 仮払消費税等 | C149: 99000 | D149: 当座預金 | E149: 99000 | F149: 東京税関 | G149: 減 | H149: 仮払消費税等 | I149: その他経常収入 | J149: 収入 | K149: -99000 | O149: 経常収入 | P149: -99000
A150: 2020-05-22 | B150: 短期借入金 | C150: 500000 | D150: 普通預金 | E150: 500000 | F150: 短期借入金（年末融資（令和１年））返済５回目 | G150: 減 | H150: 短期借入金 | I150: 短期借入金返済 | J150: 支出 | K150: 500000 | L150: 港銀行 城西支店 | M150: 港銀行 城西支店 | N150: 港銀行 城西支店 | O150: 財務等支出 | P150: -500000
A151: 2020-05-22 | B151: 支払利息 | C151: 7833 | D151: 普通預金 | E151: 7833 | G151: 減 | H151: 支払利息 | I151: 利息等支出 | J151: 支出 | K151: 7833 | O151: 経常支出 | P151: -7833
A152: 2020-05-24 | B152: 現金 | C152: 146886 | D152: 売上高 | E152: 146886 | F152: 本日売上 | G152: 増 | H152: 売上高 | I152: 現金売上 | J152: 収入 | K152: 146886 | O152: 経常収入 | P152: 146886
A153: 2020-05-25 | B153: 買掛金 | C153: 2100000 | D153: 当座預金 | E153: 2100000 | F153: T010日本橋商会 | G153: 減 | H153: 買掛金 | I153: 買掛金支払 | J153: 支出 | K153: 2100000 | L153: 日本橋商会 | M153: 北東銀行 築地支店 | N153: 日本橋商会 | O153: 経常支出 | P153: -2100000
A154: 2020-05-25 | B154: 福利厚生費 | C154: 980 | D154: 現金 | E154: 980 | F154: 残業食事 セブンマート城西店（上原） | G154: 減 | H154: 福利厚生費 | I154: 人件費支出 | J154: 支出 | K154: 980 | O154: 経常支出 | P154: -980
A155: 2020-05-25 | B155: 現金 | C155: 167153 | D155: 売上高 | E155: 167153 | F155: 本日売上 | G155: 増 | H155: 売上高 | I155: 現金売上 | J155: 収入 | K155: 167153 | O155: 経常収入 | P155: 167153
A156: 2020-05-25 | B156: 旅費交通費 | C156: 285864 | D156: 現金 | E156: 285864 | F156: //給与 5月分 | G156: 減 | H156: 旅費交通費 | I156: 諸経費支出 | J156: 支出 | K156: 285864 | O156: 経常支出 | P156: -285864
A157: 2020-05-25 | B157: 支払手数料 | C157: 1405682 | D157: 当座預金 | E157: 1405682 | F157: //給与 5月分 振込 | G157: 減 | H157: 支払手数料 | I157: 諸経費支出 | J157: 支出 | K157: 1405682 | M157: 北東銀行 築地支店 | O157: 経常支出 | P157: -1405682
A158: 2020-05-25 | B158: 当座預金 | C158: 386820 | D158: 売掛金 | E158: 386820 | F158: K002川崎ﾎｰﾑｼｮｯﾌﾟ | G158: 増 | H158: 売掛金 | I158: 売掛金回収 | J158: 収入 | K158: 386820 | L158: 北東銀行 築地支店 | M158: 川崎ﾎｰﾑｼｮｯﾌﾟ | N158: 川崎ﾎｰﾑｼｮｯﾌﾟ | O158: 経常収入 | P158: 386820
A159: 2020-05-25 | B159: 買掛金 | C159: 208250 | D159: 当座預金 | E159: 208250 | F159: ４月仕入分支払い | G159: 減 | H159: 買掛金 | I159: 買掛金支払 | J159: 支出 | K159: 208250 | L159: 株式会社吉野 | M159: 北東銀行 築地支店 | N159: 株式会社吉野 | O159: 経常支出 | P159: -208250
A160: 2020-05-25 | B160: 買掛金 | C160: 180000 | D160: 当座預金 | E160: 180000 | F160: 買掛金支払 | G160: 減 | H160: 買掛金 | I160: 買掛金支払 | J160: 支出 | K160: 180000 | L160: スター工芸 | M160: 北東銀行 築地支店 | N160: スター工芸 | O160: 経常支出 | P160: -180000
A161: 2020-05-25 | B161: 新聞図書費 | C161: 4000 | D161: 現金 | E161: 4000 | F161: 軽減税率：新聞購読料（定期購読） | G161: 減 | H161: 新聞図書費 | I161: 諸経費支出 | J161: 支出 | K161: 4000 | O161: 経常支出 | P161: -4000
A162: 2020-05-25 | B162: 新聞図書費 | C162: 3500 | D162: 普通預金 | E162: 3500 | F162: 軽減税率：新聞代（定期購読）普通預金 | G162: 減 | H162: 新聞図書費 | I162: 諸経費支出 | J162: 支出 | K162: 3500 | O162: 経常支出 | P162: -3500
A163: 2020-05-25 | B163: 新聞図書費 | C163: 3000 | D163: 当座預金 | E163: 3000 | F163: 軽減税率：新聞代（定期購読）自動振替 | G163: 減 | H163: 新聞図書費 | I163: 諸経費支出 | J163: 支出 | K163: 3000 | O163: 経常支出 | P163: -3000
A164: 2020-05-25 | B164: 仮払金 | C164: 15000 | D164: 現金 | E164: 15000 | F164: 仮払金支給(交際費) | G164: 減 | H164: 仮払金 | I164: その他経常支出 | J164: 支出 | K164: 15000 | O164: 経常支出 | P164: -15000
A165: 2020-05-26 | B165: 現金 | C165: 157172 | D165: 売上高 | E165: 157172 | F165: 本日売上 | G165: 増 | H165: 売上高 | I165: 現金売上 | J165: 収入 | K165: 157172 | O165: 経常収入 | P165: 157172
A166: 2020-05-27 | B166: 現金 | C166: 167658 | D166: 売上高 | E166: 167658 | F166: 本日売上 | G166: 増 | H166: 売上高 | I166: 現金売上 | J166: 収入 | K166: 167658 | O166: 経常収入 | P166: 167658
A167: 2020-05-27 | B167: 当座預金 | C167: 583800 | D167: 受取手形 | E167: 583800 | F167: 決済,振出人:九州物産 | G167: 増 | H167: 受取手形 | I167: 受取手形期日取立 | J167: 収入 | K167: 583800 | L167: 北東銀行 築地支店 | O167: 経常収入 | P167: 583800
A168: 2020-05-28 | B168: 現金 | C168: 167580 | D168: 売上高 | E168: 167580 | F168: 本日売上 | G168: 増 | H168: 売上高 | I168: 現金売上 | J168: 収入 | K168: 167580 | O168: 経常収入 | P168: 167580
A169: 2020-05-28 | B169: 未払消費税等 | C169: 2697700 | D169: 当座預金 | E169: 2697700 | F169: 消費税確定分 | G169: 減 | H169: 未払消費税等 | I169: 消費税等支払 | J169: 支出 | K169: 2697700 | M169: 北東銀行 築地支店 | O169: 財務等支出 | P169: -2697700
A170: 2020-05-28 | B170: 未払法人税等 | C170: 1614500 | D170: 普通預金 | E170: 1614500 | F170: 法人税・住民税確定分 | G170: 減 | H170: 未払法人税等 | I170: 法人税等支払 | J170: 支出 | K170: 1614500 | M170: 港銀行 城西支店 | O170: 財務等支出 | P170: -1614500
A171: 2020-05-28 | B171: 租税公課 | C171: 25000 | D171: 現金 | E171: 25000 | F171: 自動車税 | G171: 減 | H171: 租税公課 | I171: 諸経費支出 | J171: 支出 | K171: 25000 | O171: 経常支出 | P171: -25000
A172: 2020-05-28 | B172: 支払報酬料 | C172: 45000 | D172: 普通預金 | E172: 45000 | F172: 税理士顧問料 ５月分 | G172: 減 | H172: 支払報酬料 | I172: 諸経費支出 | J172: 支出 | K172: 45000 | M172: 港銀行 城西支店 | O172: 経常支出 | P172: -45000
A173: 2020-05-28 | B173: 当座預金 | C173: 167580 | D173: 売掛金 | E173: 167580 | F173: I001池袋リビング | G173: 増 | H173: 売掛金 | I173: 売掛金回収 | J173: 収入 | K173: 167580 | L173: 昭和信用金庫 本店 | M173: 池袋リビング | N173: 池袋リビング | O173: 経常収入 | P173: 167580
A174: 2020-05-28 | B174: 当座預金 | C174: 306600 | D174: 売掛金 | E174: 306600 | F174: I002市川ストア | G174: 増 | H174: 売掛金 | I174: 売掛金回収 | J174: 収入 | K174: 306600 | L174: 北東銀行 築地支店 | M174: 市川ストア | N174: 市川ストア | O174: 経常収入 | P174: 306600
A175: 2020-05-28 | B175: 当座預金 | C175: 196980 | D175: 売掛金 | E175: 196980 | F175: K001海北商店 | G175: 増 | H175: 売掛金 | I175: 売掛金回収 | J175: 収入 | K175: 196980 | L175: 北東銀行 築地支店 | M175: 海北商店 | N175: 海北商店 | O175: 経常収入 | P175: 196980
A176: 2020-05-28 | B176: 当座預金 | C176: 76440 | D176: 売掛金 | E176: 76440 | F176: M001三島商会 | G176: 増 | H176: 売掛金 | I176: 売掛金回収 | J176: 収入 | K176: 76440 | L176: 北東銀行 築地支店 | M176: 三島商会 | N176: 三島商会 | O176: 経常収入 | P176: 76440
A177: 2020-05-29 | B177: 当座預金 | C177: 2825687 | D177: 売掛金 | E177: 2825687 | F177: 売掛金振込入金 | G177: 増 | H177: 売掛金 | I177: 売掛金回収 | J177: 収入 | K177: 2825687 | L177: 北東銀行 築地支店 | M177: 長島商事 | N177: 長島商事 | O177: 経常収入 | P177: 2825687
A178: 2020-05-29 | B178: 当座預金 | C178: 283905 | D178: 売掛金 | E178: 283905 | F178: M001三島商会 | G178: 増 | H178: 売掛金 | I178: 売掛金回収 | J178: 収入 | K178: 283905 | L178: 北東銀行 築地支店 | M178: 三島商会 | N178: 三島商会 | O178: 経常収入 | P178: 283905
A179: 2020-05-29 | B179: 当座預金 | C179: 145293 | D179: 売掛金 | E179: 145293 | F179: O001大津商会 | G179: 増 | H179: 売掛金 | I179: 売掛金回収 | J179: 収入 | K179: 145293 | L179: 北東銀行 築地支店 | M179: 大津商会 | N179: 大津商会 | O179: 経常収入 | P179: 145293
A180: 2020-05-29 | B180: 当座預金 | C180: 12600 | D180: 売掛金 | E180: 12600 | F180: Y001山口商事 | G180: 増 | H180: 売掛金 | I180: 売掛金回収 | J180: 収入 | K180: 12600 | L180: 北東銀行 築地支店 | M180: 山口商事 | N180: 山口商事 | O180: 経常収入 | P180: 12600
A181: 2020-05-29 | B181: 買掛金 | C181: 1118460 | D181: 当座預金 | E181: 1118460 | F181: F201有限会社富士 | G181: 減 | H181: 買掛金 | I181: 買掛金支払 | J181: 支出 | K181: 1118460 | L181: 有限会社富士 | M181: 北東銀行 築地支店 | N181: 有限会社富士 | O181: 経常支出 | P181: -1118460
A182: 2020-05-29 | B182: 買掛金 | C182: 153405 | D182: 当座預金 | E182: 153405 | F182: U001キャラクト株式 | G182: 減 | H182: 買掛金 | I182: 買掛金支払 | J182: 支出 | K182: 153405 | L182: キャラクト | M182: 北東銀行 築地支店 | N182: キャラクト | O182: 経常支出 | P182: -153405
A183: 2020-05-29 | B183: 現金 | C183: 376588 | D183: 売掛金 | E183: 376588 | F183: G001御殿場リビング | G183: 増 | H183: 売掛金 | I183: 売掛金回収 | J183: 収入 | K183: 376588 | M183: 御殿場リビング | N183: 御殿場リビング | O183: 経常収入 | P183: 376588
A184: 2020-05-29 | B184: 当座預金 | C184: 221676 | D184: 売掛金 | E184: 221676 | F184: H002彦商会 | G184: 増 | H184: 売掛金 | I184: 売掛金回収 | J184: 収入 | K184: 221676 | L184: 北東銀行 築地支店 | M184: 彦商会 | N184: 彦商会 | O184: 経常収入 | P184: 221676
A185: 2020-05-29 | B185: 当座預金 | C185: 858480 | D185: 売掛金 | E185: 858480 | F185: M002有限会社ミナミ | G185: 増 | H185: 売掛金 | I185: 売掛金回収 | J185: 収入 | K185: 858480 | L185: 北東銀行 築地支店 | M185: 有限会社ミナミ | N185: 有限会社ミナミ | O185: 経常収入 | P185: 858480
A186: 2020-05-29 | B186: 当座預金 | C186: 193158 | D186: 売掛金 | E186: 193158 | F186: O002大阪食器 | G186: 増 | H186: 売掛金 | I186: 売掛金回収 | J186: 収入 | K186: 193158 | L186: 北東銀行 築地支店 | M186: 大阪食器 | N186: 大阪食器 | O186: 経常収入 | P186: 193158
A187: 2020-05-29 | B187: リース料 | C187: 12300 | D187: 普通預金 | E187: 12300 | F187: コピーリース料 アジア信販 | G187: 減 | H187: リース料 | I187: 諸経費支出 | J187: 支出 | K187: 12300 | M187: 港銀行 城西支店 | O187: 経常支出 | P187: -12300
A188: 2020-05-29 | B188: 当座預金 | C188: 103477 | D188: 売掛金 | E188: 103477 | F188: R001ﾘﾋﾞﾝｸﾞｼｮｯﾌﾟ佐 | G188: 増 | H188: 売掛金 | I188: 売掛金回収 | J188: 収入 | K188: 103477 | L188: 北東銀行 築地支店 | M188: リビングショップ佐渡 | N188: リビングショップ佐渡 | O188: 経常収入 | P188: 103477
A189: 2020-05-30 | B189: 給料手当 | C189: 68000 | D189: 現金 | E189: 68000 | F189: アルバイト店員 | G189: 減 | H189: 給料手当 | I189: 人件費支出 | J189: 支出 | K189: 68000 | O189: 経常支出 | P189: -68000
A190: 2020-05-30 | B190: 地代家賃 | C190: 6000 | D190: 現金 | E190: 6000 | F190: 駐車場 早川 | G190: 減 | H190: 地代家賃 | I190: 諸経費支出 | J190: 支出 | K190: 6000 | L190: 駐車場 | N190: 駐車場 | O190: 経常支出 | P190: -6000
A191: 2020-05-30 | B191: 地代家賃 | C191: 189000 | D191: 普通預金 | E191: 189000 | F191: 店舗家賃振込 | G191: 減 | H191: 地代家賃 | I191: 諸経費支出 | J191: 支出 | K191: 189000 | L191: 山田さん | M191: 港銀行 城西支店 | N191: 山田さん | O191: 経常支出 | P191: -189000
A192: 2020-05-30 | B192: 旅費交通費 | C192: 10040 | D192: 現金 | E192: 10040 | F192: アルバイト通勤定期代 城西バス | G192: 減 | H192: 旅費交通費 | I192: 諸経費支出 | J192: 支出 | K192: 10040 | O192: 経常支出 | P192: -10040
A193: 2020-05-30 | B193: 地代家賃 | C193: 252000 | D193: 当座預金 | E193: 252000 | F193: 事務所家賃支払 | G193: 減 | H193: 地代家賃 | I193: 諸経費支出 | J193: 支出 | K193: 252000 | L193: ABビル | M193: 北東銀行 築地支店 | N193: ABビル | O193: 経常支出 | P193: -252000
A194: 2020-05-30 | B194: 車両費 | C194: 89561 | D194: 当座預金 | E194: 89561 | F194: 北海石油・ガソリン代 | G194: 減 | H194: 車両費 | I194: 諸経費支出 | J194: 支出 | K194: 89561 | L194: ガソリン | M194: 北東銀行 築地支店 | N194: ガソリン | O194: 経常支出 | P194: -89561
A195: 2020-05-30 | B195: 旅費交通費 | C195: 56800 | D195: 現金 | E195: 56800 | F195: 通勤定期代 城西バス | G195: 減 | H195: 旅費交通費 | I195: 諸経費支出 | J195: 支出 | K195: 56800 | O195: 経常支出 | P195: -56800
A196: 2020-05-30 | B196: 荷造運賃 | C196: 356000 | D196: 当座預金 | E196: 356000 | F196: やよい配送・運賃 | G196: 減 | H196: 荷造運賃 | I196: 諸経費支出 | J196: 支出 | K196: 356000 | M196: 北東銀行 築地支店 | O196: 経常支出 | P196: -356000
A197: 2020-05-30 | B197: 法定福利費 | C197: 215432 | D197: 普通預金 | E197: 215432 | F197: 社会保険料会社負担／自動振替 | G197: 減 | H197: 法定福利費 | I197: 人件費支出 | J197: 支出 | K197: 215432 | M197: 港銀行 城西支店 | O197: 経常支出 | P197: -215432
A198: 2020-05-30 | B198: 預り金 | C198: 199567 | D198: 普通預金 | E198: 199567 | F198: 社会保険料 | G198: 減 | H198: 預り金 | I198: その他経常支出 | J198: 支出 | K198: 199567 | L198: 社会保険料 | N198: 社会保険料 | O198: 経常支出 | P198: -199567
A199: 2020-05-31 | B199: 現金 | C199: 141953 | D199: 売上高 | E199: 141953 | F199: 本日売上 | G199: 増 | H199: 売上高 | I199: 現金売上 | J199: 収入 | K199: 141953 | O199: 経常収入 | P199: 141953
A200: 2020-05-31 | B200: 普通預金 | C200: 640 | D200: 受取配当金 | E200: 640 | F200: 出資配当 | G200: 増 | H200: 受取配当金 | I200: 利息等収入 | J200: 収入 | K200: 640 | L200: 赤坂銀行 本店 | O200: 経常収入 | P200: 640
... 776 more rows

Sheet 展開用ピボット
B6: 集計 | C6: 列ラベル
C7: 2020 | K7: 総計
B8: 行ラベル | C8: 4 月 | D8: 5 月 | E8: 6 月 | F8: 7 月 | G8: 8 月 | H8: 9 月 | I8: 10 月 | J8: 11 月
B9: 経常収入
B10: 現金売上 | C10: 2952629 | D10: 3111196 | E10: 3621918 | F10: 3350444 | G10: 3623791 | H10: 3640449 | I10: 3321745 | J10: 3407612 | K10: 27029784
B11: 売掛金回収 | C11: 11208357 | D11: 18802038 | E11: 21647624 | F11: 17355144 | G11: 19032267 | H11: 23142392 | I11: 24154601 | J11: 17093963 | K11: 152436386
B12: 受取手形期日取立 | C12: 273420 | D12: 2385598 | E12: 3047771 | F12: 1273654 | G12: 3734949 | H12: 3762685 | I12: 4739300 | J12: 4646519 | K12: 23863896
B13: 利息等収入 | D13: 640 | G13: 1865 | K13: 2505
B14: その他経常収入 | D14: -450000 | G14: -568519 | H14: -162450 | I14: -442000 | J14: 2500000 | K14: 877031
B15: 経常収入 集計 | C15: 14434406 | D15: 23849472 | E15: 28317313 | F15: 21979242 | G15: 25824353 | H15: 30383076 | I15: 31773646 | J15: 27648094 | K15: 204209602
B16: 経常支出
B17: 買掛金支払 | C17: -8178262 | D17: -9753120 | E17: -21288579 | F17: -14939352 | G17: -21381980 | H17: -18618842 | I17: -18815277 | J17: -15705685 | K17: -128681097
B18: 支払手形決済 | C18: -1060642 | D18: -3558215 | K18: -4618857
B19: 人件費支出 | C19: -6200 | D19: -506015 | E19: -296186 | F19: -3788038 | G19: -421737 | H19: -297667 | I19: -324975 | J19: -323033 | K19: -5963851
B20: 諸経費支出 | C20: -3857304 | D20: -3723020 | E20: -5327896 | F20: -3541118 | G20: -4190055 | H20: -3799921 | I20: -7103427 | J20: -3781354 | K20: -35324095
B21: 利息等支出 | C21: -25891 | D21: -24468 | E21: -23045 | F21: -21621 | G21: -20195 | H21: -18769 | I21: -17342 | J21: -15914 | K21: -167245
B22: その他経常支出 | C22: -237997 | D22: -461234 | E22: -261667 | F22: -1520827 | G22: -261667 | H22: -261667 | I22: -261667 | J22: -261667 | K22: -3528393
B23: 経常支出 集計 | C23: -13366296 | D23: -18026072 | E23: -27197373 | F23: -23810956 | G23: -26275634 | H23: -22996866 | I23: -26522688 | J23: -20087653 | K23: -178283538
B24: 財務等支出
B25: 短期借入金返済 | C25: -500000 | D25: -500000 | E25: -500000 | F25: -500000 | G25: -500000 | H25: -500000 | I25: -500000 | J25: -500000 | K25: -4000000
B26: 長期借入金返済 | C26: -196949 | D26: -197393 | E26: -197837 | F26: -198282 | G26: -198728 | H26: -199175 | I26: -199623 | J26: -200072 | K26: -1588059
B27: 法人税等支払 | D27: -1614500 | J27: -2650000 | K27: -4264500
B28: 消費税等支払 | D28: -2697700 | J28: -2506800 | K28: -5204500
B29: 財務等支出 集計 | C29: -696949 | D29: -5009593 | E29: -697837 | F29: -698282 | G29: -698728 | H29: -699175 | I29: -699623 | J29: -5856872 | K29: -15057059
B30: 総計 | C30: 371161 | D30: 813807 | E30: 422103 | F30: -2529996 | G30: -1150009 | H30: 6687035 | I30: 4551335 | J30: 1703569 | K30: 10869005

Sheet 取込データ (hidden)
A1: 2000 | B1: 3 | D1: 2020-04-01 | E1: 福利厚生費 | H1: 課対仕入内軽減8% | I1: 2000 | J1: 148 | K1: 現金 | N1: 対象外 | O1: 2000 | P1: 0 | Q1: 軽減税率：従業員夜食代 | T1: 0 | W1: 0 | X1: 0 | Y1: no | AA1: 2000 | AB1: 2000
A2: 2000 | B2: 8 | D2: 2020-04-05 | E2: 現金 | H2: 対象外 | I2: 230100 | J2: 0 | K2: 売上高 | N2: 課税売上内10% | O2: 230100 | P2: 20918 | Q2: 本日売上 | T2: 0 | W2: 0 | X2: 0 | Y2: no | AA2: 230100 | AB2: 230100
A3: 2000 | B3: 12 | D3: 2020-04-05 | E3: 保険料 | F3: 損害保険 | H3: 対象外 | I3: 46000 | J3: 0 | K3: 普通預金 | L3: 赤坂銀行 本店 | N3: 対象外 | O3: 46000 | P3: 0 | Q3: 自動車保険 | T3: 0 | W3: 0 | X3: 0 | Y3: no | AA3: 46000 | AB3: 46000
A4: 2000 | B4: 13 | D4: 2020-04-05 | E4: 当座預金 | F4: 北東銀行 築地支店 | H4: 対象外 | I4: 1658600 | J4: 0 | K4: 売掛金 | L4: 越後屋百貨店 | N4: 対象外 | O4: 1658600 | P4: 0 | Q4: 掛代金回収 越後屋 | T4: 0 | W4: 0 | X4: 0 | Y4: no | AA4: 1658600 | AB4: 1658600
A5: 2000 | B5: 14 | D5: 2020-04-06 | E5: 交際費 | H5: 課対仕入内10% | I5: 76280 | J5: 6934 | K5: 現金 | N5: 対象外 | O5: 76280 | P5: 0 | Q5: 得意先接待 パブゴールド（佐藤） | T5: 0 | W5: 0 | X5: 0 | Y5: no | AA5: 76280 | AB5: 76280
A6: 2000 | B6: 15 | D6: 2020-04-06 | E6: 現金 | H6: 対象外 | I6: 186345 | J6: 0 | K6: 売上高 | N6: 課税売上内10% | O6: 186345 | P6: 16940 | Q6: 本日売上 | T6: 0 | W6: 0 | X6: 0 | Y6: no | AA6: 186345 | AB6: 186345
A7: 2000 | B7: 16 | D7: 2020-04-06 | E7: 保険料 | F7: 損害保険 | H7: 対象外 | I7: 46000 | J7: 0 | K7: 普通預金 | L7: 赤坂銀行 本店 | N7: 対象外 | O7: 46000 | P7: 0 | Q7: 自動車保険 | T7: 0 | W7: 0 | X7: 0 | Y7: no | AA7: 46000 | AB7: 46000
A8: 2000 | B8: 20 | D8: 2020-04-07 | E8: 旅費交通費 | H8: 課対仕入内10% | I8: 4200 | J8: 381 | K8: 現金 | N8: 対象外 | O8: 4200 | P8: 0 | Q8: タクシー 川島交通（弥生幸子） | T8: 0 | W8: 0 | X8: 0 | Y8: no | AA8: 4200 | AB8: 4200
A9: 2000 | B9: 21 | D9: 2020-04-07 | E9: 現金 | H9: 対象外 | I9: 163410 | J9: 0 | K9: 売上高 | N9: 課税売上内10% | O9: 163410 | P9: 14855 | Q9: 本日売上 | T9: 0 | W9: 0 | X9: 0 | Y9: no | AA9: 163410 | AB9: 163410
A10: 2111 | B10: 24 | D10: 2020-04-07 | E10: 当座預金 | F10: 北東銀行 築地支店 | H10: 対象外 | I10: 147420 | J10: 0 | K10: 受取手形 | N10: 対象外 | O10: 147420 | P10: 0 | Q10: 決済,振出人:中野産業 | R10: AA235868 | S10: R.02/04/07 | T10: 3 | U10: 受手 | W10: 0 | X10: 0 | Y10: no | AA10: 147420 | AB10: 147420
A11: 2000 | B11: 25 | D11: 2020-04-08 | E11: 現金 | H11: 対象外 | I11: 182829 | J11: 0 | K11: 売上高 | N11: 課税売上内10% | O11: 182829 | P11: 16620 | Q11: 本日売上 | T11: 0 | W11: 0 | X11: 0 | Y11: no | AA11: 182829 | AB11: 182829
A12: 2000 | B12: 26 | D12: 2020-04-08 | E12: [製]消耗品費 | H12: 課対仕入内10% | I12: 3560 | J12: 323 | K12: 現金 | N12: 対象外 | O12: 3560 | P12: 0 | Q12: ガムテープ セブンマート城西店 | T12: 0 | W12: 0 | X12: 0 | Y12: no | AA12: 3560 | AB12: 3560
A13: 2000 | B13: 27 | D13: 2020-04-08 | E13: [製]消耗品費 | H13: 課対仕入内10% | I13: 18000 | J13: 1636 | K13: 現金 | N13: 対象外 | O13: 18000 | P13: 0 | Q13: 作業用品 | T13: 0 | W13: 0 | X13: 0 | Y13: no | AA13: 18000 | AB13: 18000
A14: 2000 | B14: 33 | D14: 2020-04-09 | E14: 現金 | H14: 対象外 | I14: 163997 | J14: 0 | K14: 売上高 | N14: 課税売上内10% | O14: 163997 | P14: 14908 | Q14: 本日売上 | T14: 0 | W14: 0 | X14: 0 | Y14: no | AA14: 163997 | AB14: 163997
A15: 2111 | B15: 34 | D15: 2020-04-09 | E15: 当座預金 | F15: 北東銀行 築地支店 | H15: 対象外 | I15: 122010 | J15: 0 | K15: 売掛金 | L15: 中央産業仙台 | N15: 対象外 | O15: 122010 | P15: 0 | Q15: C002中央産業仙台 | T15: 3 | W15: 0 | X15: 0 | Y15: no | AA15: 122010 | AB15: 122010
A16: 2000 | B16: 37 | D16: 2020-04-10 | E16: [製]消耗品費 | H16: 課対仕入内10% | I16: 1560 | J16: 141 | K16: 現金 | N16: 対象外 | O16: 1560 | P16: 0 | Q16: ゴミ袋 まるとく商店 | T16: 0 | W16: 0 | X16: 0 | Y16: no | AA16: 1560 | AB16: 1560
A17: 2000 | B17: 38 | D17: 2020-04-10 | E17: [製]消耗品費 | H17: 課対仕入内10% | I17: 2730 | J17: 248 | K17: 現金 | N17: 対象外 | O17: 2730 | P17: 0 | Q17: トイレットペーパー まるとく商店 | T17: 0 | W17: 0 | X17: 0 | Y17: no | AA17: 2730 | AB17: 2730
A18: 2000 | B18: 39 | D18: 2020-04-10 | E18: [製]修繕費 | H18: 課対仕入内10% | I18: 55000 | J18: 5000 | K18: 現金 | N18: 対象外 | O18: 55000 | P18: 0 | Q18: パソコン修理 | T18: 0 | W18: 0 | X18: 0 | Y18: no | AA18: 55000 | AB18: 55000
A19: 2000 | B19: 43 | D19: 2020-04-10 | E19: 立替金 | F19: 雇用保険 | H19: 対象外 | I19: 175897 | J19: 0 | K19: 普通預金 | L19: 港銀行 城西支店 | N19: 対象外 | O19: 175897 | P19: 0 | Q19: 雇用保険の納付 | T19: 0 | W19: 0 | X19: 0 | Y19: no | AA19: 175897 | AB19: 175897
A20: 2000 | B20: 45 | D20: 2020-04-11 | E20: 預り金 | F20: 住民税 | H20: 対象外 | I20: 37100 | J20: 0 | K20: 普通預金 | L20: 港銀行 城西支店 | N20: 対象外 | O20: 37100 | P20: 0 | Q20: 住民税支払 | T20: 0 | W20: 0 | X20: 0 | Y20: no | AA20: 37100 | AB20: 37100
A21: 2000 | B21: 46 | D21: 2020-04-12 | E21: 現金 | H21: 対象外 | I21: 89997 | J21: 0 | K21: 売上高 | N21: 課税売上内10% | O21: 89997 | P21: 8181 | Q21: 本日売上 | T21: 0 | W21: 0 | X21: 0 | Y21: no | AA21: 89997 | AB21: 89997
A22: 2000 | B22: 47 | D22: 2020-04-12 | E22: [製]賃借料 | H22: 課対仕入内10% | I22: 44625 | J22: 4056 | K22: 普通預金 | L22: 港銀行 城西支店 | N22: 対象外 | O22: 44625 | P22: 0 | Q22: 弥生信販 機械リース ３月分 | T22: 0 | W22: 0 | X22: 0 | Y22: no | AA22: 44625 | AB22: 44625
A23: 2000 | B23: 49 | D23: 2020-04-13 | E23: 現金 | H23: 対象外 | I23: 162058 | J23: 0 | K23: 売上高 | N23: 課税売上内10% | O23: 162058 | P23: 14732 | Q23: 本日売上 | T23: 0 | W23: 0 | X23: 0 | Y23: no | AA23: 162058 | AB23: 162058
A24: 2000 | B24: 53 | D24: 2020-04-14 | E24: 現金 | H24: 対象外 | I24: 186068 | J24: 0 | K24: 売上高 | N24: 課税売上内10% | O24: 186068 | P24: 16915 | Q24: 本日売上 | T24: 0 | W24: 0 | X24: 0 | Y24: no | AA24: 186068 | AB24: 186068
A25: 2000 | B25: 58 | D25: 2020-04-15 | E25: 現金 | H25: 対象外 | I25: 1856845 | J25: 0 | K25: 売掛金 | L25: オリエント商会 | N25: 対象外 | O25: 1856845 | P25: 0 | Q25: 売掛金請求 | T25: 0 | W25: 0 | X25: 0 | Y25: no | AA25: 1856845 | AB25: 1856845
A26: 2000 | B26: 59 | D26: 2020-04-15 | E26: 水道光熱費 | H26: 課対仕入内10% | I26: 20722 | J26: 1883 | K26: 普通預金 | L26: 港銀行 城西支店 | N26: 対象外 | O26: 20722 | P26: 0 | Q26: 電気代 関東電力 | T26: 0 | W26: 0 | X26: 0 | Y26: no | AA26: 20722 | AB26: 20722
A27: 2000 | B27: 60 | D27: 2020-04-15 | E27: 現金 | H27: 対象外 | I27: 160005 | J27: 0 | K27: 売上高 | N27: 課税売上内10% | O27: 160005 | P27: 14545 | Q27: 本日売上 | T27: 0 | W27: 0 | X27: 0 | Y27: no | AA27: 160005 | AB27: 160005
A28: 2000 | B28: 61 | D28: 2020-04-15 | E28: 水道光熱費 | H28: 課対仕入内10% | I28: 56325 | J28: 5120 | K28: 普通預金 | L28: 港銀行 城西支店 | N28: 対象外 | O28: 56325 | P28: 0 | Q28: 電気代 関東電力 | T28: 0 | W28: 0 | X28: 0 | Y28: no | AA28: 56325 | AB28: 56325
A29: 2000 | B29: 62 | D29: 2020-04-15 | E29: [製]通信費 | H29: 課対仕入内10% | I29: 36103 | J29: 3282 | K29: 普通預金 | L29: 港銀行 城西支店 | N29: 対象外 | O29: 36103 | P29: 0 | Q29: 電話料 ３月分 JＴＴ | T29: 0 | W29: 0 | X29: 0 | Y29: no | AA29: 36103 | AB29: 36103
A30: 2000 | B30: 63 | D30: 2020-04-15 | E30: [製]水道光熱費 | H30: 課対仕入内10% | I30: 35000 | J30: 3181 | K30: 普通預金 | L30: 港銀行 城西支店 | N30: 対象外 | O30: 35000 | P30: 0 | Q30: 電気代 関東電力 | T30: 0 | W30: 4 | X30: 5 | Y30: no | AA30: 35000 | AB30: 35000
A31: 2000 | B31: 68 | D31: 2020-04-15 | E31: 買掛金 | F31: アース商店 | H31: 対象外 | I31: 236000 | J31: 0 | K31: 当座預金 | L31: 北東銀行 築地支店 | N31: 対象外 | O31: 236000 | P31: 0 | Q31: 買掛金支払 | T31: 0 | W31: 0 | X31: 0 | Y31: no | AA31: 236000 | AB31: 236000
A32: 2000 | B32: 69 | D32: 2020-04-15 | E32: 未払金 | H32: 対象外 | I32: 10000 | J32: 0 | K32: 普通預金 | N32: 対象外 | O32: 10000 | P32: 0 | Q32: 接待交際費の支払い | T32: 0 | W32: 0 | X32: 0 | Y32: no | AA32: 10000 | AB32: 10000
A33: 2000 | B33: 70 | D33: 2020-04-16 | E33: 通信費 | H33: 課対仕入内10% | I33: 36520 | J33: 3320 | K33: 普通預金 | L33: 港銀行 城西支店 | N33: 対象外 | O33: 36520 | P33: 0 | Q33: 携帯電話 ３月分 モバイル BB （弥生幸子） | T33: 0 | W33: 0 | X33: 0 | Y33: no | AA33: 36520 | AB33: 36520
A34: 2111 | B34: 73 | D34: 2020-04-17 | E34: 支払手形 | H34: 対象外 | I34: 1060642 | J34: 0 | K34: 当座預金 | L34: 北東銀行 築地支店 | N34: 対象外 | O34: 1060642 | P34: 0 | Q34: 決済 | R34: YT361273 | S34: R.02/04/17 | T34: 3 | U34: 支手 | W34: 0 | X34: 0 | Y34: no | AA34: 1060642 | AB34: 1060642
A35: 2000 | B35: 75 | D35: 2020-04-19 | E35: 現金 | H35: 対象外 | I35: 135562 | J35: 0 | K35: 売上高 | N35: 課税売上内10% | O35: 135562 | P35: 12323 | Q35: 本日売上 | T35: 0 | W35: 0 | X35: 0 | Y35: no | AA35: 135562 | AB35: 135562
A36: 2000 | B36: 76 | D36: 2020-04-19 | E36: 事務用品費 | H36: 課対仕入内10% | I36: 6650 | J36: 604 | K36: 現金 | N36: 対象外 | O36: 6650 | P36: 0 | Q36: 弥生文具 領収書１０冊 | T36: 0 | W36: 0 | X36: 0 | Y36: no | AA36: 6650 | AB36: 6650
A37: 2000 | B37: 82 | D37: 2020-04-20 | E37: 現金 | H37: 対象外 | I37: 163058 | J37: 0 | K37: 売上高 | N37: 課税売上内10% | O37: 163058 | P37: 14823 | Q37: 本日売上 | T37: 0 | W37: 0 | X37: 0 | Y37: no | AA37: 163058 | AB37: 163058
A38: 2000 | B38: 83 | D38: 2020-04-20 | E38: [製]消耗品費 | H38: 課対仕入内10% | I38: 8050 | J38: 731 | K38: 現金 | N38: 対象外 | O38: 8050 | P38: 0 | Q38: マット、モップ代 | T38: 0 | W38: 0 | X38: 0 | Y38: no | AA38: 8050 | AB38: 8050
A39: 2000 | B39: 91 | D39: 2020-04-20 | E39: 交際費 | H39: 課対仕入内軽減8% | I39: 10000 | J39: 740 | K39: 現金 | N39: 対象外 | O39: 10000 | P39: 0 | Q39: 軽減税率：交際費（贈答品） | T39: 0 | W39: 0 | X39: 0 | Y39: no | AA39: 10000 | AB39: 10000
A40: 2110 | B40: 93 | D40: 2020-04-20 | E40: 長期借入金 | F40: 北東銀行 築地支店 | H40: 対象外 | I40: 196949 | J40: 0 | K40: 当座預金 | L40: 北東銀行 築地支店 | N40: 対象外 | O40: 196949 | P40: 0 | Q40: 設備投資資金返済4月分 | T40: 3 | U40: 借入 | W40: 0 | X40: 0 | Y40: no | Z40: 1 | AA40: 196949 | AB40: 196949
A41: 2101 | B41: 93 | D41: 2020-04-20 | E41: 支払利息 | H41: 対象外 | I41: 17079 | J41: 0 | K41: 当座預金 | N41: 対象外 | O41: 17079 | P41: 0 | T41: 3 | U41: 借入 | W41: 0 | X41: 0 | Y41: no | Z41: 1 | AA41: 17079 | AB41: 17079
A42: 2000 | B42: 94 | D42: 2020-04-21 | E42: 現金 | H42: 対象外 | I42: 162591 | J42: 0 | K42: 売上高 | N42: 課税売上内10% | O42: 162591 | P42: 14781 | Q42: 本日売上 | T42: 0 | W42: 0 | X42: 0 | Y42: no | AA42: 162591 | AB42: 162591
A43: 2000 | B43: 95 | D43: 2020-04-21 | E43: リース料 | H43: 課対仕入内10% | I43: 5250 | J43: 477 | K43: 普通預金 | L43: 赤坂銀行 本店 | N43: 対象外 | O43: 5250 | P43: 0 | Q43: レジスターリース料 ユーロリース | T43: 0 | W43: 0 | X43: 0 | Y43: no | AA43: 5250 | AB43: 5250
A44: 2000 | B44: 99 | D44: 2020-04-22 | E44: 租税公課 | H44: 対象外 | I44: 10000 | J44: 0 | K44: 現金 | N44: 対象外 | O44: 10000 | P44: 0 | Q44: 収入印紙 城西郵便局 | T44: 0 | W44: 0 | X44: 0 | Y44: no | AA44: 10000 | AB44: 10000
A45: 2000 | B45: 100 | D45: 2020-04-22 | E45: 現金 | H45: 対象外 | I45: 98918 | J45: 0 | K45: 売上高 | N45: 課税売上内10% | O45: 98918 | P45: 8992 | Q45: 本日売上 | T45: 0 | W45: 0 | X45: 0 | Y45: no | AA45: 98918 | AB45: 98918
A46: 2110 | B46: 107 | D46: 2020-04-22 | E46: 短期借入金 | F46: 港銀行 城西支店 | H46: 対象外 | I46: 500000 | J46: 0 | K46: 普通預金 | L46: 港銀行 城西支店 | N46: 対象外 | O46: 500000 | P46: 0 | Q46: 短期借入金（年末融資（令和１年））返済４回目 | T46: 3 | U46: 借入 | W46: 0 | X46: 0 | Y46: no | Z46: 1 | AA46: 500000 | AB46: 500000
A47: 2101 | B47: 107 | D47: 2020-04-22 | E47: 支払利息 | H47: 対象外 | I47: 8812 | J47: 0 | K47: 普通預金 | N47: 対象外 | O47: 8812 | P47: 0 | T47: 3 | U47: 借入 | W47: 0 | X47: 0 | Y47: no | Z47: 1 | AA47: 8812 | AB47: 8812
A48: 2000 | B48: 108 | D48: 2020-04-23 | E48: 現金 | H48: 対象外 | I48: 88105 | J48: 0 | K48: 売上高 | N48: 課税売上内10% | O48: 88105 | P48: 8009 | Q48: 本日売上 | T48: 0 | W48: 0 | X48: 0 | Y48: no | AA48: 88105 | AB48: 88105
A49: 2000 | B49: 109 | D49: 2020-04-23 | E49: 消耗品費 | H49: 課対仕入内10% | I49: 46800 | J49: 4254 | K49: 現金 | N49: 対象外 | O49: 46800 | P49: 0 | Q49: 北国電気 店舗オーディオ機器 | T49: 0 | W49: 0 | X49: 0 | Y49: no | AA49: 46800 | AB49: 46800
A50: 2000 | B50: 113 | D50: 2020-04-24 | E50: 買掛金 | F50: スター工芸 | H50: 対象外 | I50: 198000 | J50: 0 | K50: 当座預金 | L50: 北東銀行 築地支店 | N50: 対象外 | O50: 198000 | P50: 0 | Q50: 買掛金支払 | T50: 0 | W50: 0 | X50: 0 | Y50: no | AA50: 198000 | AB50: 198000
A51: 2100 | B51: 114 | D51: 2020-04-25 | E51: 旅費交通費 | H51: 課対仕入内10% | I51: 285864 | J51: 6494 | K51: 現金 | N51: 対象外 | O51: 285864 | P51: 0 | Q51: //給与 4月分 | T51: 3 | W51: 0 | X51: 0 | Y51: no | Z51: 1 | AA51: 71440 | AB51: 285864 | AC51: 1
A52: 2100 | B52: 114 | D52: 2020-04-25 | E52: 支払手数料 | H52: 課対仕入内10% | I52: 1405682 | J52: 196 | K52: 当座預金 | L52: 北東銀行 築地支店 | N52: 対象外 | O52: 1405682 | P52: 0 | Q52: //給与 4月分 振込 | T52: 3 | W52: 0 | X52: 0 | Y52: no | Z52: 1 | AA52: 2160 | AB52: 1405682 | AC52: 1
A53: 2000 | B53: 115 | D53: 2020-04-25 | E53: 修繕費 | H53: 課対仕入内10% | I53: 85000 | J53: 7727 | K53: 現金 | N53: 対象外 | O53: 85000 | P53: 0 | Q53: 中沢インテリア ブラインド修理 | T53: 0 | W53: 0 | X53: 0 | Y53: no | AA53: 85000 | AB53: 85000
A54: 2000 | B54: 116 | D54: 2020-04-25 | E54: 新聞図書費 | H54: 課対仕入内軽減8% | I54: 4000 | J54: 296 | K54: 現金 | N54: 対象外 | O54: 4000 | P54: 0 | Q54: 軽減税率：新聞購読料（定期購読） | T54: 0 | W54: 0 | X54: 0 | Y54: no | AA54: 4000 | AB54: 4000
A55: 2000 | B55: 117 | D55: 2020-04-25 | E55: 新聞図書費 | H55: 課対仕入内軽減8% | I55: 3500 | J55: 259 | K55: 普通預金 | N55: 対象外 | O55: 3500 | P55: 0 | Q55: 軽減税率：新聞代（定期購読）普通預金 | T55: 0 | W55: 0 | X55: 0 | Y55: no | AA55: 3500 | AB55: 3500
A56: 2000 | B56: 118 | D56: 2020-04-25 | E56: 新聞図書費 | H56: 課対仕入内軽減8% | I56: 3000 | J56: 222 | K56: 当座預金 | N56: 対象外 | O56: 3000 | P56: 0 | Q56: 軽減税率：新聞代（定期購読）自動振替 | T56: 0 | W56: 0 | X56: 0 | Y56: no | AA56: 3000 | AB56: 3000
A57: 2000 | B57: 119 | D57: 2020-04-25 | E57: 仮払金 | H57: 対象外 | I57: 15000 | J57: 0 | K57: 現金 | N57: 対象外 | O57: 15000 | P57: 0 | Q57: 仮払金支給(交際費) | T57: 0 | W57: 0 | X57: 0 | Y57: no | AA57: 15000 | AB57: 15000
A58: 2000 | B58: 120 | D58: 2020-04-26 | E58: 現金 | H58: 対象外 | I58: 169449 | J58: 0 | K58: 売上高 | N58: 課税売上内10% | O58: 169449 | P58: 15404 | Q58: 本日売上 | T58: 0 | W58: 0 | X58: 0 | Y58: no | AA58: 169449 | AB58: 169449
A59: 2000 | B59: 121 | D59: 2020-04-26 | E59: 通信費 | F59: 国際電話 | H59: 対象外 | I59: 5630 | J59: 0 | K59: 普通預金 | L59: 港銀行 城西支店 | N59: 対象外 | O59: 5630 | P59: 0 | Q59: 国際電話料 IB テレコム ： ペルシャ絨毯 | T59: 0 | W59: 0 | X59: 0 | Y59: no | AA59: 5630 | AB59: 5630
A60: 2000 | B60: 122 | D60: 2020-04-26 | E60: 当座預金 | F60: 北東銀行 築地支店 | H60: 対象外 | I60: 325452 | J60: 0 | K60: 売掛金 | L60: ミナミ産業 | N60: 対象外 | O60: 325452 | P60: 0 | Q60: 売掛金振込入金 | T60: 0 | W60: 0 | X60: 0 | Y60: no | AA60: 325452 | AB60: 325452
A61: 2000 | B61: 126 | D61: 2020-04-27 | E61: 現金 | H61: 対象外 | I61: 143850 | J61: 0 | K61: 売上高 | N61: 課税売上内10% | O61: 143850 | P61: 13077 | Q61: 本日売上 | T61: 0 | W61: 0 | X61: 0 | Y61: no | AA61: 143850 | AB61: 143850
A62: 2111 | B62: 128 | D62: 2020-04-28 | E62: 当座預金 | F62: 北東銀行 築地支店 | H62: 対象外 | I62: 1958775 | J62: 0 | K62: 売掛金 | L62: 愛知マート | N62: 対象外 | O62: 1958775 | P62: 0 | Q62: L003愛知マート | T62: 3 | W62: 0 | X62: 0 | Y62: no | AA62: 1958775 | AB62: 1958775
A63: 2000 | B63: 129 | D63: 2020-04-28 | E63: リース料 | H63: 課対仕入内10% | I63: 12300 | J63: 1118 | K63: 普通預金 | L63: 港銀行 城西支店 | N63: 対象外 | O63: 12300 | P63: 0 | Q63: コピーリース料 アジア信販 | T63: 0 | W63: 0 | X63: 0 | Y63: no | AA63: 12300 | AB63: 12300
A64: 2000 | B64: 130 | D64: 2020-04-28 | E64: 現金 | H64: 対象外 | I64: 150848 | J64: 0 | K64: 売上高 | N64: 課税売上内10% | O64: 150848 | P64: 13713 | Q64: 本日売上 | T64: 0 | W64: 0 | X64: 0 | Y64: no | AA64: 150848 | AB64: 150848
A65: 2000 | B65: 134 | D65: 2020-04-29 | E65: 現金 | H65: 対象外 | I65: 176791 | J65: 0 | K65: 売上高 | N65: 課税売上内10% | O65: 176791 | P65: 16071 | Q65: 本日売上 | T65: 0 | W65: 0 | X65: 0 | Y65: no | AA65: 176791 | AB65: 176791
A66: 2111 | B66: 140 | D66: 2020-04-29 | E66: 当座預金 | F66: 北東銀行 築地支店 | H66: 対象外 | I66: 126000 | J66: 0 | K66: 受取手形 | N66: 対象外 | O66: 126000 | P66: 0 | Q66: 決済,振出人:九州物産 | R66: CB334027 | S66: R.02/04/29 | T66: 3 | U66: 受手 | W66: 0 | X66: 0 | Y66: no | AA66: 126000 | AB66: 126000
A67: 2111 | B67: 141 | D67: 2020-04-30 | E67: 現金 | H67: 対象外 | I67: 462000 | J67: 0 | K67: 売掛金 | L67: 御殿場リビング | N67: 対象外 | O67: 462000 | P67: 0 | Q67: G001御殿場リビング | T67: 3 | W67: 0 | X67: 0 | Y67: no | AA67: 462000 | AB67: 462000
A68: 2000 | B68: 142 | D68: 2020-04-30 | E68: 福利厚生費 | H68: 課対仕入内10% | I68: 4200 | J68: 381 | K68: 現金 | N68: 対象外 | O68: 4200 | P68: 0 | Q68: 残業夜食代 そば処砂場 （弥生幸子） | T68: 0 | W68: 0 | X68: 0 | Y68: no | AA68: 4200 | AB68: 4200
A69: 2000 | B69: 143 | D69: 2020-04-30 | E69: 現金 | H69: 対象外 | I69: 138648 | J69: 0 | K69: 売上高 | N69: 課税売上内10% | O69: 138648 | P69: 12604 | Q69: 本日売上 | T69: 0 | W69: 0 | X69: 0 | Y69: no | AA69: 138648 | AB69: 138648
A70: 2000 | B70: 145 | D70: 2020-04-30 | E70: 地代家賃 | F70: 駐車場 | H70: 課対仕入内10% | I70: 6000 | J70: 545 | K70: 現金 | N70: 対象外 | O70: 6000 | P70: 0 | Q70: 駐車場 早川 | T70: 0 | W70: 0 | X70: 0 | Y70: no | AA70: 6000 | AB70: 6000
A71: 2000 | B71: 146 | D71: 2020-04-30 | E71: 地代家賃 | F71: 山田さん | H71: 課対仕入内10% | I71: 189000 | J71: 17181 | K71: 普通預金 | L71: 港銀行 城西支店 | N71: 対象外 | O71: 189000 | P71: 0 | Q71: 店舗家賃振込 | T71: 0 | W71: 0 | X71: 0 | Y71: no | AA71: 189000 | AB71: 189000
A72: 2000 | B72: 147 | D72: 2020-04-30 | E72: 旅費交通費 | H72: 課対仕入内10% | I72: 56800 | J72: 5163 | K72: 現金 | N72: 対象外 | O72: 56800 | P72: 0 | Q72: 通勤定期代 城西バス | T72: 0 | W72: 0 | X72: 0 | Y72: no | AA72: 56800 | AB72: 56800
A73: 2000 | B73: 151 | D73: 2020-04-30 | E73: 地代家賃 | F73: ABビル | H73: 課対仕入内10% | I73: 252000 | J73: 22909 | K73: 当座預金 | L73: 北東銀行 築地支店 | N73: 対象外 | O73: 252000 | P73: 0 | Q73: 事務所家賃支払 | T73: 0 | V73: 口座振替のため、賃貸人所在地 東京都城東市 | W73: 0 | X73: 0 | Y73: no | AA73: 252000 | AB73: 252000
A74: 2000 | B74: 152 | D74: 2020-04-30 | E74: 車両費 | F74: ガソリン | H74: 課対仕入内10% | I74: 87953 | J74: 7995 | K74: 当座預金 | L74: 北東銀行 築地支店 | N74: 対象外 | O74: 87953 | P74: 0 | Q74: 北海石油・ガソリン代 | T74: 0 | W74: 0 | X74: 0 | Y74: no | AA74: 87953 | AB74: 87953
A75: 2000 | B75: 153 | D75: 2020-04-30 | E75: 荷造運賃 | H75: 課対仕入内10% | I75: 358000 | J75: 32545 | K75: 当座預金 | L75: 北東銀行 築地支店 | N75: 対象外 | O75: 358000 | P75: 0 | Q75: やよい配送・運賃 | T75: 0 | W75: 0 | X75: 0 | Y75: no | AA75: 358000 | AB75: 358000
A76: 2000 | B76: 154 | D76: 2020-04-30 | E76: 租税公課 | H76: 対象外 | I76: 125400 | J76: 0 | K76: 普通預金 | L76: 港銀行 城西支店 | N76: 対象外 | O76: 125400 | P76: 0 | Q76: 償却資産税 固定資産税納税 | T76: 0 | W76: 0 | X76: 0 | Y76: no | AA76: 125400 | AB76: 125400
A77: 2000 | B77: 155 | D77: 2020-04-30 | E77: [製]地代家賃 | H77: 課対仕入内10% | I77: 115000 | J77: 10454 | K77: 現金 | N77: 対象外 | O77: 115000 | P77: 0 | Q77: ４月分 | T77: 0 | W77: 0 | X77: 0 | Y77: no | AA77: 115000 | AB77: 115000
A78: 2000 | B78: 159 | D78: 2020-04-30 | E78: 買掛金 | F78: コスモ | H78: 対象外 | I78: 78000 | J78: 0 | K78: 当座預金 | L78: 北東銀行 築地支店 | N78: 対象外 | O78: 78000 | P78: 0 | Q78: 買掛金支払 | T78: 0 | W78: 0 | X78: 0 | Y78: no | AA78: 78000 | AB78: 78000
A79: 2000 | B79: 160 | D79: 2020-04-30 | E79: [製]旅費交通費 | H79: 課対仕入内10% | I79: 7800 | J79: 709 | K79: 現金 | N79: 対象外 | O79: 7800 | P79: 0 | Q79: 通勤定期代 | T79: 0 | W79: 0 | X79: 0 | Y79: no | AA79: 7800 | AB79: 7800
A80: 2110 | B80: 163 | D80: 2020-04-30 | E80: 支払報酬料 | H80: 課対仕入内10% | I80: 45000 | J80: 4545 | K80: 普通預金 | L80: 港銀行 城西支店 | N80: 対象外 | O80: 45000 | P80: 0 | Q80: 税理士顧問料／顧問料振込 ４月分 | T80: 3 | W80: 0 | X80: 0 | Y80: no | Z80: 1 | AA80: 50000 | AB80: 45000 | AC80: 1
A81: 2111 | B81: 164 | D81: 2020-04-30 | E81: 当座預金 | F81: 北東銀行 築地支店 | H81: 対象外 | I81: 1645350 | J81: 0 | K81: 売掛金 | L81: 厚木産業 | N81: 対象外 | O81: 1645350 | P81: 0 | Q81: A002厚木産業 | T81: 3 | W81: 0 | X81: 0 | Y81: no | AA81: 1645350 | AB81: 1645350
A82: 2111 | B82: 165 | D82: 2020-04-30 | E82: 当座預金 | F82: 北東銀行 築地支店 | H82: 対象外 | I82: 1502025 | J82: 0 | K82: 売掛金 | L82: 文京食器店 | N82: 対象外 | O82: 1502025 | P82: 0 | Q82: B001文京食器店 | T82: 3 | W82: 0 | X82: 0 | Y82: no | AA82: 1502025 | AB82: 1502025
A83: 2111 | B83: 166 | D83: 2020-04-30 | E83: 当座預金 | F83: 北東銀行 築地支店 | H83: 対象外 | I83: 376245 | J83: 0 | K83: 売掛金 | L83: ＬＳリビング 大分店 | N83: 対象外 | O83: 376245 | P83: 0 | Q83: L001ＬＳリビング大分 | T83: 3 | W83: 0 | X83: 0 | Y83: no | AA83: 376245 | AB83: 376245
A84: 2111 | B84: 167 | D84: 2020-04-30 | E84: 当座預金 | F84: 北東銀行 築地支店 | H84: 対象外 | I84: 542430 | J84: 0 | K84: 売掛金 | L84: ＬＳリビング 福岡店 | N84: 対象外 | O84: 542430 | P84: 0 | Q84: L002ＬＳリビング福岡 | T84: 3 | W84: 0 | X84: 0 | Y84: no | AA84: 542430 | AB84: 542430
A85: 2111 | B85: 176 | D85: 2020-04-30 | E85: 買掛金 | F85: 橋本商会 | H85: 対象外 | I85: 3192929 | J85: 0 | K85: 当座預金 | L85: 北東銀行 築地支店 | N85: 対象外 | O85: 3192929 | P85: 0 | Q85: H001橋本商会 | T85: 3 | W85: 0 | X85: 0 | Y85: no | AA85: 3192929 | AB85: 3192929
A86: 2000 | B86: 181 | D86: 2020-04-30 | E86: 買掛金 | F86: 北海商事 | H86: 対象外 | I86: 964370 | J86: 0 | K86: 当座預金 | L86: 北東銀行 築地支店 | N86: 対象外 | O86: 964370 | P86: 0 | Q86: 掛代金支払 | T86: 0 | W86: 0 | X86: 0 | Y86: no | AA86: 964370 | AB86: 964370
A87: 2000 | B87: 182 | D87: 2020-04-30 | E87: 当座預金 | F87: 北東銀行 築地支店 | H87: 対象外 | I87: 758625 | J87: 0 | K87: 売掛金 | L87: エヌ商会 | N87: 対象外 | O87: 758625 | P87: 0 | Q87: 掛代金回収 E001エヌ商会 | T87: 0 | W87: 0 | X87: 0 | Y87: no | AA87: 758625 | AB87: 758625
A88: 2000 | B88: 184 | D88: 2020-04-30 | E88: 地代家賃 | F88: ABビル | H88: 課対仕入内10% | I88: 240000 | J88: 21818 | K88: 当座預金 | L88: 北東銀行 築地支店 | N88: 対象外 | O88: 240000 | P88: 0 | Q88: 事務所家賃支払 | T88: 0 | W88: 0 | X88: 0 | Y88: no | AA88: 240000 | AB88: 240000
A89: 2000 | B89: 187 | D89: 2020-04-30 | E89: 買掛金 | F89: 富士興産 | H89: 対象外 | I89: 3508963 | J89: 0 | K89: 当座預金 | L89: 北東銀行 築地支店 | N89: 対象外 | O89: 3508963 | P89: 0 | Q89: 買掛金支払 | T89: 0 | W89: 0 | X89: 0 | Y89: no | AA89: 3508963 | AB89: 3508963
A90: 2000 | B90: 189 | D90: 2020-05-01 | E90: [製]消耗品費 | H90: 課対仕入内10% | I90: 4380 | J90: 398 | K90: 現金 | N90: 対象外 | O90: 4380 | P90: 0 | Q90: ゴミ処理券 | T90: 0 | W90: 0 | X90: 0 | Y90: no | AA90: 4380 | AB90: 4380
A91: 2000 | B91: 190 | D91: 2020-05-01 | E91: [製]消耗品費 | H91: 課対仕入内10% | I91: 35000 | J91: 3181 | K91: 普通預金 | L91: 港銀行 城西支店 | N91: 対象外 | O91: 35000 | P91: 0 | Q91: トナーカートリッジ代 | T91: 0 | W91: 0 | X91: 0 | Y91: no | AA91: 35000 | AB91: 35000
A92: 2000 | B92: 191 | D92: 2020-05-01 | E92: 福利厚生費 | H92: 課対仕入内軽減8% | I92: 2000 | J92: 148 | K92: 現金 | N92: 対象外 | O92: 2000 | P92: 0 | Q92: 軽減税率：従業員夜食代 | T92: 0 | W92: 0 | X92: 0 | Y92: no | AA92: 2000 | AB92: 2000
A93: 2000 | B93: 192 | D93: 2020-05-03 | E93: 車両費 | F93: その他 | H93: 課対仕入内10% | I93: 2210 | J93: 200 | K93: 現金 | N93: 対象外 | O93: 2210 | P93: 0 | Q93: パーキング 市営駐車場（弥生幸子） | T93: 0 | W93: 0 | X93: 0 | Y93: no | AA93: 2210 | AB93: 2210
A94: 2000 | B94: 193 | D94: 2020-05-03 | E94: 交際費 | H94: 課対仕入内10% | I94: 31500 | J94: 2863 | K94: 現金 | N94: 対象外 | O94: 31500 | P94: 0 | Q94: ミナミ開店祝 花輪代 | T94: 0 | W94: 0 | X94: 0 | Y94: no | AA94: 31500 | AB94: 31500
A95: 2000 | B95: 194 | D95: 2020-05-03 | E95: 現金 | H95: 対象外 | I95: 128220 | J95: 0 | K95: 売上高 | N95: 課税売上内10% | O95: 128220 | P95: 11656 | Q95: 本日売上 | T95: 0 | W95: 0 | X95: 0 | Y95: no | AA95: 128220 | AB95: 128220
A96: 2000 | B96: 200 | D96: 2020-05-04 | E96: 福利厚生費 | H96: 課対仕入内10% | I96: 1500 | J96: 136 | K96: 現金 | N96: 対象外 | O96: 1500 | P96: 0 | Q96: お茶菓子 セブンマート城西店（清水） | T96: 0 | W96: 0 | X96: 0 | Y96: no | AA96: 1500 | AB96: 1500
A97: 2000 | B97: 201 | D97: 2020-05-04 | E97: 現金 | H97: 対象外 | I97: 150800 | J97: 0 | K97: 売上高 | N97: 課税売上内10% | O97: 150800 | P97: 13709 | Q97: 本日売上 | T97: 0 | W97: 0 | X97: 0 | Y97: no | AA97: 150800 | AB97: 150800
A98: 2000 | B98: 205 | D98: 2020-05-05 | E98: 現金 | H98: 対象外 | I98: 174698 | J98: 0 | K98: 売上高 | N98: 課税売上内10% | O98: 174698 | P98: 15881 | Q98: 本日売上 | T98: 0 | W98: 0 | X98: 0 | Y98: no | AA98: 174698 | AB98: 174698
A99: 2000 | B99: 209 | D99: 2020-05-05 | E99: 保険料 | F99: 損害保険 | H99: 対象外 | I99: 46000 | J99: 0 | K99: 普通預金 | L99: 赤坂銀行 本店 | N99: 対象外 | O99: 46000 | P99: 0 | Q99: 自動車保険 | T99: 0 | W99: 0 | X99: 0 | Y99: no | AA99: 46000 | AB99: 46000
A100: 2000 | B100: 210 | D100: 2020-05-06 | E100: 現金 | H100: 対象外 | I100: 171600 | J100: 0 | K100: 売上高 | N100: 課税売上内10% | O100: 171600 | P100: 15600 | Q100: 本日売上 | T100: 0 | W100: 0 | X100: 0 | Y100: no | AA100: 171600 | AB100: 171600
A101: 2110 | B101: 211 | D101: 2020-05-06 | E101: 法定福利費 | H101: 対象外 | I101: 215432 | J101: 0 | K101: 普通預金 | L101: 港銀行 城西支店 | N101: 対象外 | O101: 215432 | P101: 0 | Q101: 社会保険料会社負担／自動振替 | T101: 3 | W101: 0 | X101: 0 | Y101: no | Z101: 1 | AA101: 215432 | AB101: 215432
A102: 2100 | B102: 211 | D102: 2020-05-06 | E102: 預り金 | F102: 社会保険料 | H102: 対象外 | I102: 199567 | J102: 0 | K102: 普通預金 | N102: 対象外 | O102: 199567 | P102: 0 | Q102: 社会保険料 | T102: 3 | W102: 0 | X102: 0 | Y102: no | Z102: 1 | AA102: 199567 | AB102: 199567
A103: 2000 | B103: 214 | D103: 2020-05-07 | E103: 旅費交通費 | H103: 課対仕入内10% | I103: 580 | J103: 52 | K103: 現金 | N103: 対象外 | O103: 580 | P103: 0 | Q103: 電車代 地下鉄（佐藤） | T103: 0 | W103: 0 | X103: 0 | Y103: no | AA103: 580 | AB103: 580
A104: 2000 | B104: 215 | D104: 2020-05-07 | E104: 現金 | H104: 対象外 | I104: 143849 | J104: 0 | K104: 売上高 | N104: 課税売上内10% | O104: 143849 | P104: 13077 | Q104: 本日売上 | T104: 0 | W104: 0 | X104: 0 | Y104: no | AA104: 143849 | AB104: 143849
A105: 2000 | B105: 216 | D105: 2020-05-07 | E105: 保険料 | F105: 損害保険 | H105: 対象外 | I105: 46000 | J105: 0 | K105: 普通預金 | L105: 赤坂銀行 本店 | N105: 対象外 | O105: 46000 | P105: 0 | Q105: 自動車保険 | T105: 0 | W105: 0 | X105: 0 | Y105: no | AA105: 46000 | AB105: 46000
A106: 2111 | B106: 220 | D106: 2020-05-08 | E106: 買掛金 | F106: アトラス | H106: 対象外 | I106: 1197000 | J106: 0 | K106: 当座預金 | L106: 北東銀行 築地支店 | N106: 対象外 | O106: 1197000 | P106: 0 | Q106: A201アトラス | T106: 3 | W106: 0 | X106: 0 | Y106: no | AA106: 1197000 | AB106: 1197000
A107: 2111 | B107: 222 | D107: 2020-05-09 | E107: 当座預金 | F107: 北東銀行 築地支店 | H107: 対象外 | I107: 587698 | J107: 0 | K107: 受取手形 | N107: 対象外 | O107: 587698 | P107: 0 | Q107: 決済,振出人:中野産業 | R107: AA235980 | S107: R.02/05/09 | T107: 3 | U107: 受手 | W107: 0 | X107: 0 | Y107: no | AA107: 587698 | AB107: 587698
A108: 2000 | B108: 223 | D108: 2020-05-10 | E108: 現金 | H108: 対象外 | I108: 122039 | J108: 0 | K108: 売上高 | N108: 課税売上内10% | O108: 122039 | P108: 11094 | Q108: 本日売上 | T108: 0 | W108: 0 | X108: 0 | Y108: no | AA108: 122039 | AB108: 122039
A109: 2000 | B109: 224 | D109: 2020-05-10 | E109: [製]福利厚生費 | H109: 課対仕入内10% | I109: 2671 | J109: 242 | K109: 現金 | N109: 対象外 | O109: 2671 | P109: 0 | Q109: お茶等、コンビニストア | T109: 0 | W109: 0 | X109: 0 | Y109: no | AA109: 2671 | AB109: 2671
A110: 2000 | B110: 229 | D110: 2020-05-10 | E110: 預り金 | F110: 住民税 | H110: 対象外 | I110: 37100 | J110: 0 | K110: 普通預金 | L110: 港銀行 城西支店 | N110: 対象外 | O110: 37100 | P110: 0 | Q110: 住民税支払 | T110: 0 | W110: 0 | X110: 0 | Y110: no | AA110: 37100 | AB110: 37100
A111: 2000 | B111: 230 | D111: 2020-05-10 | E111: 当座預金 | F111: 北東銀行 築地支店 | H111: 対象外 | I111: 520905 | J111: 0 | K111: 売掛金 | L111: 中央産業 | N111: 対象外 | O111: 520905 | P111: 0 | Q111: 掛代金回収 C001中央産業 | T111: 0 | W111: 0 | X111: 0 | Y111: no | AA111: 520905 | AB111: 520905
A112: 2111 | B112: 232 | D112: 2020-05-11 | E112: 当座預金 | F112: 北東銀行 築地支店 | H112: 対象外 | I112: 255150 | J112: 0 | K112: 売掛金 | L112: ハマ屋 | N112: 対象外 | O112: 255150 | P112: 0 | Q112: H001ハマ屋 | T112: 3 | W112: 0 | X112: 0 | Y112: no | AA112: 255150 | AB112: 255150
A113: 2000 | B113: 234 | D113: 2020-05-11 | E113: 交際費 | H113: 課対仕入内10% | I113: 68500 | J113: 6227 | K113: 現金 | N113: 対象外 | O113: 68500 | P113: 0 | Q113: 接待 割烹 よしの（弥生幸子）：景徳鎮 | T113: 0 | W113: 0 | X113: 0 | Y113: no | AA113: 68500 | AB113: 68500
A114: 2000 | B114: 235 | D114: 2020-05-11 | E114: 現金 | H114: 対象外 | I114: 147477 | J114: 0 | K114: 売上高 | N114: 課税売上内10% | O114: 147477 | P114: 13407 | Q114: 本日売上 | T114: 0 | W114: 0 | X114: 0 | Y114: no | AA114: 147477 | AB114: 147477
A115: 2000 | B115: 239 | D115: 2020-05-12 | E115: 水道光熱費 | H115: 課対仕入内10% | I115: 28560 | J115: 2596 | K115: 普通預金 | L115: 港銀行 城西支店 | N115: 対象外 | O115: 28560 | P115: 0 | Q115: 電気代 関東電力 | T115: 0 | W115: 0 | X115: 0 | Y115: no | AA115: 28560 | AB115: 28560
A116: 2000 | B116: 240 | D116: 2020-05-12 | E116: 現金 | H116: 対象外 | I116: 157591 | J116: 0 | K116: 売上高 | N116: 課税売上内10% | O116: 157591 | P116: 14326 | Q116: 本日売上 | T116: 0 | W116: 0 | X116: 0 | Y116: no | AA116: 157591 | AB116: 157591
A117: 2000 | B117: 241 | D117: 2020-05-12 | E117: 水道光熱費 | H117: 課対仕入内10% | I117: 57265 | J117: 5205 | K117: 普通預金 | L117: 港銀行 城西支店 | N117: 対象外 | O117: 57265 | P117: 0 | Q117: 電気代 関東電力 | T117: 0 | W117: 0 | X117: 0 | Y117: no | AA117: 57265 | AB117: 57265
A118: 2000 | B118: 242 | D118: 2020-05-12 | E118: [製]水道光熱費 | H118: 課対仕入内10% | I118: 45500 | J118: 4136 | K118: 普通預金 | L118: 港銀行 城西支店 | N118: 対象外 | O118: 45500 | P118: 0 | Q118: 電気代 関東電力 | T118: 0 | W118: 4 | X118: 5 | Y118: no | AA118: 45500 | AB118: 45500
A119: 2000 | B119: 244 | D119: 2020-05-12 | E119: [製]賃借料 | H119: 課対仕入内10% | I119: 44625 | J119: 4056 | K119: 普通預金 | L119: 港銀行 城西支店 | N119: 対象外 | O119: 44625 | P119: 0 | Q119: 弥生信販 機械リース ４月分 | T119: 0 | W119: 0 | X119: 0 | Y119: no | AA119: 44625 | AB119: 44625
A120: 2000 | B120: 246 | D120: 2020-05-13 | E120: 現金 | H120: 対象外 | I120: 117324 | J120: 0 | K120: 売上高 | N120: 課税売上内10% | O120: 117324 | P120: 10665 | Q120: 本日売上 | T120: 0 | W120: 0 | X120: 0 | Y120: no | AA120: 117324 | AB120: 117324
A121: 2000 | B121: 249 | D121: 2020-05-14 | E121: 現金 | H121: 対象外 | I121: 120343 | J121: 0 | K121: 売上高 | N121: 課税売上内10% | O121: 120343 | P121: 10940 | Q121: 本日売上 | T121: 0 | W121: 0 | X121: 0 | Y121: no | AA121: 120343 | AB121: 120343
A122: 2111 | B122: 257 | D122: 2020-05-15 | E122: 買掛金 | F122: 山田商事 | H122: 対象外 | I122: 151199 | J122: 0 | K122: 当座預金 | L122: 北東銀行 築地支店 | N122: 対象外 | O122: 151199 | P122: 0 | Q122: Y001山田商事 | T122: 3 | W122: 0 | X122: 0 | Y122: no | AA122: 151199 | AB122: 151199
A123: 2111 | B123: 258 | D123: 2020-05-15 | E123: 現金 | H123: 対象外 | I123: 2565485 | J123: 0 | K123: 売掛金 | L123: オリエント商会 | N123: 対象外 | O123: 2565485 | P123: 0 | Q123: O003オリエント商会 | T123: 3 | W123: 0 | X123: 0 | Y123: no | AA123: 2565485 | AB123: 2565485
A124: 2000 | B124: 261 | D124: 2020-05-15 | E124: 買掛金 | F124: アース商店 | H124: 対象外 | I124: 1220000 | J124: 0 | K124: 当座預金 | L124: 北東銀行 築地支店 | N124: 対象外 | O124: 1220000 | P124: 0 | Q124: 買掛金支払 | T124: 0 | W124: 0 | X124: 0 | Y124: no | AA124: 1220000 | AB124: 1220000
A125: 2111 | B125: 262 | D125: 2020-05-15 | E125: 買掛金 | F125: サンライズ | H125: 対象外 | I125: 248000 | J125: 0 | K125: 当座預金 | L125: 北東銀行 築地支店 | N125: 対象外 | O125: 248000 | P125: 0 | Q125: S201ｻﾝﾗｲｽﾞ | T125: 3 | W125: 0 | X125: 0 | Y125: no | AA125: 248000 | AB125: 248000
A126: 2000 | B126: 263 | D126: 2020-05-15 | E126: 未払金 | H126: 対象外 | I126: 10000 | J126: 0 | K126: 普通預金 | N126: 対象外 | O126: 10000 | P126: 0 | Q126: 接待交際費の支払い | T126: 0 | W126: 0 | X126: 0 | Y126: no | AA126: 10000 | AB126: 10000
A127: 2000 | B127: 264 | D127: 2020-05-17 | E127: 通信費 | H127: 課対仕入内10% | I127: 40000 | J127: 3636 | K127: 現金 | N127: 対象外 | O127: 40000 | P127: 0 | Q127: 切手代 城西郵便局 | T127: 0 | W127: 0 | X127: 0 | Y127: no | AA127: 40000 | AB127: 40000
A128: 2000 | B128: 265 | D128: 2020-05-17 | E128: 現金 | H128: 対象外 | I128: 147660 | J128: 0 | K128: 売上高 | N128: 課税売上内10% | O128: 147660 | P128: 13423 | Q128: 本日売上 | T128: 0 | W128: 0 | X128: 0 | Y128: no | AA128: 147660 | AB128: 147660
A129: 2000 | B129: 266 | D129: 2020-05-17 | E129: 通信費 | H129: 課対仕入内10% | I129: 36587 | J129: 3326 | K129: 普通預金 | L129: 港銀行 城西支店 | N129: 対象外 | O129: 36587 | P129: 0 | Q129: 携帯電話 ４月分 モバイル BB （弥生幸子） | T129: 0 | W129: 0 | X129: 0 | Y129: no | AA129: 36587 | AB129: 36587
A130: 2000 | B130: 267 | D130: 2020-05-17 | E130: 通信費 | H130: 課対仕入内10% | I130: 26370 | J130: 2397 | K130: 普通預金 | L130: 港銀行 城西支店 | N130: 対象外 | O130: 26370 | P130: 0 | Q130: 電話料 ４月分 JＴＴ | T130: 0 | W130: 0 | X130: 0 | Y130: no | AA130: 26370 | AB130: 26370
A131: 2000 | B131: 268 | D131: 2020-05-17 | E131: 通信費 | H131: 課対仕入内10% | I131: 56580 | J131: 5143 | K131: 普通預金 | L131: 港銀行 城西支店 | N131: 対象外 | O131: 56580 | P131: 0 | Q131: 電話料 ４月分 JＴＴ | T131: 0 | W131: 0 | X131: 0 | Y131: no | AA131: 56580 | AB131: 56580
A132: 2000 | B132: 269 | D132: 2020-05-17 | E132: [製]通信費 | H132: 課対仕入内10% | I132: 23516 | J132: 2137 | K132: 普通預金 | L132: 港銀行 城西支店 | N132: 対象外 | O132: 23516 | P132: 0 | Q132: 電話料 ４月分 JＴＴ | T132: 0 | W132: 0 | X132: 0 | Y132: no | AA132: 23516 | AB132: 23516
A133: 2000 | B133: 272 | D133: 2020-05-18 | E133: 現金 | H133: 対象外 | I133: 142220 | J133: 0 | K133: 売上高 | N133: 課税売上内10% | O133: 142220 | P133: 12929 | Q133: 本日売上 | T133: 0 | W133: 0 | X133: 0 | Y133: no | AA133: 142220 | AB133: 142220
A134: 2000 | B134: 273 | D134: 2020-05-19 | E134: 現金 | H134: 対象外 | I134: 162620 | J134: 0 | K134: 売上高 | N134: 課税売上内10% | O134: 162620 | P134: 14783 | Q134: 本日売上 | T134: 0 | W134: 0 | X134: 0 | Y134: no | AA134: 162620 | AB134: 162620
A135: 2111 | B135: 278 | D135: 2020-05-19 | E135: 当座預金 | F135: 北東銀行 築地支店 | H135: 対象外 | I135: 1214100 | J135: 0 | K135: 受取手形 | N135: 対象外 | O135: 1214100 | P135: 0 | Q135: 決済,振出人:中央産業大阪 | R135: TH321102 | S135: R.02/05/19 | T135: 3 | U135: 受手 | W135: 0 | X135: 0 | Y135: no | AA135: 1214100 | AB135: 1214100
A136: 2111 | B136: 279 | D136: 2020-05-19 | E136: 支払手形 | H136: 対象外 | I136: 3558215 | J136: 0 | K136: 当座預金 | L136: 北東銀行 築地支店 | N136: 対象外 | O136: 3558215 | P136: 0 | Q136: 決済 | R136: YT361274 | S136: R.02/05/19 | T136: 3 | U136: 支手 | W136: 0 | X136: 0 | Y136: no | AA136: 3558215 | AB136: 3558215
A137: 2111 | B137: 280 | D137: 2020-05-20 | E137: 買掛金 | F137: イーグル | H137: 対象外 | I137: 151200 | J137: 0 | K137: 当座預金 | L137: 北東銀行 築地支店 | N137: 対象外 | O137: 151200 | P137: 0 | Q137: I201イーグル | T137: 3 | W137: 0 | X137: 0 | Y137: no | AA137: 151200 | AB137: 151200
A138: 2000 | B138: 281 | D138: 2020-05-20 | E138: 現金 | H138: 対象外 | I138: 148572 | J138: 0 | K138: 売上高 | N138: 課税売上内10% | O138: 148572 | P138: 13506 | Q138: 本日売上 | T138: 0 | W138: 0 | X138: 0 | Y138: no | AA138: 148572 | AB138: 148572
A139: 2000 | B139: 282 | D139: 2020-05-20 | E139: [製]消耗品費 | H139: 課対仕入内10% | I139: 8050 | J139: 731 | K139: 現金 | N139: 対象外 | O139: 8050 | P139: 0 | Q139: マット、モップ代 | T139: 0 | W139: 0 | X139: 0 | Y139: no | AA139: 8050 | AB139: 8050
A140: 2111 | B140: 291 | D140: 2020-05-20 | E140: 買掛金 | F140: ミラクル | H140: 対象外 | I140: 12340 | J140: 0 | K140: 当座預金 | L140: 北東銀行 築地支店 | N140: 対象外 | O140: 12340 | P140: 0 | Q140: M201ミラクル | T140: 3 | W140: 0 | X140: 0 | Y140: no | AA140: 12340 | AB140: 12340
A141: 2111 | B141: 292 | D141: 2020-05-20 | E141: 当座預金 | F141: 北東銀行 築地支店 | H141: 対象外 | I141: 134400 | J141: 0 | K141: 売掛金 | L141: プラザ調布 | N141: 対象外 | O141: 134400 | P141: 0 | Q141: P001プラザ調布 | T141: 3 | W141: 0 | X141: 0 | Y141: no | AA141: 134400 | AB141: 134400
A142: 2000 | B142: 294 | D142: 2020-05-20 | E142: 交際費 | H142: 課対仕入内軽減8% | I142: 10000 | J142: 740 | K142: 現金 | N142: 対象外 | O142: 10000 | P142: 0 | Q142: 軽減税率：交際費（贈答品） | T142: 0 | W142: 0 | X142: 0 | Y142: no | AA142: 10000 | AB142: 10000
A143: 2110 | B143: 296 | D143: 2020-05-20 | E143: 長期借入金 | F143: 北東銀行 築地支店 | H143: 対象外 | I143: 197393 | J143: 0 | K143: 当座預金 | L143: 北東銀行 築地支店 | N143: 対象外 | O143: 197393 | P143: 0 | Q143: 設備投資資金返済5月分 | T143: 3 | U143: 借入 | W143: 0 | X143: 0 | Y143: no | Z143: 1 | AA143: 197393 | AB143: 197393
A144: 2101 | B144: 296 | D144: 2020-05-20 | E144: 支払利息 | H144: 対象外 | I144: 16635 | J144: 0 | K144: 当座預金 | N144: 対象外 | O144: 16635 | P144: 0 | T144: 3 | U144: 借入 | W144: 0 | X144: 0 | Y144: no | Z144: 1 | AA144: 16635 | AB144: 16635
A145: 2000 | B145: 297 | D145: 2020-05-21 | E145: 現金 | H145: 対象外 | I145: 127781 | J145: 0 | K145: 売上高 | N145: 課税売上内10% | O145: 127781 | P145: 11616 | Q145: 本日売上 | T145: 0 | W145: 0 | X145: 0 | Y145: no | AA145: 127781 | AB145: 127781
A146: 2000 | B146: 300 | D146: 2020-05-22 | E146: リース料 | H146: 課対仕入内10% | I146: 5250 | J146: 477 | K146: 普通預金 | L146: 赤坂銀行 本店 | N146: 対象外 | O146: 5250 | P146: 0 | Q146: レジスターリース料 ユーロリース | T146: 0 | W146: 0 | X146: 0 | Y146: no | AA146: 5250 | AB146: 5250
A147: 2110 | B147: 301 | D147: 2020-05-22 | E147: 仮払消費税等 | H147: 課対輸税7.8% | I147: 351000 | J147: 0 | K147: 当座預金 | L147: 北東銀行 築地支店 | N147: 対象外 | O147: 351000 | P147: 0 | Q147: 東京税関 | T147: 3 | W147: 0 | X147: 0 | Y147: no | Z147: 1 | AA147: 351000 | AB147: 351000
A148: 2101 | B148: 301 | D148: 2020-05-22 | E148: 仮払消費税等 | H148: 地消貨割2.2% | I148: 99000 | J148: 0 | K148: 当座預金 | N148: 対象外 | O148: 99000 | P148: 0 | Q148: 東京税関 | T148: 3 | W148: 0 | X148: 0 | Y148: no | Z148: 1 | AA148: 99000 | AB148: 99000
A149: 2110 | B149: 303 | D149: 2020-05-22 | E149: 短期借入金 | F149: 港銀行 城西支店 | H149: 対象外 | I149: 500000 | J149: 0 | K149: 普通預金 | L149: 港銀行 城西支店 | N149: 対象外 | O149: 500000 | P149: 0 | Q149: 短期借入金（年末融資（令和１年））返済５回目 | T149: 3 | U149: 借入 | W149: 0 | X149: 0 | Y149: no | Z149: 1 | AA149: 500000 | AB149: 500000
A150: 2101 | B150: 303 | D150: 2020-05-22 | E150: 支払利息 | H150: 対象外 | I150: 7833 | J150: 0 | K150: 普通預金 | N150: 対象外 | O150: 7833 | P150: 0 | T150: 3 | U150: 借入 | W150: 0 | X150: 0 | Y150: no | Z150: 1 | AA150: 7833 | AB150: 7833
A151: 2000 | B151: 304 | D151: 2020-05-24 | E151: 現金 | H151: 対象外 | I151: 146886 | J151: 0 | K151: 売上高 | N151: 課税売上内10% | O151: 146886 | P151: 13353 | Q151: 本日売上 | T151: 0 | W151: 0 | X151: 0 | Y151: no | AA151: 146886 | AB151: 146886
A152: 2111 | B152: 305 | D152: 2020-05-25 | E152: 買掛金 | F152: 日本橋商会 | H152: 対象外 | I152: 2100000 | J152: 0 | K152: 当座預金 | L152: 北東銀行 築地支店 | N152: 対象外 | O152: 2100000 | P152: 0 | Q152: T010日本橋商会 | T152: 3 | W152: 0 | X152: 0 | Y152: no | AA152: 2100000 | AB152: 2100000
A153: 2000 | B153: 306 | D153: 2020-05-25 | E153: 福利厚生費 | H153: 課対仕入内10% | I153: 980 | J153: 89 | K153: 現金 | N153: 対象外 | O153: 980 | P153: 0 | Q153: 残業食事 セブンマート城西店（上原） | T153: 0 | W153: 0 | X153: 0 | Y153: no | AA153: 980 | AB153: 980
A154: 2000 | B154: 307 | D154: 2020-05-25 | E154: 現金 | H154: 対象外 | I154: 167153 | J154: 0 | K154: 売上高 | N154: 課税売上内10% | O154: 167153 | P154: 15195 | Q154: 本日売上 | T154: 0 | W154: 0 | X154: 0 | Y154: no | AA154: 167153 | AB154: 167153
A155: 2100 | B155: 309 | D155: 2020-05-25 | E155: 旅費交通費 | H155: 課対仕入内10% | I155: 285864 | J155: 6494 | K155: 現金 | N155: 対象外 | O155: 285864 | P155: 0 | Q155: //給与 5月分 | T155: 3 | W155: 0 | X155: 0 | Y155: no | Z155: 1 | AA155: 71440 | AB155: 285864 | AC155: 1
A156: 2100 | B156: 309 | D156: 2020-05-25 | E156: 支払手数料 | H156: 課対仕入内10% | I156: 1405682 | J156: 196 | K156: 当座預金 | L156: 北東銀行 築地支店 | N156: 対象外 | O156: 1405682 | P156: 0 | Q156: //給与 5月分 振込 | T156: 3 | W156: 0 | X156: 0 | Y156: no | Z156: 1 | AA156: 2160 | AB156: 1405682 | AC156: 1
A157: 2111 | B157: 310 | D157: 2020-05-25 | E157: 当座預金 | F157: 北東銀行 築地支店 | H157: 対象外 | I157: 386820 | J157: 0 | K157: 売掛金 | L157: 川崎ﾎｰﾑｼｮｯﾌﾟ | N157: 対象外 | O157: 386820 | P157: 0 | Q157: K002川崎ﾎｰﾑｼｮｯﾌﾟ | T157: 3 | W157: 0 | X157: 0 | Y157: no | AA157: 386820 | AB157: 386820
A158: 2000 | B158: 311 | D158: 2020-05-25 | E158: 買掛金 | F158: 株式会社吉野 | H158: 対象外 | I158: 208250 | J158: 0 | K158: 当座預金 | L158: 北東銀行 築地支店 | N158: 対象外 | O158: 208250 | P158: 0 | Q158: ４月仕入分支払い | T158: 0 | W158: 0 | X158: 0 | Y158: no | AA158: 208250 | AB158: 208250
A159: 2000 | B159: 312 | D159: 2020-05-25 | E159: 買掛金 | F159: スター工芸 | H159: 対象外 | I159: 180000 | J159: 0 | K159: 当座預金 | L159: 北東銀行 築地支店 | N159: 対象外 | O159: 180000 | P159: 0 | Q159: 買掛金支払 | T159: 0 | W159: 0 | X159: 0 | Y159: no | AA159: 180000 | AB159: 180000
A160: 2000 | B160: 313 | D160: 2020-05-25 | E160: 新聞図書費 | H160: 課対仕入内軽減8% | I160: 4000 | J160: 296 | K160: 現金 | N160: 対象外 | O160: 4000 | P160: 0 | Q160: 軽減税率：新聞購読料（定期購読） | T160: 0 | W160: 0 | X160: 0 | Y160: no | AA160: 4000 | AB160: 4000
A161: 2000 | B161: 314 | D161: 2020-05-25 | E161: 新聞図書費 | H161: 課対仕入内軽減8% | I161: 3500 | J161: 259 | K161: 普通預金 | N161: 対象外 | O161: 3500 | P161: 0 | Q161: 軽減税率：新聞代（定期購読）普通預金 | T161: 0 | W161: 0 | X161: 0 | Y161: no | AA161: 3500 | AB161: 3500
A162: 2000 | B162: 315 | D162: 2020-05-25 | E162: 新聞図書費 | H162: 課対仕入内軽減8% | I162: 3000 | J162: 222 | K162: 当座預金 | N162: 対象外 | O162: 3000 | P162: 0 | Q162: 軽減税率：新聞代（定期購読）自動振替 | T162: 0 | W162: 0 | X162: 0 | Y162: no | AA162: 3000 | AB162: 3000
A163: 2000 | B163: 316 | D163: 2020-05-25 | E163: 仮払金 | H163: 対象外 | I163: 15000 | J163: 0 | K163: 現金 | N163: 対象外 | O163: 15000 | P163: 0 | Q163: 仮払金支給(交際費) | T163: 0 | W163: 0 | X163: 0 | Y163: no | AA163: 15000 | AB163: 15000
A164: 2000 | B164: 318 | D164: 2020-05-26 | E164: 現金 | H164: 対象外 | I164: 157172 | J164: 0 | K164: 売上高 | N164: 課税売上内10% | O164: 157172 | P164: 14288 | Q164: 本日売上 | T164: 0 | W164: 0 | X164: 0 | Y164: no | AA164: 157172 | AB164: 157172
A165: 2000 | B165: 325 | D165: 2020-05-27 | E165: 現金 | H165: 対象外 | I165: 167658 | J165: 0 | K165: 売上高 | N165: 課税売上内10% | O165: 167658 | P165: 15241 | Q165: 本日売上 | T165: 0 | W165: 0 | X165: 0 | Y165: no | AA165: 167658 | AB165: 167658
A166: 2111 | B166: 330 | D166: 2020-05-27 | E166: 当座預金 | F166: 北東銀行 築地支店 | H166: 対象外 | I166: 583800 | J166: 0 | K166: 受取手形 | N166: 対象外 | O166: 583800 | P166: 0 | Q166: 決済,振出人:九州物産 | R166: CB334050 | S166: R.02/05/27 | T166: 3 | U166: 受手 | W166: 0 | X166: 0 | Y166: no | AA166: 583800 | AB166: 583800
A167: 2000 | B167: 331 | D167: 2020-05-28 | E167: 現金 | H167: 対象外 | I167: 167580 | J167: 0 | K167: 売上高 | N167: 課税売上内10% | O167: 167580 | P167: 15234 | Q167: 本日売上 | T167: 0 | W167: 0 | X167: 0 | Y167: no | AA167: 167580 | AB167: 167580
A168: 2000 | B168: 332 | D168: 2020-05-28 | E168: 未払消費税等 | H168: 対象外 | I168: 2697700 | J168: 0 | K168: 当座預金 | L168: 北東銀行 築地支店 | N168: 対象外 | O168: 2697700 | P168: 0 | Q168: 消費税確定分 | T168: 0 | W168: 0 | X168: 0 | Y168: no | AA168: 2697700 | AB168: 2697700
A169: 2000 | B169: 333 | D169: 2020-05-28 | E169: 未払法人税等 | H169: 対象外 | I169: 1614500 | J169: 0 | K169: 普通預金 | L169: 港銀行 城西支店 | N169: 対象外 | O169: 1614500 | P169: 0 | Q169: 法人税・住民税確定分 | T169: 0 | W169: 0 | X169: 0 | Y169: no | AA169: 1614500 | AB169: 1614500
A170: 2000 | B170: 334 | D170: 2020-05-28 | E170: 租税公課 | H170: 対象外 | I170: 25000 | J170: 0 | K170: 現金 | N170: 対象外 | O170: 25000 | P170: 0 | Q170: 自動車税 | T170: 0 | W170: 0 | X170: 0 | Y170: no | AA170: 25000 | AB170: 25000
A171: 2110 | B171: 335 | D171: 2020-05-28 | E171: 支払報酬料 | H171: 課対仕入内10% | I171: 45000 | J171: 4545 | K171: 普通預金 | L171: 港銀行 城西支店 | N171: 対象外 | O171: 45000 | P171: 0 | Q171: 税理士顧問料 ５月分 | T171: 3 | W171: 0 | X171: 0 | Y171: no | Z171: 1 | AA171: 50000 | AB171: 45000 | AC171: 1
A172: 2111 | B172: 336 | D172: 2020-05-28 | E172: 当座預金 | F172: 昭和信用金庫 本店 | H172: 対象外 | I172: 167580 | J172: 0 | K172: 売掛金 | L172: 池袋リビング | N172: 対象外 | O172: 167580 | P172: 0 | Q172: I001池袋リビング | T172: 3 | W172: 0 | X172: 0 | Y172: no | AA172: 167580 | AB172: 167580
A173: 2111 | B173: 337 | D173: 2020-05-28 | E173: 当座預金 | F173: 北東銀行 築地支店 | H173: 対象外 | I173: 306600 | J173: 0 | K173: 売掛金 | L173: 市川ストア | N173: 対象外 | O173: 306600 | P173: 0 | Q173: I002市川ストア | T173: 3 | W173: 0 | X173: 0 | Y173: no | AA173: 306600 | AB173: 306600
A174: 2111 | B174: 338 | D174: 2020-05-28 | E174: 当座預金 | F174: 北東銀行 築地支店 | H174: 対象外 | I174: 196980 | J174: 0 | K174: 売掛金 | L174: 海北商店 | N174: 対象外 | O174: 196980 | P174: 0 | Q174: K001海北商店 | T174: 3 | W174: 0 | X174: 0 | Y174: no | AA174: 196980 | AB174: 196980
A175: 2111 | B175: 339 | D175: 2020-05-28 | E175: 当座預金 | F175: 北東銀行 築地支店 | H175: 対象外 | I175: 76440 | J175: 0 | K175: 売掛金 | L175: 三島商会 | N175: 対象外 | O175: 76440 | P175: 0 | Q175: M001三島商会 | T175: 3 | W175: 0 | X175: 0 | Y175: no | AA175: 76440 | AB175: 76440
A176: 2000 | B176: 341 | D176: 2020-05-29 | E176: 当座預金 | F176: 北東銀行 築地支店 | H176: 対象外 | I176: 2825687 | J176: 0 | K176: 売掛金 | L176: 長島商事 | N176: 対象外 | O176: 2825687 | P176: 0 | Q176: 売掛金振込入金 | T176: 0 | W176: 0 | X176: 0 | Y176: no | AA176: 2825687 | AB176: 2825687
A177: 2110 | B177: 342 | D177: 2020-05-29 | E177: 当座預金 | F177: 北東銀行 築地支店 | H177: 対象外 | I177: 283905 | J177: 0 | K177: 売掛金 | L177: 三島商会 | N177: 対象外 | O177: 283905 | P177: 0 | Q177: M001三島商会 | T177: 3 | W177: 0 | X177: 0 | Y177: no | Z177: 1 | AA177: 283920 | AB177: 283905 | AC177: 1
A178: 2111 | B178: 343 | D178: 2020-05-29 | E178: 当座預金 | F178: 北東銀行 築地支店 | H178: 対象外 | I178: 145293 | J178: 0 | K178: 売掛金 | L178: 大津商会 | N178: 対象外 | O178: 145293 | P178: 0 | Q178: O001大津商会 | T178: 3 | W178: 0 | X178: 0 | Y178: no | AA178: 145293 | AB178: 145293
A179: 2111 | B179: 344 | D179: 2020-05-29 | E179: 当座預金 | F179: 北東銀行 築地支店 | H179: 対象外 | I179: 12600 | J179: 0 | K179: 売掛金 | L179: 山口商事 | N179: 対象外 | O179: 12600 | P179: 0 | Q179: Y001山口商事 | T179: 3 | W179: 0 | X179: 0 | Y179: no | AA179: 12600 | AB179: 12600
A180: 2111 | B180: 345 | D180: 2020-05-29 | E180: 買掛金 | F180: 有限会社富士 | H180: 対象外 | I180: 1118460 | J180: 0 | K180: 当座預金 | L180: 北東銀行 築地支店 | N180: 対象外 | O180: 1118460 | P180: 0 | Q180: F201有限会社富士 | T180: 3 | W180: 0 | X180: 0 | Y180: no | AA180: 1118460 | AB180: 1118460
A181: 2111 | B181: 346 | D181: 2020-05-29 | E181: 買掛金 | F181: キャラクト | H181: 対象外 | I181: 153405 | J181: 0 | K181: 当座預金 | L181: 北東銀行 築地支店 | N181: 対象外 | O181: 153405 | P181: 0 | Q181: U001キャラクト株式 | T181: 3 | W181: 0 | X181: 0 | Y181: no | AA181: 153405 | AB181: 153405
A182: 2111 | B182: 347 | D182: 2020-05-29 | E182: 現金 | H182: 対象外 | I182: 376588 | J182: 0 | K182: 売掛金 | L182: 御殿場リビング | N182: 対象外 | O182: 376588 | P182: 0 | Q182: G001御殿場リビング | T182: 3 | W182: 0 | X182: 0 | Y182: no | AA182: 376588 | AB182: 376588
A183: 2111 | B183: 348 | D183: 2020-05-29 | E183: 当座預金 | F183: 北東銀行 築地支店 | H183: 対象外 | I183: 221676 | J183: 0 | K183: 売掛金 | L183: 彦商会 | N183: 対象外 | O183: 221676 | P183: 0 | Q183: H002彦商会 | T183: 3 | W183: 0 | X183: 0 | Y183: no | AA183: 221676 | AB183: 221676
A184: 2111 | B184: 349 | D184: 2020-05-29 | E184: 当座預金 | F184: 北東銀行 築地支店 | H184: 対象外 | I184: 858480 | J184: 0 | K184: 売掛金 | L184: 有限会社ミナミ | N184: 対象外 | O184: 858480 | P184: 0 | Q184: M002有限会社ミナミ | T184: 3 | W184: 0 | X184: 0 | Y184: no | AA184: 858480 | AB184: 858480
A185: 2111 | B185: 350 | D185: 2020-05-29 | E185: 当座預金 | F185: 北東銀行 築地支店 | H185: 対象外 | I185: 193158 | J185: 0 | K185: 売掛金 | L185: 大阪食器 | N185: 対象外 | O185: 193158 | P185: 0 | Q185: O002大阪食器 | T185: 3 | W185: 0 | X185: 0 | Y185: no | AA185: 193158 | AB185: 193158
A186: 2000 | B186: 351 | D186: 2020-05-29 | E186: リース料 | H186: 課対仕入内10% | I186: 12300 | J186: 1118 | K186: 普通預金 | L186: 港銀行 城西支店 | N186: 対象外 | O186: 12300 | P186: 0 | Q186: コピーリース料 アジア信販 | T186: 0 | W186: 0 | X186: 0 | Y186: no | AA186: 12300 | AB186: 12300
A187: 2111 | B187: 352 | D187: 2020-05-29 | E187: 当座預金 | F187: 北東銀行 築地支店 | H187: 対象外 | I187: 103477 | J187: 0 | K187: 売掛金 | L187: リビングショップ佐渡 | N187: 対象外 | O187: 103477 | P187: 0 | Q187: R001ﾘﾋﾞﾝｸﾞｼｮｯﾌﾟ佐 | T187: 3 | W187: 0 | X187: 0 | Y187: no | AA187: 103477 | AB187: 103477
A188: 2000 | B188: 353 | D188: 2020-05-30 | E188: 給料手当 | H188: 対象外 | I188: 68000 | J188: 0 | K188: 現金 | N188: 対象外 | O188: 68000 | P188: 0 | Q188: アルバイト店員 | T188: 0 | W188: 0 | X188: 0 | Y188: no | AA188: 68000 | AB188: 68000
A189: 2000 | B189: 354 | D189: 2020-05-30 | E189: 地代家賃 | F189: 駐車場 | H189: 課対仕入内10% | I189: 6000 | J189: 545 | K189: 現金 | N189: 対象外 | O189: 6000 | P189: 0 | Q189: 駐車場 早川 | T189: 0 | W189: 0 | X189: 0 | Y189: no | AA189: 6000 | AB189: 6000
A190: 2000 | B190: 355 | D190: 2020-05-30 | E190: 地代家賃 | F190: 山田さん | H190: 課対仕入内10% | I190: 189000 | J190: 17181 | K190: 普通預金 | L190: 港銀行 城西支店 | N190: 対象外 | O190: 189000 | P190: 0 | Q190: 店舗家賃振込 | T190: 0 | W190: 0 | X190: 0 | Y190: no | AA190: 189000 | AB190: 189000
A191: 2000 | B191: 356 | D191: 2020-05-30 | E191: 旅費交通費 | H191: 課対仕入内10% | I191: 10040 | J191: 912 | K191: 現金 | N191: 対象外 | O191: 10040 | P191: 0 | Q191: アルバイト通勤定期代 城西バス | T191: 0 | W191: 0 | X191: 0 | Y191: no | AA191: 10040 | AB191: 10040
A192: 2000 | B192: 359 | D192: 2020-05-30 | E192: 地代家賃 | F192: ABビル | H192: 課対仕入内10% | I192: 252000 | J192: 22909 | K192: 当座預金 | L192: 北東銀行 築地支店 | N192: 対象外 | O192: 252000 | P192: 0 | Q192: 事務所家賃支払 | T192: 0 | V192: 口座振替のため、賃貸人所在地 東京都城東市 | W192: 0 | X192: 0 | Y192: no | AA192: 252000 | AB192: 252000
A193: 2000 | B193: 360 | D193: 2020-05-30 | E193: 車両費 | F193: ガソリン | H193: 課対仕入内10% | I193: 89561 | J193: 8141 | K193: 当座預金 | L193: 北東銀行 築地支店 | N193: 対象外 | O193: 89561 | P193: 0 | Q193: 北海石油・ガソリン代 | T193: 0 | W193: 0 | X193: 0 | Y193: no | AA193: 89561 | AB193: 89561
A194: 2000 | B194: 361 | D194: 2020-05-30 | E194: 旅費交通費 | H194: 課対仕入内10% | I194: 56800 | J194: 5163 | K194: 現金 | N194: 対象外 | O194: 56800 | P194: 0 | Q194: 通勤定期代 城西バス | T194: 0 | W194: 0 | X194: 0 | Y194: no | AA194: 56800 | AB194: 56800
A195: 2000 | B195: 362 | D195: 2020-05-30 | E195: 荷造運賃 | H195: 課対仕入内10% | I195: 356000 | J195: 32363 | K195: 当座預金 | L195: 北東銀行 築地支店 | N195: 対象外 | O195: 356000 | P195: 0 | Q195: やよい配送・運賃 | T195: 0 | W195: 0 | X195: 0 | Y195: no | AA195: 356000 | AB195: 356000
A196: 2110 | B196: 365 | D196: 2020-05-30 | E196: 法定福利費 | H196: 対象外 | I196: 215432 | J196: 0 | K196: 普通預金 | L196: 港銀行 城西支店 | N196: 対象外 | O196: 215432 | P196: 0 | Q196: 社会保険料会社負担／自動振替 | T196: 3 | W196: 0 | X196: 0 | Y196: no | Z196: 1 | AA196: 215432 | AB196: 215432
A197: 2100 | B197: 365 | D197: 2020-05-30 | E197: 預り金 | F197: 社会保険料 | H197: 対象外 | I197: 199567 | J197: 0 | K197: 普通預金 | N197: 対象外 | O197: 199567 | P197: 0 | Q197: 社会保険料 | T197: 3 | W197: 0 | X197: 0 | Y197: no | Z197: 1 | AA197: 199567 | AB197: 199567
A198: 2000 | B198: 369 | D198: 2020-05-31 | E198: 現金 | H198: 対象外 | I198: 141953 | J198: 0 | K198: 売上高 | N198: 課税売上内10% | O198: 141953 | P198: 12904 | Q198: 本日売上 | T198: 0 | W198: 0 | X198: 0 | Y198: no | AA198: 141953 | AB198: 141953
A199: 2000 | B199: 370 | D199: 2020-05-31 | E199: 普通預金 | F199: 赤坂銀行 本店 | H199: 対象外 | I199: 640 | J199: 0 | K199: 受取配当金 | N199: 対象外 | O199: 640 | P199: 0 | Q199: 出資配当 | T199: 0 | W199: 0 | X199: 0 | Y199: no | AA199: 640 | AB199: 640
A200: 2000 | B200: 372 | D200: 2020-05-31 | E200: [製]地代家賃 | H200: 課対仕入内10% | I200: 115000 | J200: 10454 | K200: 現金 | N200: 対象外 | O200: 115000 | P200: 0 | Q200: 5月分 | T200: 0 | W200: 0 | X200: 0 | Y200: no | AA200: 115000 | AB200: 115000
... 775 more rows

Sheet 科目照合シート (hidden)
